Payment Date,Transaction Number,Net Amount,Supplier (Beneficiary) Name,Local Supplier Internal Reference,Directorate / Service Where Expenditure Incurred,Service Category Label,Service Category URI,SeRCOP Expenditure Category,SeRCOP Expenditure Code,Purpose of Spend,SeRCOP Detailed Expenditure Code,Capital/Revenue,Procurement Classification
29-JUN-2022,7013787,25,TT2 LTD,377653,"Health, Education, Care and Safeguarding",Children's & Education Services,103,Supplies and Services,504,Miscellaneous Expenses,5034,Revenue,NON INFLUENCIBLE.NON INFLUENCIBLE
29-JUN-2022,7013865,79.17,THE PSHE ASSOCIATION,383735,"Health, Education, Care and Safeguarding",Children's & Education Services,103,Supplies and Services,504,Miscellaneous Expenses,5034,Revenue,SUBSCRIPTIONS & PUBLICATIONS.MEMBERSHIPS
29-JUN-2022,7013904,150,CLPE,403207,"Health, Education, Care and Safeguarding",Children's & Education Services,103,Employees,501,Indirect Employee Expenses,5002,Revenue,NON INFLUENCIBLE.NON INFLUENCIBLE
29-JUN-2022,7013736,132.5,TV LICENSING,014515,"Health, Education, Care and Safeguarding",Children's & Education Services,103,Supplies and Services,504,Miscellaneous Expenses,5034,Revenue,SUBSCRIPTIONS & PUBLICATIONS.TV/RADIO LICENCES
29-JUN-2022,7013824,68.75,RLSS UK ENTERPRISES LTD,319260,Resources,Children's & Education Services,103,Employees,501,Indirect Employee Expenses,5002,Revenue,HEALTH & SAFETY.PRODUCTS
29-JUN-2022,7013825,18.87,AMAZON GENERAL PAYMENTS,375398,Resources,Children's & Education Services,103,Employees,501,Indirect Employee Expenses,5002,Revenue,EDUCATIONAL SUPPLIES.SUPPLIES
29-JUN-2022,7013842,50,TAHDAH VERIFIED,393356,Resources,Children's & Education Services,103,Employees,501,Indirect Employee Expenses,5002,Revenue,ICT.SOFTWARE
29-JUN-2022,7013842,50,TAHDAH VERIFIED,393356,Resources,Children's & Education Services,103,Employees,501,Indirect Employee Expenses,5002,Revenue,ICT.SOFTWARE
29-JUN-2022,7013842,50,TAHDAH VERIFIED,393356,Resources,Children's & Education Services,103,Employees,501,Indirect Employee Expenses,5002,Revenue,ICT.SOFTWARE
29-JUN-2022,7013842,50,TAHDAH VERIFIED,393356,Resources,Children's & Education Services,103,Employees,501,Indirect Employee Expenses,5002,Revenue,ICT.SOFTWARE
29-JUN-2022,7013842,50,TAHDAH VERIFIED,393356,Resources,Children's & Education Services,103,Employees,501,Indirect Employee Expenses,5002,Revenue,ICT.SOFTWARE
29-JUN-2022,7013853,165,LEARNING POOL LIMITED,373128,Resources,Children's & Education Services,103,Employees,501,Indirect Employee Expenses,5002,Revenue,HUMAN RESOURCES.TRAINING & CONFERENCES
29-JUN-2022,7013872,940.48,SAFETY CULTURE,400494,Resources,Children's & Education Services,103,Employees,501,Indirect Employee Expenses,5002,Revenue,ICT.SOFTWARE
29-JUN-2022,7013825,21.46,AMAZON GENERAL PAYMENTS,375398,Corporate Strategy,Children's & Education Services,103,Supplies and Services,504,Expenses,5030,Revenue,EDUCATIONAL SUPPLIES.SUPPLIES
29-JUN-2022,7013762,8.42,TESCO STORES LTD,336585,"Health, Education, Care and Safeguarding",Children's & Education Services,103,Supplies and Services,504,Catering,5024,Revenue,CATERING.FOOD & BEVERAGES
29-JUN-2022,7013777,25,MARKS & SPENCER PLC,013098,"Health, Education, Care and Safeguarding",Children's & Education Services,103,Supplies and Services,504,Catering,5024,Revenue,CATERING.FOOD & BEVERAGES
29-JUN-2022,7013793,57.63,GOOGLE GENERAL PAYMENTS,388551,"Health, Education, Care and Safeguarding",Children's & Education Services,103,Supplies and Services,504,"Printing, Stationery and General Office Expenses",5026,Revenue,NON INFLUENCIBLE.NON INFLUENCIBLE
29-JUN-2022,7013825,0.01,AMAZON GENERAL PAYMENTS,375398,"Health, Education, Care and Safeguarding",Children's & Education Services,103,Supplies and Services,504,Miscellaneous Expenses,5034,Revenue,EDUCATIONAL SUPPLIES.SUPPLIES
29-JUN-2022,7013825,10.82,AMAZON GENERAL PAYMENTS,375398,"Health, Education, Care and Safeguarding",Children's & Education Services,103,Supplies and Services,504,Miscellaneous Expenses,5034,Revenue,EDUCATIONAL SUPPLIES.SUPPLIES
29-JUN-2022,7013885,47.5,COL OF TEACHING,399918,"Health, Education, Care and Safeguarding",Children's & Education Services,103,Supplies and Services,504,Grants and Subscriptions,5031,Revenue,SUBSCRIPTIONS & PUBLICATIONS.MEMBERSHIPS
29-JUN-2022,7013825,39.16,AMAZON GENERAL PAYMENTS,375398,"Health, Education, Care and Safeguarding",Children's & Education Services,103,Supplies and Services,504,Equipment,5023,Revenue,EDUCATIONAL SUPPLIES.SUPPLIES
29-JUN-2022,7013825,0.01,AMAZON GENERAL PAYMENTS,375398,"Health, Education, Care and Safeguarding",Children's & Education Services,103,Supplies and Services,504,Miscellaneous Expenses,5034,Revenue,EDUCATIONAL SUPPLIES.SUPPLIES
29-JUN-2022,7013825,0.01,AMAZON GENERAL PAYMENTS,375398,"Health, Education, Care and Safeguarding",Children's & Education Services,103,Supplies and Services,504,Miscellaneous Expenses,5034,Revenue,EDUCATIONAL SUPPLIES.SUPPLIES
29-JUN-2022,7013825,17.24,AMAZON GENERAL PAYMENTS,375398,"Health, Education, Care and Safeguarding",Children's & Education Services,103,Supplies and Services,504,Miscellaneous Expenses,5034,Revenue,EDUCATIONAL SUPPLIES.SUPPLIES
29-JUN-2022,7013825,17.46,AMAZON GENERAL PAYMENTS,375398,"Health, Education, Care and Safeguarding",Children's & Education Services,103,Supplies and Services,504,Miscellaneous Expenses,5034,Revenue,EDUCATIONAL SUPPLIES.SUPPLIES
29-JUN-2022,7013825,23.63,AMAZON GENERAL PAYMENTS,375398,"Health, Education, Care and Safeguarding",Children's & Education Services,103,Supplies and Services,504,Miscellaneous Expenses,5034,Revenue,EDUCATIONAL SUPPLIES.SUPPLIES
29-JUN-2022,7013825,27.9,AMAZON GENERAL PAYMENTS,375398,"Health, Education, Care and Safeguarding",Children's & Education Services,103,Supplies and Services,504,Miscellaneous Expenses,5034,Revenue,EDUCATIONAL SUPPLIES.SUPPLIES
29-JUN-2022,7013825,36.87,AMAZON GENERAL PAYMENTS,375398,"Health, Education, Care and Safeguarding",Children's & Education Services,103,Supplies and Services,504,Miscellaneous Expenses,5034,Revenue,EDUCATIONAL SUPPLIES.SUPPLIES
29-JUN-2022,7013825,62.48,AMAZON GENERAL PAYMENTS,375398,"Health, Education, Care and Safeguarding",Children's & Education Services,103,Supplies and Services,504,Miscellaneous Expenses,5034,Revenue,EDUCATIONAL SUPPLIES.SUPPLIES
29-JUN-2022,7013825,91.5,AMAZON GENERAL PAYMENTS,375398,"Health, Education, Care and Safeguarding",Children's & Education Services,103,Supplies and Services,504,Miscellaneous Expenses,5034,Revenue,EDUCATIONAL SUPPLIES.SUPPLIES
29-JUN-2022,7013724,28.29,GO OUTDOORS LIMITED,383963,"Health, Education, Care and Safeguarding",Children's & Education Services,103,Supplies and Services,504,"Clothing, Uniforms and Laundry",5025,Revenue,SPORTS & PLAYGROUND EQUIPMENT.SPORTS EQUIPMENT
29-JUN-2022,7013726,48.11,ASDA STORES LIMITED,306530,"Health, Education, Care and Safeguarding",Children's & Education Services,103,Supplies and Services,504,Equipment,5023,Revenue,CATERING.FOOD & BEVERAGES
29-JUN-2022,7013726,-0.01,ASDA STORES LIMITED,306530,"Health, Education, Care and Safeguarding",Children's & Education Services,103,Supplies and Services,504,Equipment,5023,Revenue,CATERING.FOOD & BEVERAGES
29-JUN-2022,7013726,4.83,ASDA STORES LIMITED,306530,"Health, Education, Care and Safeguarding",Children's & Education Services,103,Supplies and Services,504,Equipment,5023,Revenue,CATERING.FOOD & BEVERAGES
29-JUN-2022,7013733,-0.01,B & Q (205037),205037,"Health, Education, Care and Safeguarding",Children's & Education Services,103,Supplies and Services,504,Equipment,5023,Revenue,BUILDING MATERIALS.GENERAL MATERIALS
29-JUN-2022,7013733,88.92,B & Q (205037),205037,"Health, Education, Care and Safeguarding",Children's & Education Services,103,Supplies and Services,504,Equipment,5023,Revenue,BUILDING MATERIALS.GENERAL MATERIALS
29-JUN-2022,7013742,22,RIVER ISLAND,385067,"Health, Education, Care and Safeguarding",Children's & Education Services,103,Supplies and Services,504,"Clothing, Uniforms and Laundry",5025,Revenue,CLOTHING.CHILDRENS & ADULTS
29-JUN-2022,7013745,72.99,SPORTS DIRECT,373833,"Health, Education, Care and Safeguarding",Children's & Education Services,103,Supplies and Services,504,"Clothing, Uniforms and Laundry",5025,Revenue,CLOTHING.CHILDRENS & ADULTS
29-JUN-2022,7013747,20.83,NEXT PLC,338362,"Health, Education, Care and Safeguarding",Children's & Education Services,103,Supplies and Services,504,"Clothing, Uniforms and Laundry",5025,Revenue,NON INFLUENCIBLE.NON INFLUENCIBLE
29-JUN-2022,7013749,18.33,WILKO RETAIL LIMITED,280813,"Health, Education, Care and Safeguarding",Children's & Education Services,103,Supplies and Services,504,Equipment,5023,Revenue,NON INFLUENCIBLE.REDECORATION GRANTS
29-JUN-2022,7013749,0.01,WILKO RETAIL LIMITED,280813,"Health, Education, Care and Safeguarding",Children's & Education Services,103,Supplies and Services,504,Equipment,5023,Revenue,NON INFLUENCIBLE.REDECORATION GRANTS
29-JUN-2022,7013749,16.62,WILKO RETAIL LIMITED,280813,"Health, Education, Care and Safeguarding",Children's & Education Services,103,Supplies and Services,504,Equipment,5023,Revenue,NON INFLUENCIBLE.REDECORATION GRANTS
29-JUN-2022,7013752,14.17,ODEON CINEMAS LIMITED,349238,"Health, Education, Care and Safeguarding",Children's & Education Services,103,Supplies and Services,504,Equipment,5023,Revenue,ADVERTISING & MARKETING.EVENTS & PROMOTIONS
29-JUN-2022,7013752,-11.67,ODEON CINEMAS LIMITED,349238,"Health, Education, Care and Safeguarding",Children's & Education Services,103,Supplies and Services,504,Miscellaneous Expenses,5034,Revenue,ADVERTISING & MARKETING.EVENTS & PROMOTIONS
29-JUN-2022,7013752,-0.01,ODEON CINEMAS LIMITED,349238,"Health, Education, Care and Safeguarding",Children's & Education Services,103,Supplies and Services,504,Miscellaneous Expenses,5034,Revenue,ADVERTISING & MARKETING.EVENTS & PROMOTIONS
29-JUN-2022,7013752,9.33,ODEON CINEMAS LIMITED,349238,"Health, Education, Care and Safeguarding",Children's & Education Services,103,Supplies and Services,504,Miscellaneous Expenses,5034,Revenue,ADVERTISING & MARKETING.EVENTS & PROMOTIONS
29-JUN-2022,7013752,11.66,ODEON CINEMAS LIMITED,349238,"Health, Education, Care and Safeguarding",Children's & Education Services,103,Supplies and Services,504,Miscellaneous Expenses,5034,Revenue,ADVERTISING & MARKETING.EVENTS & PROMOTIONS
29-JUN-2022,7013752,11.67,ODEON CINEMAS LIMITED,349238,"Health, Education, Care and Safeguarding",Children's & Education Services,103,Supplies and Services,504,Miscellaneous Expenses,5034,Revenue,ADVERTISING & MARKETING.EVENTS & PROMOTIONS
29-JUN-2022,7013752,11.67,ODEON CINEMAS LIMITED,349238,"Health, Education, Care and Safeguarding",Children's & Education Services,103,Supplies and Services,504,Miscellaneous Expenses,5034,Revenue,ADVERTISING & MARKETING.EVENTS & PROMOTIONS
29-JUN-2022,7013752,17.5,ODEON CINEMAS LIMITED,349238,"Health, Education, Care and Safeguarding",Children's & Education Services,103,Supplies and Services,504,Miscellaneous Expenses,5034,Revenue,ADVERTISING & MARKETING.EVENTS & PROMOTIONS
29-JUN-2022,7013757,9.98,NEW LOOK,382612,"Health, Education, Care and Safeguarding",Children's & Education Services,103,Supplies and Services,504,"Clothing, Uniforms and Laundry",5025,Revenue,CLOTHING.CHILDRENS & ADULTS
29-JUN-2022,7013757,17.73,NEW LOOK,382612,"Health, Education, Care and Safeguarding",Children's & Education Services,103,Supplies and Services,504,"Clothing, Uniforms and Laundry",5025,Revenue,CLOTHING.CHILDRENS & ADULTS
29-JUN-2022,7013763,3.33,PAYPAL GENERAL PAYMENTS,383689,"Health, Education, Care and Safeguarding",Children's & Education Services,103,Supplies and Services,504,Miscellaneous Expenses,5034,Revenue,FINANCIAL SERVICES.FINANCIAL SERVICES
29-JUN-2022,7013769,6.66,THE RANGE,382975,"Health, Education, Care and Safeguarding",Children's & Education Services,103,Supplies and Services,504,Equipment,5023,Revenue,FURNITURE.SOFT FURNISHINGS
29-JUN-2022,7013774,8.33,NEXUS,305246,"Health, Education, Care and Safeguarding",Children's & Education Services,103,Supplies and Services,504,Expenses,5030,Revenue,NON INFLUENCIBLE.NON INFLUENCIBLE
29-JUN-2022,7013774,3.75,NEXUS,305246,"Health, Education, Care and Safeguarding",Children's & Education Services,103,Supplies and Services,504,Miscellaneous Expenses,5034,Revenue,NON INFLUENCIBLE.NON INFLUENCIBLE
29-JUN-2022,7013782,0.66,HOME BARGAINS,381011,"Health, Education, Care and Safeguarding",Children's & Education Services,103,Supplies and Services,504,Miscellaneous Expenses,5034,Revenue,FURNITURE.SOFT FURNISHINGS
29-JUN-2022,7013786,4.21,MAX SPIELMANN LTD,383117,"Health, Education, Care and Safeguarding",Children's & Education Services,103,Supplies and Services,504,"Printing, Stationery and General Office Expenses",5026,Revenue,NON INFLUENCIBLE.NON INFLUENCIBLE
29-JUN-2022,7013794,0.01,LIDL UK GMBH,383629,"Health, Education, Care and Safeguarding",Children's & Education Services,103,Supplies and Services,504,Equipment,5023,Revenue,NON INFLUENCIBLE.GRANTS
29-JUN-2022,7013794,11.32,LIDL UK GMBH,383629,"Health, Education, Care and Safeguarding",Children's & Education Services,103,Supplies and Services,504,Equipment,5023,Revenue,NON INFLUENCIBLE.GRANTS
29-JUN-2022,7013808,19.17,DUNELM LTD,391723,"Health, Education, Care and Safeguarding",Children's & Education Services,103,Supplies and Services,504,Equipment,5023,Revenue,FURNITURE.SOFT FURNISHINGS
29-JUN-2022,7013810,19.15,H&M,391479,"Health, Education, Care and Safeguarding",Children's & Education Services,103,Supplies and Services,504,Miscellaneous Expenses,5034,Revenue,NON INFLUENCIBLE.NON INFLUENCIBLE
29-JUN-2022,7013825,0.01,AMAZON GENERAL PAYMENTS,375398,"Health, Education, Care and Safeguarding",Children's & Education Services,103,Supplies and Services,504,Equipment,5023,Revenue,EDUCATIONAL SUPPLIES.SUPPLIES
29-JUN-2022,7013825,0.01,AMAZON GENERAL PAYMENTS,375398,"Health, Education, Care and Safeguarding",Children's & Education Services,103,Supplies and Services,504,Equipment,5023,Revenue,EDUCATIONAL SUPPLIES.SUPPLIES
29-JUN-2022,7013825,0.01,AMAZON GENERAL PAYMENTS,375398,"Health, Education, Care and Safeguarding",Children's & Education Services,103,Supplies and Services,504,Equipment,5023,Revenue,EDUCATIONAL SUPPLIES.SUPPLIES
29-JUN-2022,7013825,4.71,AMAZON GENERAL PAYMENTS,375398,"Health, Education, Care and Safeguarding",Children's & Education Services,103,Supplies and Services,504,Equipment,5023,Revenue,EDUCATIONAL SUPPLIES.SUPPLIES
29-JUN-2022,7013825,7.07,AMAZON GENERAL PAYMENTS,375398,"Health, Education, Care and Safeguarding",Children's & Education Services,103,Supplies and Services,504,Equipment,5023,Revenue,EDUCATIONAL SUPPLIES.SUPPLIES
29-JUN-2022,7013825,13.61,AMAZON GENERAL PAYMENTS,375398,"Health, Education, Care and Safeguarding",Children's & Education Services,103,Supplies and Services,504,Equipment,5023,Revenue,EDUCATIONAL SUPPLIES.SUPPLIES
29-JUN-2022,7013825,15.16,AMAZON GENERAL PAYMENTS,375398,"Health, Education, Care and Safeguarding",Children's & Education Services,103,Supplies and Services,504,Equipment,5023,Revenue,EDUCATIONAL SUPPLIES.SUPPLIES
29-JUN-2022,7013825,15.82,AMAZON GENERAL PAYMENTS,375398,"Health, Education, Care and Safeguarding",Children's & Education Services,103,Supplies and Services,504,Equipment,5023,Revenue,EDUCATIONAL SUPPLIES.SUPPLIES
29-JUN-2022,7013825,25,AMAZON GENERAL PAYMENTS,375398,"Health, Education, Care and Safeguarding",Children's & Education Services,103,Supplies and Services,504,Equipment,5023,Revenue,EDUCATIONAL SUPPLIES.SUPPLIES
29-JUN-2022,7013825,27.47,AMAZON GENERAL PAYMENTS,375398,"Health, Education, Care and Safeguarding",Children's & Education Services,103,Supplies and Services,504,Equipment,5023,Revenue,EDUCATIONAL SUPPLIES.SUPPLIES
29-JUN-2022,7013825,0.01,AMAZON GENERAL PAYMENTS,375398,"Health, Education, Care and Safeguarding",Children's & Education Services,103,Supplies and Services,504,Equipment,5023,Revenue,EDUCATIONAL SUPPLIES.SUPPLIES
29-JUN-2022,7013825,32.88,AMAZON GENERAL PAYMENTS,375398,"Health, Education, Care and Safeguarding",Children's & Education Services,103,Supplies and Services,504,Equipment,5023,Revenue,EDUCATIONAL SUPPLIES.SUPPLIES
29-JUN-2022,7013852,16.65,INFLATANATION,399328,"Health, Education, Care and Safeguarding",Children's & Education Services,103,Supplies and Services,504,Equipment,5023,Revenue,ADVERTISING & MARKETING.ADVERTISING
29-JUN-2022,7013866,9.58,FRESHA FIDGETS,401846,"Health, Education, Care and Safeguarding",Children's & Education Services,103,Supplies and Services,504,Miscellaneous Expenses,5034,Revenue,NON INFLUENCIBLE.NON INFLUENCIBLE
29-JUN-2022,7013867,16.67,AIRBOX BOUNCE,401703,"Health, Education, Care and Safeguarding",Children's & Education Services,103,Supplies and Services,504,Miscellaneous Expenses,5034,Revenue,NON INFLUENCIBLE.NON INFLUENCIBLE
29-JUN-2022,7013909,32.5,NEW BALANCE,403202,"Health, Education, Care and Safeguarding",Children's & Education Services,103,Supplies and Services,504,"Clothing, Uniforms and Laundry",5025,Revenue,NON INFLUENCIBLE.NON INFLUENCIBLE
29-JUN-2022,7013825,78.97,AMAZON GENERAL PAYMENTS,375398,"Health, Education, Care and Safeguarding",Children's & Education Services,103,Employees,501,Indirect Employee Expenses,5002,Revenue,EDUCATIONAL SUPPLIES.SUPPLIES
29-JUN-2022,7013825,0.01,AMAZON GENERAL PAYMENTS,375398,"Health, Education, Care and Safeguarding",Children's & Education Services,103,Supplies and Services,504,Equipment,5023,Revenue,EDUCATIONAL SUPPLIES.SUPPLIES
29-JUN-2022,7013825,0.01,AMAZON GENERAL PAYMENTS,375398,"Health, Education, Care and Safeguarding",Children's & Education Services,103,Supplies and Services,504,Equipment,5023,Revenue,EDUCATIONAL SUPPLIES.SUPPLIES
29-JUN-2022,7013825,0.01,AMAZON GENERAL PAYMENTS,375398,"Health, Education, Care and Safeguarding",Children's & Education Services,103,Supplies and Services,504,Equipment,5023,Revenue,EDUCATIONAL SUPPLIES.SUPPLIES
29-JUN-2022,7013825,0.01,AMAZON GENERAL PAYMENTS,375398,"Health, Education, Care and Safeguarding",Children's & Education Services,103,Supplies and Services,504,Equipment,5023,Revenue,EDUCATIONAL SUPPLIES.SUPPLIES
29-JUN-2022,7013825,13.83,AMAZON GENERAL PAYMENTS,375398,"Health, Education, Care and Safeguarding",Children's & Education Services,103,Supplies and Services,504,Equipment,5023,Revenue,EDUCATIONAL SUPPLIES.SUPPLIES
29-JUN-2022,7013825,59.54,AMAZON GENERAL PAYMENTS,375398,"Health, Education, Care and Safeguarding",Children's & Education Services,103,Supplies and Services,504,Equipment,5023,Revenue,EDUCATIONAL SUPPLIES.SUPPLIES
29-JUN-2022,7013825,67.13,AMAZON GENERAL PAYMENTS,375398,"Health, Education, Care and Safeguarding",Children's & Education Services,103,Supplies and Services,504,Equipment,5023,Revenue,EDUCATIONAL SUPPLIES.SUPPLIES
29-JUN-2022,7013825,67.13,AMAZON GENERAL PAYMENTS,375398,"Health, Education, Care and Safeguarding",Children's & Education Services,103,Supplies and Services,504,Equipment,5023,Revenue,EDUCATIONAL SUPPLIES.SUPPLIES
29-JUN-2022,7013825,79.97,AMAZON GENERAL PAYMENTS,375398,"Health, Education, Care and Safeguarding",Children's & Education Services,103,Supplies and Services,504,Equipment,5023,Revenue,EDUCATIONAL SUPPLIES.SUPPLIES
29-JUN-2022,7013825,100,AMAZON GENERAL PAYMENTS,375398,"Health, Education, Care and Safeguarding",Children's & Education Services,103,Supplies and Services,504,Equipment,5023,Revenue,EDUCATIONAL SUPPLIES.SUPPLIES
29-JUN-2022,7013825,100,AMAZON GENERAL PAYMENTS,375398,"Health, Education, Care and Safeguarding",Children's & Education Services,103,Supplies and Services,504,Equipment,5023,Revenue,EDUCATIONAL SUPPLIES.SUPPLIES
29-JUN-2022,7013825,500,AMAZON GENERAL PAYMENTS,375398,"Health, Education, Care and Safeguarding",Children's & Education Services,103,Supplies and Services,504,Equipment,5023,Revenue,EDUCATIONAL SUPPLIES.SUPPLIES
29-JUN-2022,7013827,-0.01,ARGOS LTD,253446,"Health, Education, Care and Safeguarding",Children's & Education Services,103,Supplies and Services,504,Equipment,5023,Revenue,FURNITURE.DOMESTIC
29-JUN-2022,7013827,39.96,ARGOS LTD,253446,"Health, Education, Care and Safeguarding",Children's & Education Services,103,Supplies and Services,504,Equipment,5023,Revenue,FURNITURE.DOMESTIC
29-JUN-2022,7013827,99.99,ARGOS LTD,253446,"Health, Education, Care and Safeguarding",Children's & Education Services,103,Supplies and Services,504,Miscellaneous Expenses,5034,Revenue,FURNITURE.DOMESTIC
29-JUN-2022,7013920,82.5,CVAA UK LTD,403174,"Health, Education, Care and Safeguarding",Children's & Education Services,103,Supplies and Services,504,Equipment,5023,Revenue,NON INFLUENCIBLE.NON INFLUENCIBLE
29-JUN-2022,7013932,128.33,COMMUNITY TRANSPORT,003017,"Health, Education, Care and Safeguarding",Children's & Education Services,103,Supplies and Services,504,Equipment,5023,Revenue,SOCIAL CARE.CONSUMABLES
29-JUN-2022,7013763,255.86,PAYPAL GENERAL PAYMENTS,383689,"Health, Education, Care and Safeguarding",Children's & Education Services,103,Supplies and Services,504,Miscellaneous Expenses,5034,Revenue,FINANCIAL SERVICES.FINANCIAL SERVICES
29-JUN-2022,7013825,0.01,AMAZON GENERAL PAYMENTS,375398,"Health, Education, Care and Safeguarding",Children's & Education Services,103,Supplies and Services,504,Miscellaneous Expenses,5034,Revenue,EDUCATIONAL SUPPLIES.SUPPLIES
29-JUN-2022,7013825,21.22,AMAZON GENERAL PAYMENTS,375398,"Health, Education, Care and Safeguarding",Children's & Education Services,103,Supplies and Services,504,Miscellaneous Expenses,5034,Revenue,EDUCATIONAL SUPPLIES.SUPPLIES
29-JUN-2022,7013825,42.43,AMAZON GENERAL PAYMENTS,375398,"Health, Education, Care and Safeguarding",Children's & Education Services,103,Supplies and Services,504,Miscellaneous Expenses,5034,Revenue,EDUCATIONAL SUPPLIES.SUPPLIES
29-JUN-2022,7013871,0.01,DISTROKID LABEL 5,401568,"Health, Education, Care and Safeguarding",Children's & Education Services,103,Supplies and Services,504,Miscellaneous Expenses,5034,Revenue,ADVERTISING & MARKETING.EVENTS & PROMOTIONS
29-JUN-2022,7013871,55.02,DISTROKID LABEL 5,401568,"Health, Education, Care and Safeguarding",Children's & Education Services,103,Supplies and Services,504,Miscellaneous Expenses,5034,Revenue,ADVERTISING & MARKETING.EVENTS & PROMOTIONS
29-JUN-2022,7013770,0.66,APPLE COMPUTERS,384257,"Health, Education, Care and Safeguarding",Children's & Education Services,103,Supplies and Services,504,Miscellaneous Expenses,5034,Revenue,ICT.HARDWARE
29-JUN-2022,7013750,2.63,FASTHOSTS INTERNET LIMITED,367002,"Health, Education, Care and Safeguarding",Children's & Education Services,103,Supplies and Services,504,Communications & Computing,5028,Revenue,ICT.SOFTWARE
29-JUN-2022,7013750,2.63,FASTHOSTS INTERNET LIMITED,367002,"Health, Education, Care and Safeguarding",Children's & Education Services,103,Supplies and Services,504,Communications & Computing,5028,Revenue,ICT.SOFTWARE
29-JUN-2022,7013750,6.91,FASTHOSTS INTERNET LIMITED,367002,"Health, Education, Care and Safeguarding",Children's & Education Services,103,Supplies and Services,504,Communications & Computing,5028,Revenue,ICT.SOFTWARE
29-JUN-2022,7013750,43.06,FASTHOSTS INTERNET LIMITED,367002,"Health, Education, Care and Safeguarding",Children's & Education Services,103,Supplies and Services,504,Communications & Computing,5028,Revenue,ICT.SOFTWARE
29-JUN-2022,7013831,24.96,ADOBE  CREATIVE CLOUD,395909,"Health, Education, Care and Safeguarding",Children's & Education Services,103,Supplies and Services,504,Communications & Computing,5028,Revenue,ICT.SOFTWARE
29-JUN-2022,7013834,12,VIMEO PLUS,395248,"Health, Education, Care and Safeguarding",Children's & Education Services,103,Supplies and Services,504,Communications & Computing,5028,Revenue,ICT.SOFTWARE
29-JUN-2022,7013839,127.05,MOJO HELPDESK,394317,"Health, Education, Care and Safeguarding",Children's & Education Services,103,Supplies and Services,504,Communications & Computing,5028,Revenue,ICT.SOFTWARE
29-JUN-2022,7013869,7.99,UNLIMITED,401692,"Health, Education, Care and Safeguarding",Children's & Education Services,103,Supplies and Services,504,Miscellaneous Expenses,5034,Revenue,NON INFLUENCIBLE.NON INFLUENCIBLE
29-JUN-2022,7013930,98.33,BEAVER BUILDER,396851,"Health, Education, Care and Safeguarding",Children's & Education Services,103,Supplies and Services,504,Communications & Computing,5028,Revenue,ICT.SOFTWARE
29-JUN-2022,7013733,-0.01,B & Q (205037),205037,Local Environmental Services,Cultural & Related Services,104,Supplies and Services,504,Equipment,5023,Revenue,BUILDING MATERIALS.GENERAL MATERIALS
29-JUN-2022,7013733,66.67,B & Q (205037),205037,Local Environmental Services,Cultural & Related Services,104,Supplies and Services,504,Equipment,5023,Revenue,BUILDING MATERIALS.GENERAL MATERIALS
29-JUN-2022,7013733,82.5,B & Q (205037),205037,Local Environmental Services,Cultural & Related Services,104,Supplies and Services,504,Equipment,5023,Revenue,BUILDING MATERIALS.GENERAL MATERIALS
29-JUN-2022,7013733,66.67,B & Q (205037),205037,Local Environmental Services,Cultural & Related Services,104,Supplies and Services,504,Equipment,5023,Revenue,BUILDING MATERIALS.GENERAL MATERIALS
29-JUN-2022,7013826,81.65,SCREWFIX,383257,Local Environmental Services,Cultural & Related Services,104,Supplies and Services,504,Equipment,5023,Revenue,BUILDING MATERIALS.GENERAL MATERIALS
29-JUN-2022,7013895,12.49,CHIRTON MAIN SERVICE,397459,Local Environmental Services,Cultural & Related Services,104,Transport,503,Direct Transport Costs,5016,Revenue,BUILDING MATERIALS.GENERAL MATERIALS
29-JUN-2022,7013895,71.56,CHIRTON MAIN SERVICE,397459,Local Environmental Services,Cultural & Related Services,104,Transport,503,Direct Transport Costs,5016,Revenue,BUILDING MATERIALS.GENERAL MATERIALS
29-JUN-2022,7013895,73.15,CHIRTON MAIN SERVICE,397459,Local Environmental Services,Cultural & Related Services,104,Transport,503,Direct Transport Costs,5016,Revenue,BUILDING MATERIALS.GENERAL MATERIALS
29-JUN-2022,7013895,80.81,CHIRTON MAIN SERVICE,397459,Local Environmental Services,Cultural & Related Services,104,Transport,503,Direct Transport Costs,5016,Revenue,BUILDING MATERIALS.GENERAL MATERIALS
29-JUN-2022,7013895,81.03,CHIRTON MAIN SERVICE,397459,Local Environmental Services,Cultural & Related Services,104,Transport,503,Direct Transport Costs,5016,Revenue,BUILDING MATERIALS.GENERAL MATERIALS
29-JUN-2022,7013759,-85.27,GUSTHARTS CHAINSAW CENTRE,007917,Local Environmental Services,Police Services,111,Supplies and Services,504,Equipment,5023,Revenue,HORTICULTURAL.TOOLS & EQUIPMENT
29-JUN-2022,7013759,93.47,GUSTHARTS CHAINSAW CENTRE,007917,Local Environmental Services,Police Services,111,Supplies and Services,504,Equipment,5023,Revenue,HORTICULTURAL.TOOLS & EQUIPMENT
29-JUN-2022,7013778,51.33,THOMAS OWEN AND SONS LTD,015083,Local Environmental Services,Police Services,111,Supplies and Services,504,Equipment,5023,Revenue,HEALTH & SAFETY.PRODUCTS
29-JUN-2022,7013778,57.33,THOMAS OWEN AND SONS LTD,015083,Local Environmental Services,Police Services,111,Supplies and Services,504,Equipment,5023,Revenue,HEALTH & SAFETY.PRODUCTS
29-JUN-2022,7013733,-0.01,B & Q (205037),205037,Local Environmental Services,Environmental & Regulatory Services,105,Supplies and Services,504,Equipment,5023,Revenue,BUILDING MATERIALS.GENERAL MATERIALS
29-JUN-2022,7013733,100.87,B & Q (205037),205037,Local Environmental Services,Environmental & Regulatory Services,105,Supplies and Services,504,Equipment,5023,Revenue,BUILDING MATERIALS.GENERAL MATERIALS
29-JUN-2022,7013749,2.92,WILKO RETAIL LIMITED,280813,Local Environmental Services,Environmental & Regulatory Services,105,Supplies and Services,504,Equipment,5023,Revenue,NON INFLUENCIBLE.REDECORATION GRANTS
29-JUN-2022,7013758,12.5,HALFORDS,347854,Local Environmental Services,Environmental & Regulatory Services,105,Supplies and Services,504,Equipment,5023,Revenue,FINANCIAL SERVICES.FINANCIAL SERVICES
29-JUN-2022,7013761,21.67,WM MORRISON SUPERMARKETS PLC,013562,Local Environmental Services,Environmental & Regulatory Services,105,Supplies and Services,504,Equipment,5023,Revenue,CATERING.FOOD & BEVERAGES
29-JUN-2022,7013776,0.75,CITY ELECTRICAL FACTORS LTD,003739,Local Environmental Services,Environmental & Regulatory Services,105,Supplies and Services,504,Equipment,5023,Revenue,BUILDING MATERIALS.ELECTRICAL
29-JUN-2022,7013776,17.32,CITY ELECTRICAL FACTORS LTD,003739,Local Environmental Services,Environmental & Regulatory Services,105,Supplies and Services,504,Equipment,5023,Revenue,BUILDING MATERIALS.ELECTRICAL
29-JUN-2022,7013776,32.5,CITY ELECTRICAL FACTORS LTD,003739,Local Environmental Services,Environmental & Regulatory Services,105,Supplies and Services,504,Equipment,5023,Revenue,BUILDING MATERIALS.ELECTRICAL
29-JUN-2022,7013776,46.25,CITY ELECTRICAL FACTORS LTD,003739,Local Environmental Services,Environmental & Regulatory Services,105,Supplies and Services,504,Equipment,5023,Revenue,BUILDING MATERIALS.ELECTRICAL
29-JUN-2022,7013783,35,TIMPSON LTD,381002,Local Environmental Services,Environmental & Regulatory Services,105,Supplies and Services,504,Equipment,5023,Revenue,CLEANING & JANITORIAL.CLEANING SERVICE
29-JUN-2022,7013806,112.5,COTSWOLD OUTDOOR LTD,361364,Local Environmental Services,Environmental & Regulatory Services,105,Supplies and Services,504,Equipment,5023,Revenue,SPORTS & PLAYGROUND EQUIPMENT.SPORTS EQUIPMENT
29-JUN-2022,7013826,60.9,SCREWFIX,383257,Local Environmental Services,Environmental & Regulatory Services,105,Supplies and Services,504,Equipment,5023,Revenue,BUILDING MATERIALS.GENERAL MATERIALS
29-JUN-2022,7013733,-0.01,B & Q (205037),205037,Local Environmental Services,Environmental & Regulatory Services,105,Supplies and Services,504,Equipment,5023,Revenue,BUILDING MATERIALS.GENERAL MATERIALS
29-JUN-2022,7013733,47,B & Q (205037),205037,Local Environmental Services,Environmental & Regulatory Services,105,Supplies and Services,504,Equipment,5023,Revenue,BUILDING MATERIALS.GENERAL MATERIALS
29-JUN-2022,7013733,170.32,B & Q (205037),205037,Local Environmental Services,Environmental & Regulatory Services,105,Supplies and Services,504,Equipment,5023,Revenue,BUILDING MATERIALS.GENERAL MATERIALS
29-JUN-2022,7013764,28.42,ISSUU PUBLISHING,383654,Regeneration & Economic Development,Cultural & Related Services,104,Supplies and Services,504,Miscellaneous Expenses,5034,Revenue,SUBSCRIPTIONS & PUBLICATIONS.BOOKS & PUBLICATIONS
29-JUN-2022,7013825,0.01,AMAZON GENERAL PAYMENTS,375398,Regeneration & Economic Development,Planning Services ,110,Supplies and Services,504,Miscellaneous Expenses,5034,Revenue,EDUCATIONAL SUPPLIES.SUPPLIES
29-JUN-2022,7013825,11.3,AMAZON GENERAL PAYMENTS,375398,Regeneration & Economic Development,Planning Services ,110,Supplies and Services,504,Miscellaneous Expenses,5034,Revenue,EDUCATIONAL SUPPLIES.SUPPLIES
29-JUN-2022,7013825,16.66,AMAZON GENERAL PAYMENTS,375398,Regeneration & Economic Development,Planning Services ,110,Supplies and Services,504,Miscellaneous Expenses,5034,Revenue,EDUCATIONAL SUPPLIES.SUPPLIES
29-JUN-2022,7013825,22.48,AMAZON GENERAL PAYMENTS,375398,Regeneration & Economic Development,Planning Services ,110,Supplies and Services,504,Miscellaneous Expenses,5034,Revenue,EDUCATIONAL SUPPLIES.SUPPLIES
29-JUN-2022,7013744,167.5,DVLA,322925,Fleet Management,Unallocated,N/A,Transport,503,Direct Transport Costs,5016,Revenue,NON INFLUENCIBLE.NON INFLUENCIBLE
29-JUN-2022,7013744,167.5,DVLA,322925,Fleet Management,Unallocated,N/A,Transport,503,Direct Transport Costs,5016,Revenue,NON INFLUENCIBLE.NON INFLUENCIBLE
29-JUN-2022,7013744,167.5,DVLA,322925,Fleet Management,Unallocated,N/A,Transport,503,Direct Transport Costs,5016,Revenue,NON INFLUENCIBLE.NON INFLUENCIBLE
29-JUN-2022,7013744,167.5,DVLA,322925,Fleet Management,Unallocated,N/A,Transport,503,Direct Transport Costs,5016,Revenue,NON INFLUENCIBLE.NON INFLUENCIBLE
29-JUN-2022,7013744,167.5,DVLA,322925,Fleet Management,Unallocated,N/A,Transport,503,Direct Transport Costs,5016,Revenue,NON INFLUENCIBLE.NON INFLUENCIBLE
29-JUN-2022,7013744,167.5,DVLA,322925,Fleet Management,Unallocated,N/A,Transport,503,Direct Transport Costs,5016,Revenue,NON INFLUENCIBLE.NON INFLUENCIBLE
29-JUN-2022,7013744,167.5,DVLA,322925,Fleet Management,Unallocated,N/A,Transport,503,Direct Transport Costs,5016,Revenue,NON INFLUENCIBLE.NON INFLUENCIBLE
29-JUN-2022,7013744,292.5,DVLA,322925,Fleet Management,Unallocated,N/A,Transport,503,Direct Transport Costs,5016,Revenue,NON INFLUENCIBLE.NON INFLUENCIBLE
29-JUN-2022,7013744,292.5,DVLA,322925,Fleet Management,Unallocated,N/A,Transport,503,Direct Transport Costs,5016,Revenue,NON INFLUENCIBLE.NON INFLUENCIBLE
29-JUN-2022,7013744,292.5,DVLA,322925,Fleet Management,Unallocated,N/A,Transport,503,Direct Transport Costs,5016,Revenue,NON INFLUENCIBLE.NON INFLUENCIBLE
29-JUN-2022,7013744,292.5,DVLA,322925,Fleet Management,Unallocated,N/A,Transport,503,Direct Transport Costs,5016,Revenue,NON INFLUENCIBLE.NON INFLUENCIBLE
29-JUN-2022,7013744,292.5,DVLA,322925,Fleet Management,Unallocated,N/A,Transport,503,Direct Transport Costs,5016,Revenue,NON INFLUENCIBLE.NON INFLUENCIBLE
29-JUN-2022,7013744,292.5,DVLA,322925,Fleet Management,Unallocated,N/A,Transport,503,Direct Transport Costs,5016,Revenue,NON INFLUENCIBLE.NON INFLUENCIBLE
29-JUN-2022,7013744,297.5,DVLA,322925,Fleet Management,Unallocated,N/A,Transport,503,Direct Transport Costs,5016,Revenue,NON INFLUENCIBLE.NON INFLUENCIBLE
29-JUN-2022,7013744,302.5,DVLA,322925,Fleet Management,Unallocated,N/A,Transport,503,Direct Transport Costs,5016,Revenue,NON INFLUENCIBLE.NON INFLUENCIBLE
29-JUN-2022,7013736,159,TV LICENSING,014515,Commissioning & Asset Management,Unallocated,N/A,Third Party Payments,505,Private Contractors,5042,Revenue,SUBSCRIPTIONS & PUBLICATIONS.TV/RADIO LICENCES
29-JUN-2022,7013903,83.33,SMART PARKING,403208,Commissioning & Asset Management,Unallocated,N/A,Supplies and Services,504,Miscellaneous Expenses,5034,Revenue,NON INFLUENCIBLE.NON INFLUENCIBLE
29-JUN-2022,7013861,23.75,THE PINK CARNA,402320,"Health, Education, Care and Safeguarding",Adult Social Care,101,Supplies and Services,504,Miscellaneous Expenses,5034,Revenue,NON INFLUENCIBLE.INDIVIDUAL
29-JUN-2022,7013720,-17.84,BRAKES BROS LTD,358889,Local Environmental Services,Adult Social Care,101,Supplies and Services,504,Equipment,5023,Revenue,CATERING.FOOD & BEVERAGES
29-JUN-2022,7013720,-9.74,BRAKES BROS LTD,358889,Local Environmental Services,Adult Social Care,101,Supplies and Services,504,Equipment,5023,Revenue,CATERING.FOOD & BEVERAGES
29-JUN-2022,7013720,1.93,BRAKES BROS LTD,358889,Local Environmental Services,Adult Social Care,101,Supplies and Services,504,Equipment,5023,Revenue,CATERING.FOOD & BEVERAGES
29-JUN-2022,7013720,2.42,BRAKES BROS LTD,358889,Local Environmental Services,Adult Social Care,101,Supplies and Services,504,Equipment,5023,Revenue,CATERING.FOOD & BEVERAGES
29-JUN-2022,7013720,3.44,BRAKES BROS LTD,358889,Local Environmental Services,Adult Social Care,101,Supplies and Services,504,Equipment,5023,Revenue,CATERING.FOOD & BEVERAGES
29-JUN-2022,7013720,3.52,BRAKES BROS LTD,358889,Local Environmental Services,Adult Social Care,101,Supplies and Services,504,Equipment,5023,Revenue,CATERING.FOOD & BEVERAGES
29-JUN-2022,7013720,3.85,BRAKES BROS LTD,358889,Local Environmental Services,Adult Social Care,101,Supplies and Services,504,Equipment,5023,Revenue,CATERING.FOOD & BEVERAGES
29-JUN-2022,7013720,3.91,BRAKES BROS LTD,358889,Local Environmental Services,Adult Social Care,101,Supplies and Services,504,Equipment,5023,Revenue,CATERING.FOOD & BEVERAGES
29-JUN-2022,7013720,4.2,BRAKES BROS LTD,358889,Local Environmental Services,Adult Social Care,101,Supplies and Services,504,Equipment,5023,Revenue,CATERING.FOOD & BEVERAGES
29-JUN-2022,7013720,4.64,BRAKES BROS LTD,358889,Local Environmental Services,Adult Social Care,101,Supplies and Services,504,Equipment,5023,Revenue,CATERING.FOOD & BEVERAGES
29-JUN-2022,7013720,4.64,BRAKES BROS LTD,358889,Local Environmental Services,Adult Social Care,101,Supplies and Services,504,Equipment,5023,Revenue,CATERING.FOOD & BEVERAGES
29-JUN-2022,7013720,4.87,BRAKES BROS LTD,358889,Local Environmental Services,Adult Social Care,101,Supplies and Services,504,Equipment,5023,Revenue,CATERING.FOOD & BEVERAGES
29-JUN-2022,7013720,4.94,BRAKES BROS LTD,358889,Local Environmental Services,Adult Social Care,101,Supplies and Services,504,Equipment,5023,Revenue,CATERING.FOOD & BEVERAGES
29-JUN-2022,7013720,4.94,BRAKES BROS LTD,358889,Local Environmental Services,Adult Social Care,101,Supplies and Services,504,Equipment,5023,Revenue,CATERING.FOOD & BEVERAGES
29-JUN-2022,7013720,5.17,BRAKES BROS LTD,358889,Local Environmental Services,Adult Social Care,101,Supplies and Services,504,Equipment,5023,Revenue,CATERING.FOOD & BEVERAGES
29-JUN-2022,7013720,5.24,BRAKES BROS LTD,358889,Local Environmental Services,Adult Social Care,101,Supplies and Services,504,Equipment,5023,Revenue,CATERING.FOOD & BEVERAGES
29-JUN-2022,7013720,5.77,BRAKES BROS LTD,358889,Local Environmental Services,Adult Social Care,101,Supplies and Services,504,Equipment,5023,Revenue,CATERING.FOOD & BEVERAGES
29-JUN-2022,7013720,5.92,BRAKES BROS LTD,358889,Local Environmental Services,Adult Social Care,101,Supplies and Services,504,Equipment,5023,Revenue,CATERING.FOOD & BEVERAGES
29-JUN-2022,7013720,5.92,BRAKES BROS LTD,358889,Local Environmental Services,Adult Social Care,101,Supplies and Services,504,Equipment,5023,Revenue,CATERING.FOOD & BEVERAGES
29-JUN-2022,7013720,6.09,BRAKES BROS LTD,358889,Local Environmental Services,Adult Social Care,101,Supplies and Services,504,Equipment,5023,Revenue,CATERING.FOOD & BEVERAGES
29-JUN-2022,7013720,6.2,BRAKES BROS LTD,358889,Local Environmental Services,Adult Social Care,101,Supplies and Services,504,Equipment,5023,Revenue,CATERING.FOOD & BEVERAGES
29-JUN-2022,7013720,6.22,BRAKES BROS LTD,358889,Local Environmental Services,Adult Social Care,101,Supplies and Services,504,Equipment,5023,Revenue,CATERING.FOOD & BEVERAGES
29-JUN-2022,7013720,6.82,BRAKES BROS LTD,358889,Local Environmental Services,Adult Social Care,101,Supplies and Services,504,Equipment,5023,Revenue,CATERING.FOOD & BEVERAGES
29-JUN-2022,7013720,7.03,BRAKES BROS LTD,358889,Local Environmental Services,Adult Social Care,101,Supplies and Services,504,Equipment,5023,Revenue,CATERING.FOOD & BEVERAGES
29-JUN-2022,7013720,7.03,BRAKES BROS LTD,358889,Local Environmental Services,Adult Social Care,101,Supplies and Services,504,Equipment,5023,Revenue,CATERING.FOOD & BEVERAGES
29-JUN-2022,7013720,7.18,BRAKES BROS LTD,358889,Local Environmental Services,Adult Social Care,101,Supplies and Services,504,Equipment,5023,Revenue,CATERING.FOOD & BEVERAGES
29-JUN-2022,7013720,7.27,BRAKES BROS LTD,358889,Local Environmental Services,Adult Social Care,101,Supplies and Services,504,Equipment,5023,Revenue,CATERING.FOOD & BEVERAGES
29-JUN-2022,7013720,7.34,BRAKES BROS LTD,358889,Local Environmental Services,Adult Social Care,101,Supplies and Services,504,Equipment,5023,Revenue,CATERING.FOOD & BEVERAGES
29-JUN-2022,7013720,7.34,BRAKES BROS LTD,358889,Local Environmental Services,Adult Social Care,101,Supplies and Services,504,Equipment,5023,Revenue,CATERING.FOOD & BEVERAGES
29-JUN-2022,7013720,7.57,BRAKES BROS LTD,358889,Local Environmental Services,Adult Social Care,101,Supplies and Services,504,Equipment,5023,Revenue,CATERING.FOOD & BEVERAGES
29-JUN-2022,7013720,7.57,BRAKES BROS LTD,358889,Local Environmental Services,Adult Social Care,101,Supplies and Services,504,Equipment,5023,Revenue,CATERING.FOOD & BEVERAGES
29-JUN-2022,7013720,7.64,BRAKES BROS LTD,358889,Local Environmental Services,Adult Social Care,101,Supplies and Services,504,Equipment,5023,Revenue,CATERING.FOOD & BEVERAGES
29-JUN-2022,7013720,7.79,BRAKES BROS LTD,358889,Local Environmental Services,Adult Social Care,101,Supplies and Services,504,Equipment,5023,Revenue,CATERING.FOOD & BEVERAGES
29-JUN-2022,7013720,7.94,BRAKES BROS LTD,358889,Local Environmental Services,Adult Social Care,101,Supplies and Services,504,Equipment,5023,Revenue,CATERING.FOOD & BEVERAGES
29-JUN-2022,7013720,7.94,BRAKES BROS LTD,358889,Local Environmental Services,Adult Social Care,101,Supplies and Services,504,Equipment,5023,Revenue,CATERING.FOOD & BEVERAGES
29-JUN-2022,7013720,7.94,BRAKES BROS LTD,358889,Local Environmental Services,Adult Social Care,101,Supplies and Services,504,Equipment,5023,Revenue,CATERING.FOOD & BEVERAGES
29-JUN-2022,7013720,8.39,BRAKES BROS LTD,358889,Local Environmental Services,Adult Social Care,101,Supplies and Services,504,Equipment,5023,Revenue,CATERING.FOOD & BEVERAGES
29-JUN-2022,7013720,8.39,BRAKES BROS LTD,358889,Local Environmental Services,Adult Social Care,101,Supplies and Services,504,Equipment,5023,Revenue,CATERING.FOOD & BEVERAGES
29-JUN-2022,7013720,8.39,BRAKES BROS LTD,358889,Local Environmental Services,Adult Social Care,101,Supplies and Services,504,Equipment,5023,Revenue,CATERING.FOOD & BEVERAGES
29-JUN-2022,7013720,8.47,BRAKES BROS LTD,358889,Local Environmental Services,Adult Social Care,101,Supplies and Services,504,Equipment,5023,Revenue,CATERING.FOOD & BEVERAGES
29-JUN-2022,7013720,8.47,BRAKES BROS LTD,358889,Local Environmental Services,Adult Social Care,101,Supplies and Services,504,Equipment,5023,Revenue,CATERING.FOOD & BEVERAGES
29-JUN-2022,7013720,8.77,BRAKES BROS LTD,358889,Local Environmental Services,Adult Social Care,101,Supplies and Services,504,Equipment,5023,Revenue,CATERING.FOOD & BEVERAGES
29-JUN-2022,7013720,9.14,BRAKES BROS LTD,358889,Local Environmental Services,Adult Social Care,101,Supplies and Services,504,Equipment,5023,Revenue,CATERING.FOOD & BEVERAGES
29-JUN-2022,7013720,9.14,BRAKES BROS LTD,358889,Local Environmental Services,Adult Social Care,101,Supplies and Services,504,Equipment,5023,Revenue,CATERING.FOOD & BEVERAGES
29-JUN-2022,7013720,9.14,BRAKES BROS LTD,358889,Local Environmental Services,Adult Social Care,101,Supplies and Services,504,Equipment,5023,Revenue,CATERING.FOOD & BEVERAGES
29-JUN-2022,7013720,9.28,BRAKES BROS LTD,358889,Local Environmental Services,Adult Social Care,101,Supplies and Services,504,Equipment,5023,Revenue,CATERING.FOOD & BEVERAGES
29-JUN-2022,7013720,9.28,BRAKES BROS LTD,358889,Local Environmental Services,Adult Social Care,101,Supplies and Services,504,Equipment,5023,Revenue,CATERING.FOOD & BEVERAGES
29-JUN-2022,7013720,9.69,BRAKES BROS LTD,358889,Local Environmental Services,Adult Social Care,101,Supplies and Services,504,Equipment,5023,Revenue,CATERING.FOOD & BEVERAGES
29-JUN-2022,7013720,9.69,BRAKES BROS LTD,358889,Local Environmental Services,Adult Social Care,101,Supplies and Services,504,Equipment,5023,Revenue,CATERING.FOOD & BEVERAGES
29-JUN-2022,7013720,9.74,BRAKES BROS LTD,358889,Local Environmental Services,Adult Social Care,101,Supplies and Services,504,Equipment,5023,Revenue,CATERING.FOOD & BEVERAGES
29-JUN-2022,7013720,9.74,BRAKES BROS LTD,358889,Local Environmental Services,Adult Social Care,101,Supplies and Services,504,Equipment,5023,Revenue,CATERING.FOOD & BEVERAGES
29-JUN-2022,7013720,9.88,BRAKES BROS LTD,358889,Local Environmental Services,Adult Social Care,101,Supplies and Services,504,Equipment,5023,Revenue,CATERING.FOOD & BEVERAGES
29-JUN-2022,7013720,9.89,BRAKES BROS LTD,358889,Local Environmental Services,Adult Social Care,101,Supplies and Services,504,Equipment,5023,Revenue,CATERING.FOOD & BEVERAGES
29-JUN-2022,7013720,9.97,BRAKES BROS LTD,358889,Local Environmental Services,Adult Social Care,101,Supplies and Services,504,Equipment,5023,Revenue,CATERING.FOOD & BEVERAGES
29-JUN-2022,7013720,10.12,BRAKES BROS LTD,358889,Local Environmental Services,Adult Social Care,101,Supplies and Services,504,Equipment,5023,Revenue,CATERING.FOOD & BEVERAGES
29-JUN-2022,7013720,10.25,BRAKES BROS LTD,358889,Local Environmental Services,Adult Social Care,101,Supplies and Services,504,Equipment,5023,Revenue,CATERING.FOOD & BEVERAGES
29-JUN-2022,7013720,10.42,BRAKES BROS LTD,358889,Local Environmental Services,Adult Social Care,101,Supplies and Services,504,Equipment,5023,Revenue,CATERING.FOOD & BEVERAGES
29-JUN-2022,7013720,10.42,BRAKES BROS LTD,358889,Local Environmental Services,Adult Social Care,101,Supplies and Services,504,Equipment,5023,Revenue,CATERING.FOOD & BEVERAGES
29-JUN-2022,7013720,10.42,BRAKES BROS LTD,358889,Local Environmental Services,Adult Social Care,101,Supplies and Services,504,Equipment,5023,Revenue,CATERING.FOOD & BEVERAGES
29-JUN-2022,7013720,10.42,BRAKES BROS LTD,358889,Local Environmental Services,Adult Social Care,101,Supplies and Services,504,Equipment,5023,Revenue,CATERING.FOOD & BEVERAGES
29-JUN-2022,7013720,10.49,BRAKES BROS LTD,358889,Local Environmental Services,Adult Social Care,101,Supplies and Services,504,Equipment,5023,Revenue,CATERING.FOOD & BEVERAGES
29-JUN-2022,7013720,10.49,BRAKES BROS LTD,358889,Local Environmental Services,Adult Social Care,101,Supplies and Services,504,Equipment,5023,Revenue,CATERING.FOOD & BEVERAGES
29-JUN-2022,7013720,10.49,BRAKES BROS LTD,358889,Local Environmental Services,Adult Social Care,101,Supplies and Services,504,Equipment,5023,Revenue,CATERING.FOOD & BEVERAGES
29-JUN-2022,7013720,10.49,BRAKES BROS LTD,358889,Local Environmental Services,Adult Social Care,101,Supplies and Services,504,Equipment,5023,Revenue,CATERING.FOOD & BEVERAGES
29-JUN-2022,7013720,10.64,BRAKES BROS LTD,358889,Local Environmental Services,Adult Social Care,101,Supplies and Services,504,Equipment,5023,Revenue,CATERING.FOOD & BEVERAGES
29-JUN-2022,7013720,10.64,BRAKES BROS LTD,358889,Local Environmental Services,Adult Social Care,101,Supplies and Services,504,Equipment,5023,Revenue,CATERING.FOOD & BEVERAGES
29-JUN-2022,7013720,10.69,BRAKES BROS LTD,358889,Local Environmental Services,Adult Social Care,101,Supplies and Services,504,Equipment,5023,Revenue,CATERING.FOOD & BEVERAGES
29-JUN-2022,7013720,10.79,BRAKES BROS LTD,358889,Local Environmental Services,Adult Social Care,101,Supplies and Services,504,Equipment,5023,Revenue,CATERING.FOOD & BEVERAGES
29-JUN-2022,7013720,11.32,BRAKES BROS LTD,358889,Local Environmental Services,Adult Social Care,101,Supplies and Services,504,Equipment,5023,Revenue,CATERING.FOOD & BEVERAGES
29-JUN-2022,7013720,11.75,BRAKES BROS LTD,358889,Local Environmental Services,Adult Social Care,101,Supplies and Services,504,Equipment,5023,Revenue,CATERING.FOOD & BEVERAGES
29-JUN-2022,7013720,12.07,BRAKES BROS LTD,358889,Local Environmental Services,Adult Social Care,101,Supplies and Services,504,Equipment,5023,Revenue,CATERING.FOOD & BEVERAGES
29-JUN-2022,7013720,12.09,BRAKES BROS LTD,358889,Local Environmental Services,Adult Social Care,101,Supplies and Services,504,Equipment,5023,Revenue,CATERING.FOOD & BEVERAGES
29-JUN-2022,7013720,12.22,BRAKES BROS LTD,358889,Local Environmental Services,Adult Social Care,101,Supplies and Services,504,Equipment,5023,Revenue,CATERING.FOOD & BEVERAGES
29-JUN-2022,7013720,12.29,BRAKES BROS LTD,358889,Local Environmental Services,Adult Social Care,101,Supplies and Services,504,Equipment,5023,Revenue,CATERING.FOOD & BEVERAGES
29-JUN-2022,7013720,12.37,BRAKES BROS LTD,358889,Local Environmental Services,Adult Social Care,101,Supplies and Services,504,Equipment,5023,Revenue,CATERING.FOOD & BEVERAGES
29-JUN-2022,7013720,12.37,BRAKES BROS LTD,358889,Local Environmental Services,Adult Social Care,101,Supplies and Services,504,Equipment,5023,Revenue,CATERING.FOOD & BEVERAGES
29-JUN-2022,7013720,12.37,BRAKES BROS LTD,358889,Local Environmental Services,Adult Social Care,101,Supplies and Services,504,Equipment,5023,Revenue,CATERING.FOOD & BEVERAGES
29-JUN-2022,7013720,12.37,BRAKES BROS LTD,358889,Local Environmental Services,Adult Social Care,101,Supplies and Services,504,Equipment,5023,Revenue,CATERING.FOOD & BEVERAGES
29-JUN-2022,7013720,12.52,BRAKES BROS LTD,358889,Local Environmental Services,Adult Social Care,101,Supplies and Services,504,Equipment,5023,Revenue,CATERING.FOOD & BEVERAGES
29-JUN-2022,7013720,12.52,BRAKES BROS LTD,358889,Local Environmental Services,Adult Social Care,101,Supplies and Services,504,Equipment,5023,Revenue,CATERING.FOOD & BEVERAGES
29-JUN-2022,7013720,12.52,BRAKES BROS LTD,358889,Local Environmental Services,Adult Social Care,101,Supplies and Services,504,Equipment,5023,Revenue,CATERING.FOOD & BEVERAGES
29-JUN-2022,7013720,12.97,BRAKES BROS LTD,358889,Local Environmental Services,Adult Social Care,101,Supplies and Services,504,Equipment,5023,Revenue,CATERING.FOOD & BEVERAGES
29-JUN-2022,7013720,13.19,BRAKES BROS LTD,358889,Local Environmental Services,Adult Social Care,101,Supplies and Services,504,Equipment,5023,Revenue,CATERING.FOOD & BEVERAGES
29-JUN-2022,7013720,13.19,BRAKES BROS LTD,358889,Local Environmental Services,Adult Social Care,101,Supplies and Services,504,Equipment,5023,Revenue,CATERING.FOOD & BEVERAGES
29-JUN-2022,7013720,13.6,BRAKES BROS LTD,358889,Local Environmental Services,Adult Social Care,101,Supplies and Services,504,Equipment,5023,Revenue,CATERING.FOOD & BEVERAGES
29-JUN-2022,7013720,14.2,BRAKES BROS LTD,358889,Local Environmental Services,Adult Social Care,101,Supplies and Services,504,Equipment,5023,Revenue,CATERING.FOOD & BEVERAGES
29-JUN-2022,7013720,14.24,BRAKES BROS LTD,358889,Local Environmental Services,Adult Social Care,101,Supplies and Services,504,Equipment,5023,Revenue,CATERING.FOOD & BEVERAGES
29-JUN-2022,7013720,14.24,BRAKES BROS LTD,358889,Local Environmental Services,Adult Social Care,101,Supplies and Services,504,Equipment,5023,Revenue,CATERING.FOOD & BEVERAGES
29-JUN-2022,7013720,14.69,BRAKES BROS LTD,358889,Local Environmental Services,Adult Social Care,101,Supplies and Services,504,Equipment,5023,Revenue,CATERING.FOOD & BEVERAGES
29-JUN-2022,7013720,15.58,BRAKES BROS LTD,358889,Local Environmental Services,Adult Social Care,101,Supplies and Services,504,Equipment,5023,Revenue,CATERING.FOOD & BEVERAGES
29-JUN-2022,7013720,15.58,BRAKES BROS LTD,358889,Local Environmental Services,Adult Social Care,101,Supplies and Services,504,Equipment,5023,Revenue,CATERING.FOOD & BEVERAGES
29-JUN-2022,7013720,15.59,BRAKES BROS LTD,358889,Local Environmental Services,Adult Social Care,101,Supplies and Services,504,Equipment,5023,Revenue,CATERING.FOOD & BEVERAGES
29-JUN-2022,7013720,15.59,BRAKES BROS LTD,358889,Local Environmental Services,Adult Social Care,101,Supplies and Services,504,Equipment,5023,Revenue,CATERING.FOOD & BEVERAGES
29-JUN-2022,7013720,16.64,BRAKES BROS LTD,358889,Local Environmental Services,Adult Social Care,101,Supplies and Services,504,Equipment,5023,Revenue,CATERING.FOOD & BEVERAGES
29-JUN-2022,7013720,16.77,BRAKES BROS LTD,358889,Local Environmental Services,Adult Social Care,101,Supplies and Services,504,Equipment,5023,Revenue,CATERING.FOOD & BEVERAGES
29-JUN-2022,7013720,16.77,BRAKES BROS LTD,358889,Local Environmental Services,Adult Social Care,101,Supplies and Services,504,Equipment,5023,Revenue,CATERING.FOOD & BEVERAGES
29-JUN-2022,7013720,16.77,BRAKES BROS LTD,358889,Local Environmental Services,Adult Social Care,101,Supplies and Services,504,Equipment,5023,Revenue,CATERING.FOOD & BEVERAGES
29-JUN-2022,7013720,17.84,BRAKES BROS LTD,358889,Local Environmental Services,Adult Social Care,101,Supplies and Services,504,Equipment,5023,Revenue,CATERING.FOOD & BEVERAGES
29-JUN-2022,7013720,17.84,BRAKES BROS LTD,358889,Local Environmental Services,Adult Social Care,101,Supplies and Services,504,Equipment,5023,Revenue,CATERING.FOOD & BEVERAGES
29-JUN-2022,7013720,17.84,BRAKES BROS LTD,358889,Local Environmental Services,Adult Social Care,101,Supplies and Services,504,Equipment,5023,Revenue,CATERING.FOOD & BEVERAGES
29-JUN-2022,7013720,18,BRAKES BROS LTD,358889,Local Environmental Services,Adult Social Care,101,Supplies and Services,504,Equipment,5023,Revenue,CATERING.FOOD & BEVERAGES
29-JUN-2022,7013720,18.28,BRAKES BROS LTD,358889,Local Environmental Services,Adult Social Care,101,Supplies and Services,504,Equipment,5023,Revenue,CATERING.FOOD & BEVERAGES
29-JUN-2022,7013720,18.28,BRAKES BROS LTD,358889,Local Environmental Services,Adult Social Care,101,Supplies and Services,504,Equipment,5023,Revenue,CATERING.FOOD & BEVERAGES
29-JUN-2022,7013720,18.28,BRAKES BROS LTD,358889,Local Environmental Services,Adult Social Care,101,Supplies and Services,504,Equipment,5023,Revenue,CATERING.FOOD & BEVERAGES
29-JUN-2022,7013720,19.63,BRAKES BROS LTD,358889,Local Environmental Services,Adult Social Care,101,Supplies and Services,504,Equipment,5023,Revenue,CATERING.FOOD & BEVERAGES
29-JUN-2022,7013720,19.63,BRAKES BROS LTD,358889,Local Environmental Services,Adult Social Care,101,Supplies and Services,504,Equipment,5023,Revenue,CATERING.FOOD & BEVERAGES
29-JUN-2022,7013720,19.87,BRAKES BROS LTD,358889,Local Environmental Services,Adult Social Care,101,Supplies and Services,504,Equipment,5023,Revenue,CATERING.FOOD & BEVERAGES
29-JUN-2022,7013720,20,BRAKES BROS LTD,358889,Local Environmental Services,Adult Social Care,101,Supplies and Services,504,Equipment,5023,Revenue,CATERING.FOOD & BEVERAGES
29-JUN-2022,7013720,20.09,BRAKES BROS LTD,358889,Local Environmental Services,Adult Social Care,101,Supplies and Services,504,Equipment,5023,Revenue,CATERING.FOOD & BEVERAGES
29-JUN-2022,7013720,20.47,BRAKES BROS LTD,358889,Local Environmental Services,Adult Social Care,101,Supplies and Services,504,Equipment,5023,Revenue,CATERING.FOOD & BEVERAGES
29-JUN-2022,7013720,20.83,BRAKES BROS LTD,358889,Local Environmental Services,Adult Social Care,101,Supplies and Services,504,Equipment,5023,Revenue,CATERING.FOOD & BEVERAGES
29-JUN-2022,7013720,20.84,BRAKES BROS LTD,358889,Local Environmental Services,Adult Social Care,101,Supplies and Services,504,Equipment,5023,Revenue,CATERING.FOOD & BEVERAGES
29-JUN-2022,7013720,20.84,BRAKES BROS LTD,358889,Local Environmental Services,Adult Social Care,101,Supplies and Services,504,Equipment,5023,Revenue,CATERING.FOOD & BEVERAGES
29-JUN-2022,7013720,20.84,BRAKES BROS LTD,358889,Local Environmental Services,Adult Social Care,101,Supplies and Services,504,Equipment,5023,Revenue,CATERING.FOOD & BEVERAGES
29-JUN-2022,7013720,20.98,BRAKES BROS LTD,358889,Local Environmental Services,Adult Social Care,101,Supplies and Services,504,Equipment,5023,Revenue,CATERING.FOOD & BEVERAGES
29-JUN-2022,7013720,21.38,BRAKES BROS LTD,358889,Local Environmental Services,Adult Social Care,101,Supplies and Services,504,Equipment,5023,Revenue,CATERING.FOOD & BEVERAGES
29-JUN-2022,7013720,21.58,BRAKES BROS LTD,358889,Local Environmental Services,Adult Social Care,101,Supplies and Services,504,Equipment,5023,Revenue,CATERING.FOOD & BEVERAGES
29-JUN-2022,7013720,21.97,BRAKES BROS LTD,358889,Local Environmental Services,Adult Social Care,101,Supplies and Services,504,Equipment,5023,Revenue,CATERING.FOOD & BEVERAGES
29-JUN-2022,7013720,21.97,BRAKES BROS LTD,358889,Local Environmental Services,Adult Social Care,101,Supplies and Services,504,Equipment,5023,Revenue,CATERING.FOOD & BEVERAGES
29-JUN-2022,7013720,22.49,BRAKES BROS LTD,358889,Local Environmental Services,Adult Social Care,101,Supplies and Services,504,Equipment,5023,Revenue,CATERING.FOOD & BEVERAGES
29-JUN-2022,7013720,22.49,BRAKES BROS LTD,358889,Local Environmental Services,Adult Social Care,101,Supplies and Services,504,Equipment,5023,Revenue,CATERING.FOOD & BEVERAGES
29-JUN-2022,7013720,22.49,BRAKES BROS LTD,358889,Local Environmental Services,Adult Social Care,101,Supplies and Services,504,Equipment,5023,Revenue,CATERING.FOOD & BEVERAGES
29-JUN-2022,7013720,23.38,BRAKES BROS LTD,358889,Local Environmental Services,Adult Social Care,101,Supplies and Services,504,Equipment,5023,Revenue,CATERING.FOOD & BEVERAGES
29-JUN-2022,7013720,24.18,BRAKES BROS LTD,358889,Local Environmental Services,Adult Social Care,101,Supplies and Services,504,Equipment,5023,Revenue,CATERING.FOOD & BEVERAGES
29-JUN-2022,7013720,24.29,BRAKES BROS LTD,358889,Local Environmental Services,Adult Social Care,101,Supplies and Services,504,Equipment,5023,Revenue,CATERING.FOOD & BEVERAGES
29-JUN-2022,7013720,24.29,BRAKES BROS LTD,358889,Local Environmental Services,Adult Social Care,101,Supplies and Services,504,Equipment,5023,Revenue,CATERING.FOOD & BEVERAGES
29-JUN-2022,7013720,25.15,BRAKES BROS LTD,358889,Local Environmental Services,Adult Social Care,101,Supplies and Services,504,Equipment,5023,Revenue,CATERING.FOOD & BEVERAGES
29-JUN-2022,7013720,25.15,BRAKES BROS LTD,358889,Local Environmental Services,Adult Social Care,101,Supplies and Services,504,Equipment,5023,Revenue,CATERING.FOOD & BEVERAGES
29-JUN-2022,7013720,25.18,BRAKES BROS LTD,358889,Local Environmental Services,Adult Social Care,101,Supplies and Services,504,Equipment,5023,Revenue,CATERING.FOOD & BEVERAGES
29-JUN-2022,7013720,25.93,BRAKES BROS LTD,358889,Local Environmental Services,Adult Social Care,101,Supplies and Services,504,Equipment,5023,Revenue,CATERING.FOOD & BEVERAGES
29-JUN-2022,7013720,26.08,BRAKES BROS LTD,358889,Local Environmental Services,Adult Social Care,101,Supplies and Services,504,Equipment,5023,Revenue,CATERING.FOOD & BEVERAGES
29-JUN-2022,7013720,26.08,BRAKES BROS LTD,358889,Local Environmental Services,Adult Social Care,101,Supplies and Services,504,Equipment,5023,Revenue,CATERING.FOOD & BEVERAGES
29-JUN-2022,7013720,26.09,BRAKES BROS LTD,358889,Local Environmental Services,Adult Social Care,101,Supplies and Services,504,Equipment,5023,Revenue,CATERING.FOOD & BEVERAGES
29-JUN-2022,7013720,26.09,BRAKES BROS LTD,358889,Local Environmental Services,Adult Social Care,101,Supplies and Services,504,Equipment,5023,Revenue,CATERING.FOOD & BEVERAGES
29-JUN-2022,7013720,26.09,BRAKES BROS LTD,358889,Local Environmental Services,Adult Social Care,101,Supplies and Services,504,Equipment,5023,Revenue,CATERING.FOOD & BEVERAGES
29-JUN-2022,7013720,26.09,BRAKES BROS LTD,358889,Local Environmental Services,Adult Social Care,101,Supplies and Services,504,Equipment,5023,Revenue,CATERING.FOOD & BEVERAGES
29-JUN-2022,7013720,26.47,BRAKES BROS LTD,358889,Local Environmental Services,Adult Social Care,101,Supplies and Services,504,Equipment,5023,Revenue,CATERING.FOOD & BEVERAGES
29-JUN-2022,7013720,26.47,BRAKES BROS LTD,358889,Local Environmental Services,Adult Social Care,101,Supplies and Services,504,Equipment,5023,Revenue,CATERING.FOOD & BEVERAGES
29-JUN-2022,7013720,26.47,BRAKES BROS LTD,358889,Local Environmental Services,Adult Social Care,101,Supplies and Services,504,Equipment,5023,Revenue,CATERING.FOOD & BEVERAGES
29-JUN-2022,7013720,29.23,BRAKES BROS LTD,358889,Local Environmental Services,Adult Social Care,101,Supplies and Services,504,Equipment,5023,Revenue,CATERING.FOOD & BEVERAGES
29-JUN-2022,7013720,29.97,BRAKES BROS LTD,358889,Local Environmental Services,Adult Social Care,101,Supplies and Services,504,Equipment,5023,Revenue,CATERING.FOOD & BEVERAGES
29-JUN-2022,7013720,31,BRAKES BROS LTD,358889,Local Environmental Services,Adult Social Care,101,Supplies and Services,504,Equipment,5023,Revenue,CATERING.FOOD & BEVERAGES
29-JUN-2022,7013720,31,BRAKES BROS LTD,358889,Local Environmental Services,Adult Social Care,101,Supplies and Services,504,Equipment,5023,Revenue,CATERING.FOOD & BEVERAGES
29-JUN-2022,7013720,31,BRAKES BROS LTD,358889,Local Environmental Services,Adult Social Care,101,Supplies and Services,504,Equipment,5023,Revenue,CATERING.FOOD & BEVERAGES
29-JUN-2022,7013720,31,BRAKES BROS LTD,358889,Local Environmental Services,Adult Social Care,101,Supplies and Services,504,Equipment,5023,Revenue,CATERING.FOOD & BEVERAGES
29-JUN-2022,7013720,31,BRAKES BROS LTD,358889,Local Environmental Services,Adult Social Care,101,Supplies and Services,504,Equipment,5023,Revenue,CATERING.FOOD & BEVERAGES
29-JUN-2022,7013720,31.48,BRAKES BROS LTD,358889,Local Environmental Services,Adult Social Care,101,Supplies and Services,504,Equipment,5023,Revenue,CATERING.FOOD & BEVERAGES
29-JUN-2022,7013720,32.28,BRAKES BROS LTD,358889,Local Environmental Services,Adult Social Care,101,Supplies and Services,504,Equipment,5023,Revenue,CATERING.FOOD & BEVERAGES
29-JUN-2022,7013720,32.83,BRAKES BROS LTD,358889,Local Environmental Services,Adult Social Care,101,Supplies and Services,504,Equipment,5023,Revenue,CATERING.FOOD & BEVERAGES
29-JUN-2022,7013720,35.25,BRAKES BROS LTD,358889,Local Environmental Services,Adult Social Care,101,Supplies and Services,504,Equipment,5023,Revenue,CATERING.FOOD & BEVERAGES
29-JUN-2022,7013720,35.25,BRAKES BROS LTD,358889,Local Environmental Services,Adult Social Care,101,Supplies and Services,504,Equipment,5023,Revenue,CATERING.FOOD & BEVERAGES
29-JUN-2022,7013720,35.64,BRAKES BROS LTD,358889,Local Environmental Services,Adult Social Care,101,Supplies and Services,504,Equipment,5023,Revenue,CATERING.FOOD & BEVERAGES
29-JUN-2022,7013720,36.17,BRAKES BROS LTD,358889,Local Environmental Services,Adult Social Care,101,Supplies and Services,504,Equipment,5023,Revenue,CATERING.FOOD & BEVERAGES
29-JUN-2022,7013720,36.54,BRAKES BROS LTD,358889,Local Environmental Services,Adult Social Care,101,Supplies and Services,504,Equipment,5023,Revenue,CATERING.FOOD & BEVERAGES
29-JUN-2022,7013720,36.54,BRAKES BROS LTD,358889,Local Environmental Services,Adult Social Care,101,Supplies and Services,504,Equipment,5023,Revenue,CATERING.FOOD & BEVERAGES
29-JUN-2022,7013720,36.54,BRAKES BROS LTD,358889,Local Environmental Services,Adult Social Care,101,Supplies and Services,504,Equipment,5023,Revenue,CATERING.FOOD & BEVERAGES
29-JUN-2022,7013720,41.19,BRAKES BROS LTD,358889,Local Environmental Services,Adult Social Care,101,Supplies and Services,504,Equipment,5023,Revenue,CATERING.FOOD & BEVERAGES
29-JUN-2022,7013720,41.34,BRAKES BROS LTD,358889,Local Environmental Services,Adult Social Care,101,Supplies and Services,504,Equipment,5023,Revenue,CATERING.FOOD & BEVERAGES
29-JUN-2022,7013720,41.34,BRAKES BROS LTD,358889,Local Environmental Services,Adult Social Care,101,Supplies and Services,504,Equipment,5023,Revenue,CATERING.FOOD & BEVERAGES
29-JUN-2022,7013720,41.68,BRAKES BROS LTD,358889,Local Environmental Services,Adult Social Care,101,Supplies and Services,504,Equipment,5023,Revenue,CATERING.FOOD & BEVERAGES
29-JUN-2022,7013720,44.98,BRAKES BROS LTD,358889,Local Environmental Services,Adult Social Care,101,Supplies and Services,504,Equipment,5023,Revenue,CATERING.FOOD & BEVERAGES
29-JUN-2022,7013720,45.32,BRAKES BROS LTD,358889,Local Environmental Services,Adult Social Care,101,Supplies and Services,504,Equipment,5023,Revenue,CATERING.FOOD & BEVERAGES
29-JUN-2022,7013720,51.67,BRAKES BROS LTD,358889,Local Environmental Services,Adult Social Care,101,Supplies and Services,504,Equipment,5023,Revenue,CATERING.FOOD & BEVERAGES
29-JUN-2022,7013720,52.93,BRAKES BROS LTD,358889,Local Environmental Services,Adult Social Care,101,Supplies and Services,504,Equipment,5023,Revenue,CATERING.FOOD & BEVERAGES
29-JUN-2022,7013720,52.93,BRAKES BROS LTD,358889,Local Environmental Services,Adult Social Care,101,Supplies and Services,504,Equipment,5023,Revenue,CATERING.FOOD & BEVERAGES
29-JUN-2022,7013720,82.38,BRAKES BROS LTD,358889,Local Environmental Services,Adult Social Care,101,Supplies and Services,504,Equipment,5023,Revenue,CATERING.FOOD & BEVERAGES
29-JUN-2022,7013720,82.38,BRAKES BROS LTD,358889,Local Environmental Services,Adult Social Care,101,Supplies and Services,504,Equipment,5023,Revenue,CATERING.FOOD & BEVERAGES
29-JUN-2022,7013720,82.38,BRAKES BROS LTD,358889,Local Environmental Services,Adult Social Care,101,Supplies and Services,504,Equipment,5023,Revenue,CATERING.FOOD & BEVERAGES
29-JUN-2022,7013726,-0.01,ASDA STORES LIMITED,306530,Local Environmental Services,Adult Social Care,101,Supplies and Services,504,Equipment,5023,Revenue,CATERING.FOOD & BEVERAGES
29-JUN-2022,7013726,1.82,ASDA STORES LIMITED,306530,Local Environmental Services,Adult Social Care,101,Supplies and Services,504,Equipment,5023,Revenue,CATERING.FOOD & BEVERAGES
29-JUN-2022,7013726,1.92,ASDA STORES LIMITED,306530,Local Environmental Services,Adult Social Care,101,Supplies and Services,504,Equipment,5023,Revenue,CATERING.FOOD & BEVERAGES
29-JUN-2022,7013726,3.57,ASDA STORES LIMITED,306530,Local Environmental Services,Adult Social Care,101,Supplies and Services,504,Equipment,5023,Revenue,CATERING.FOOD & BEVERAGES
29-JUN-2022,7013726,4.25,ASDA STORES LIMITED,306530,Local Environmental Services,Adult Social Care,101,Supplies and Services,504,Equipment,5023,Revenue,CATERING.FOOD & BEVERAGES
29-JUN-2022,7013726,5.04,ASDA STORES LIMITED,306530,Local Environmental Services,Adult Social Care,101,Supplies and Services,504,Equipment,5023,Revenue,CATERING.FOOD & BEVERAGES
29-JUN-2022,7013726,5.23,ASDA STORES LIMITED,306530,Local Environmental Services,Adult Social Care,101,Supplies and Services,504,Equipment,5023,Revenue,CATERING.FOOD & BEVERAGES
29-JUN-2022,7013726,6.2,ASDA STORES LIMITED,306530,Local Environmental Services,Adult Social Care,101,Supplies and Services,504,Equipment,5023,Revenue,CATERING.FOOD & BEVERAGES
29-JUN-2022,7013726,6.5,ASDA STORES LIMITED,306530,Local Environmental Services,Adult Social Care,101,Supplies and Services,504,Equipment,5023,Revenue,CATERING.FOOD & BEVERAGES
29-JUN-2022,7013726,7.5,ASDA STORES LIMITED,306530,Local Environmental Services,Adult Social Care,101,Supplies and Services,504,Equipment,5023,Revenue,CATERING.FOOD & BEVERAGES
29-JUN-2022,7013726,12.95,ASDA STORES LIMITED,306530,Local Environmental Services,Adult Social Care,101,Supplies and Services,504,Equipment,5023,Revenue,CATERING.FOOD & BEVERAGES
29-JUN-2022,7013726,20.83,ASDA STORES LIMITED,306530,Local Environmental Services,Adult Social Care,101,Supplies and Services,504,Equipment,5023,Revenue,CATERING.FOOD & BEVERAGES
29-JUN-2022,7013726,22.33,ASDA STORES LIMITED,306530,Local Environmental Services,Adult Social Care,101,Supplies and Services,504,Equipment,5023,Revenue,CATERING.FOOD & BEVERAGES
29-JUN-2022,7013735,480.96,NISBETS PLC,102732,Local Environmental Services,Adult Social Care,101,Supplies and Services,504,Equipment,5023,Revenue,CATERING.EQUIPMENT & UTENSILS
29-JUN-2022,7013748,52.65,GM PACKAGING (UK) LTD,312623,Local Environmental Services,Adult Social Care,101,Supplies and Services,504,Equipment,5023,Revenue,CATERING.DISPOSABLES
29-JUN-2022,7013748,217.22,GM PACKAGING (UK) LTD,312623,Local Environmental Services,Adult Social Care,101,Supplies and Services,504,Equipment,5023,Revenue,CATERING.DISPOSABLES
29-JUN-2022,7013748,241.93,GM PACKAGING (UK) LTD,312623,Local Environmental Services,Adult Social Care,101,Supplies and Services,504,Equipment,5023,Revenue,CATERING.DISPOSABLES
29-JUN-2022,7013814,80,SYMPHONY COATINGS,391076,Local Environmental Services,Adult Social Care,101,Supplies and Services,504,Equipment,5023,Revenue,BUILDING MATERIALS.GENERAL MATERIALS
29-JUN-2022,7013825,0.01,AMAZON GENERAL PAYMENTS,375398,Local Environmental Services,Adult Social Care,101,Supplies and Services,504,Equipment,5023,Revenue,EDUCATIONAL SUPPLIES.SUPPLIES
29-JUN-2022,7013825,0.01,AMAZON GENERAL PAYMENTS,375398,Local Environmental Services,Adult Social Care,101,Supplies and Services,504,Equipment,5023,Revenue,EDUCATIONAL SUPPLIES.SUPPLIES
29-JUN-2022,7013825,0.01,AMAZON GENERAL PAYMENTS,375398,Local Environmental Services,Adult Social Care,101,Supplies and Services,504,Equipment,5023,Revenue,EDUCATIONAL SUPPLIES.SUPPLIES
29-JUN-2022,7013825,4.58,AMAZON GENERAL PAYMENTS,375398,Local Environmental Services,Adult Social Care,101,Supplies and Services,504,Equipment,5023,Revenue,EDUCATIONAL SUPPLIES.SUPPLIES
29-JUN-2022,7013825,9.83,AMAZON GENERAL PAYMENTS,375398,Local Environmental Services,Adult Social Care,101,Supplies and Services,504,Equipment,5023,Revenue,EDUCATIONAL SUPPLIES.SUPPLIES
29-JUN-2022,7013825,12.49,AMAZON GENERAL PAYMENTS,375398,Local Environmental Services,Adult Social Care,101,Supplies and Services,504,Equipment,5023,Revenue,EDUCATIONAL SUPPLIES.SUPPLIES
29-JUN-2022,7013825,14.62,AMAZON GENERAL PAYMENTS,375398,Local Environmental Services,Adult Social Care,101,Supplies and Services,504,Equipment,5023,Revenue,EDUCATIONAL SUPPLIES.SUPPLIES
29-JUN-2022,7013825,0.01,AMAZON GENERAL PAYMENTS,375398,Local Environmental Services,Adult Social Care,101,Supplies and Services,504,Equipment,5023,Revenue,EDUCATIONAL SUPPLIES.SUPPLIES
29-JUN-2022,7013825,2.49,AMAZON GENERAL PAYMENTS,375398,Local Environmental Services,Adult Social Care,101,Supplies and Services,504,Equipment,5023,Revenue,EDUCATIONAL SUPPLIES.SUPPLIES
29-JUN-2022,7013826,39.45,SCREWFIX,383257,Local Environmental Services,Adult Social Care,101,Supplies and Services,504,Equipment,5023,Revenue,BUILDING MATERIALS.GENERAL MATERIALS
29-JUN-2022,7013828,82.05,ASDA F/STN 04807,382198,Local Environmental Services,Adult Social Care,101,Supplies and Services,504,Equipment,5023,Revenue,VEHICLE MANAGEMENT.FUEL
29-JUN-2022,7013840,20.68,TOOLSTATION LTD,393689,Local Environmental Services,Adult Social Care,101,Supplies and Services,504,Equipment,5023,Revenue,HORTICULTURAL.TOOLS & EQUIPMENT
29-JUN-2022,7013870,367.99,POLAR KRUSH,401685,Local Environmental Services,Adult Social Care,101,Supplies and Services,504,Equipment,5023,Revenue,NON INFLUENCIBLE.NON INFLUENCIBLE
29-JUN-2022,7013888,-16.72,TOTAL PRODUCE GATESHEAD,399244,Local Environmental Services,Adult Social Care,101,Supplies and Services,504,Equipment,5023,Revenue,CATERING.FOOD & BEVERAGES
29-JUN-2022,7013888,-9,TOTAL PRODUCE GATESHEAD,399244,Local Environmental Services,Adult Social Care,101,Supplies and Services,504,Equipment,5023,Revenue,CATERING.FOOD & BEVERAGES
29-JUN-2022,7013888,-2.09,TOTAL PRODUCE GATESHEAD,399244,Local Environmental Services,Adult Social Care,101,Supplies and Services,504,Equipment,5023,Revenue,CATERING.FOOD & BEVERAGES
29-JUN-2022,7013888,0.73,TOTAL PRODUCE GATESHEAD,399244,Local Environmental Services,Adult Social Care,101,Supplies and Services,504,Equipment,5023,Revenue,CATERING.FOOD & BEVERAGES
29-JUN-2022,7013888,0.85,TOTAL PRODUCE GATESHEAD,399244,Local Environmental Services,Adult Social Care,101,Supplies and Services,504,Equipment,5023,Revenue,CATERING.FOOD & BEVERAGES
29-JUN-2022,7013888,0.85,TOTAL PRODUCE GATESHEAD,399244,Local Environmental Services,Adult Social Care,101,Supplies and Services,504,Equipment,5023,Revenue,CATERING.FOOD & BEVERAGES
29-JUN-2022,7013888,1.04,TOTAL PRODUCE GATESHEAD,399244,Local Environmental Services,Adult Social Care,101,Supplies and Services,504,Equipment,5023,Revenue,CATERING.FOOD & BEVERAGES
29-JUN-2022,7013888,1.04,TOTAL PRODUCE GATESHEAD,399244,Local Environmental Services,Adult Social Care,101,Supplies and Services,504,Equipment,5023,Revenue,CATERING.FOOD & BEVERAGES
29-JUN-2022,7013888,1.2,TOTAL PRODUCE GATESHEAD,399244,Local Environmental Services,Adult Social Care,101,Supplies and Services,504,Equipment,5023,Revenue,CATERING.FOOD & BEVERAGES
29-JUN-2022,7013888,1.2,TOTAL PRODUCE GATESHEAD,399244,Local Environmental Services,Adult Social Care,101,Supplies and Services,504,Equipment,5023,Revenue,CATERING.FOOD & BEVERAGES
29-JUN-2022,7013888,1.2,TOTAL PRODUCE GATESHEAD,399244,Local Environmental Services,Adult Social Care,101,Supplies and Services,504,Equipment,5023,Revenue,CATERING.FOOD & BEVERAGES
29-JUN-2022,7013888,1.32,TOTAL PRODUCE GATESHEAD,399244,Local Environmental Services,Adult Social Care,101,Supplies and Services,504,Equipment,5023,Revenue,CATERING.FOOD & BEVERAGES
29-JUN-2022,7013888,1.32,TOTAL PRODUCE GATESHEAD,399244,Local Environmental Services,Adult Social Care,101,Supplies and Services,504,Equipment,5023,Revenue,CATERING.FOOD & BEVERAGES
29-JUN-2022,7013888,1.35,TOTAL PRODUCE GATESHEAD,399244,Local Environmental Services,Adult Social Care,101,Supplies and Services,504,Equipment,5023,Revenue,CATERING.FOOD & BEVERAGES
29-JUN-2022,7013888,1.35,TOTAL PRODUCE GATESHEAD,399244,Local Environmental Services,Adult Social Care,101,Supplies and Services,504,Equipment,5023,Revenue,CATERING.FOOD & BEVERAGES
29-JUN-2022,7013888,1.43,TOTAL PRODUCE GATESHEAD,399244,Local Environmental Services,Adult Social Care,101,Supplies and Services,504,Equipment,5023,Revenue,CATERING.FOOD & BEVERAGES
29-JUN-2022,7013888,1.43,TOTAL PRODUCE GATESHEAD,399244,Local Environmental Services,Adult Social Care,101,Supplies and Services,504,Equipment,5023,Revenue,CATERING.FOOD & BEVERAGES
29-JUN-2022,7013888,1.43,TOTAL PRODUCE GATESHEAD,399244,Local Environmental Services,Adult Social Care,101,Supplies and Services,504,Equipment,5023,Revenue,CATERING.FOOD & BEVERAGES
29-JUN-2022,7013888,1.63,TOTAL PRODUCE GATESHEAD,399244,Local Environmental Services,Adult Social Care,101,Supplies and Services,504,Equipment,5023,Revenue,CATERING.FOOD & BEVERAGES
29-JUN-2022,7013888,1.63,TOTAL PRODUCE GATESHEAD,399244,Local Environmental Services,Adult Social Care,101,Supplies and Services,504,Equipment,5023,Revenue,CATERING.FOOD & BEVERAGES
29-JUN-2022,7013888,1.7,TOTAL PRODUCE GATESHEAD,399244,Local Environmental Services,Adult Social Care,101,Supplies and Services,504,Equipment,5023,Revenue,CATERING.FOOD & BEVERAGES
29-JUN-2022,7013888,1.7,TOTAL PRODUCE GATESHEAD,399244,Local Environmental Services,Adult Social Care,101,Supplies and Services,504,Equipment,5023,Revenue,CATERING.FOOD & BEVERAGES
29-JUN-2022,7013888,1.7,TOTAL PRODUCE GATESHEAD,399244,Local Environmental Services,Adult Social Care,101,Supplies and Services,504,Equipment,5023,Revenue,CATERING.FOOD & BEVERAGES
29-JUN-2022,7013888,1.7,TOTAL PRODUCE GATESHEAD,399244,Local Environmental Services,Adult Social Care,101,Supplies and Services,504,Equipment,5023,Revenue,CATERING.FOOD & BEVERAGES
29-JUN-2022,7013888,1.7,TOTAL PRODUCE GATESHEAD,399244,Local Environmental Services,Adult Social Care,101,Supplies and Services,504,Equipment,5023,Revenue,CATERING.FOOD & BEVERAGES
29-JUN-2022,7013888,2.21,TOTAL PRODUCE GATESHEAD,399244,Local Environmental Services,Adult Social Care,101,Supplies and Services,504,Equipment,5023,Revenue,CATERING.FOOD & BEVERAGES
29-JUN-2022,7013888,2.31,TOTAL PRODUCE GATESHEAD,399244,Local Environmental Services,Adult Social Care,101,Supplies and Services,504,Equipment,5023,Revenue,CATERING.FOOD & BEVERAGES
29-JUN-2022,7013888,2.55,TOTAL PRODUCE GATESHEAD,399244,Local Environmental Services,Adult Social Care,101,Supplies and Services,504,Equipment,5023,Revenue,CATERING.FOOD & BEVERAGES
29-JUN-2022,7013888,2.55,TOTAL PRODUCE GATESHEAD,399244,Local Environmental Services,Adult Social Care,101,Supplies and Services,504,Equipment,5023,Revenue,CATERING.FOOD & BEVERAGES
29-JUN-2022,7013888,2.55,TOTAL PRODUCE GATESHEAD,399244,Local Environmental Services,Adult Social Care,101,Supplies and Services,504,Equipment,5023,Revenue,CATERING.FOOD & BEVERAGES
29-JUN-2022,7013888,2.55,TOTAL PRODUCE GATESHEAD,399244,Local Environmental Services,Adult Social Care,101,Supplies and Services,504,Equipment,5023,Revenue,CATERING.FOOD & BEVERAGES
29-JUN-2022,7013888,2.64,TOTAL PRODUCE GATESHEAD,399244,Local Environmental Services,Adult Social Care,101,Supplies and Services,504,Equipment,5023,Revenue,CATERING.FOOD & BEVERAGES
29-JUN-2022,7013888,2.68,TOTAL PRODUCE GATESHEAD,399244,Local Environmental Services,Adult Social Care,101,Supplies and Services,504,Equipment,5023,Revenue,CATERING.FOOD & BEVERAGES
29-JUN-2022,7013888,2.7,TOTAL PRODUCE GATESHEAD,399244,Local Environmental Services,Adult Social Care,101,Supplies and Services,504,Equipment,5023,Revenue,CATERING.FOOD & BEVERAGES
29-JUN-2022,7013888,2.7,TOTAL PRODUCE GATESHEAD,399244,Local Environmental Services,Adult Social Care,101,Supplies and Services,504,Equipment,5023,Revenue,CATERING.FOOD & BEVERAGES
29-JUN-2022,7013888,2.84,TOTAL PRODUCE GATESHEAD,399244,Local Environmental Services,Adult Social Care,101,Supplies and Services,504,Equipment,5023,Revenue,CATERING.FOOD & BEVERAGES
29-JUN-2022,7013888,2.84,TOTAL PRODUCE GATESHEAD,399244,Local Environmental Services,Adult Social Care,101,Supplies and Services,504,Equipment,5023,Revenue,CATERING.FOOD & BEVERAGES
29-JUN-2022,7013888,2.84,TOTAL PRODUCE GATESHEAD,399244,Local Environmental Services,Adult Social Care,101,Supplies and Services,504,Equipment,5023,Revenue,CATERING.FOOD & BEVERAGES
29-JUN-2022,7013888,2.95,TOTAL PRODUCE GATESHEAD,399244,Local Environmental Services,Adult Social Care,101,Supplies and Services,504,Equipment,5023,Revenue,CATERING.FOOD & BEVERAGES
29-JUN-2022,7013888,3.08,TOTAL PRODUCE GATESHEAD,399244,Local Environmental Services,Adult Social Care,101,Supplies and Services,504,Equipment,5023,Revenue,CATERING.FOOD & BEVERAGES
29-JUN-2022,7013888,3.08,TOTAL PRODUCE GATESHEAD,399244,Local Environmental Services,Adult Social Care,101,Supplies and Services,504,Equipment,5023,Revenue,CATERING.FOOD & BEVERAGES
29-JUN-2022,7013888,3.14,TOTAL PRODUCE GATESHEAD,399244,Local Environmental Services,Adult Social Care,101,Supplies and Services,504,Equipment,5023,Revenue,CATERING.FOOD & BEVERAGES
29-JUN-2022,7013888,3.14,TOTAL PRODUCE GATESHEAD,399244,Local Environmental Services,Adult Social Care,101,Supplies and Services,504,Equipment,5023,Revenue,CATERING.FOOD & BEVERAGES
29-JUN-2022,7013888,3.26,TOTAL PRODUCE GATESHEAD,399244,Local Environmental Services,Adult Social Care,101,Supplies and Services,504,Equipment,5023,Revenue,CATERING.FOOD & BEVERAGES
29-JUN-2022,7013888,3.26,TOTAL PRODUCE GATESHEAD,399244,Local Environmental Services,Adult Social Care,101,Supplies and Services,504,Equipment,5023,Revenue,CATERING.FOOD & BEVERAGES
29-JUN-2022,7013888,3.26,TOTAL PRODUCE GATESHEAD,399244,Local Environmental Services,Adult Social Care,101,Supplies and Services,504,Equipment,5023,Revenue,CATERING.FOOD & BEVERAGES
29-JUN-2022,7013888,3.26,TOTAL PRODUCE GATESHEAD,399244,Local Environmental Services,Adult Social Care,101,Supplies and Services,504,Equipment,5023,Revenue,CATERING.FOOD & BEVERAGES
29-JUN-2022,7013888,3.26,TOTAL PRODUCE GATESHEAD,399244,Local Environmental Services,Adult Social Care,101,Supplies and Services,504,Equipment,5023,Revenue,CATERING.FOOD & BEVERAGES
29-JUN-2022,7013888,4.02,TOTAL PRODUCE GATESHEAD,399244,Local Environmental Services,Adult Social Care,101,Supplies and Services,504,Equipment,5023,Revenue,CATERING.FOOD & BEVERAGES
29-JUN-2022,7013888,4.25,TOTAL PRODUCE GATESHEAD,399244,Local Environmental Services,Adult Social Care,101,Supplies and Services,504,Equipment,5023,Revenue,CATERING.FOOD & BEVERAGES
29-JUN-2022,7013888,4.47,TOTAL PRODUCE GATESHEAD,399244,Local Environmental Services,Adult Social Care,101,Supplies and Services,504,Equipment,5023,Revenue,CATERING.FOOD & BEVERAGES
29-JUN-2022,7013888,4.47,TOTAL PRODUCE GATESHEAD,399244,Local Environmental Services,Adult Social Care,101,Supplies and Services,504,Equipment,5023,Revenue,CATERING.FOOD & BEVERAGES
29-JUN-2022,7013888,4.62,TOTAL PRODUCE GATESHEAD,399244,Local Environmental Services,Adult Social Care,101,Supplies and Services,504,Equipment,5023,Revenue,CATERING.FOOD & BEVERAGES
29-JUN-2022,7013888,4.62,TOTAL PRODUCE GATESHEAD,399244,Local Environmental Services,Adult Social Care,101,Supplies and Services,504,Equipment,5023,Revenue,CATERING.FOOD & BEVERAGES
29-JUN-2022,7013888,4.62,TOTAL PRODUCE GATESHEAD,399244,Local Environmental Services,Adult Social Care,101,Supplies and Services,504,Equipment,5023,Revenue,CATERING.FOOD & BEVERAGES
29-JUN-2022,7013888,4.62,TOTAL PRODUCE GATESHEAD,399244,Local Environmental Services,Adult Social Care,101,Supplies and Services,504,Equipment,5023,Revenue,CATERING.FOOD & BEVERAGES
29-JUN-2022,7013888,5,TOTAL PRODUCE GATESHEAD,399244,Local Environmental Services,Adult Social Care,101,Supplies and Services,504,Equipment,5023,Revenue,CATERING.FOOD & BEVERAGES
29-JUN-2022,7013888,5.25,TOTAL PRODUCE GATESHEAD,399244,Local Environmental Services,Adult Social Care,101,Supplies and Services,504,Equipment,5023,Revenue,CATERING.FOOD & BEVERAGES
29-JUN-2022,7013888,5.36,TOTAL PRODUCE GATESHEAD,399244,Local Environmental Services,Adult Social Care,101,Supplies and Services,504,Equipment,5023,Revenue,CATERING.FOOD & BEVERAGES
29-JUN-2022,7013888,5.36,TOTAL PRODUCE GATESHEAD,399244,Local Environmental Services,Adult Social Care,101,Supplies and Services,504,Equipment,5023,Revenue,CATERING.FOOD & BEVERAGES
29-JUN-2022,7013888,5.36,TOTAL PRODUCE GATESHEAD,399244,Local Environmental Services,Adult Social Care,101,Supplies and Services,504,Equipment,5023,Revenue,CATERING.FOOD & BEVERAGES
29-JUN-2022,7013888,6.16,TOTAL PRODUCE GATESHEAD,399244,Local Environmental Services,Adult Social Care,101,Supplies and Services,504,Equipment,5023,Revenue,CATERING.FOOD & BEVERAGES
29-JUN-2022,7013888,6.7,TOTAL PRODUCE GATESHEAD,399244,Local Environmental Services,Adult Social Care,101,Supplies and Services,504,Equipment,5023,Revenue,CATERING.FOOD & BEVERAGES
29-JUN-2022,7013888,6.93,TOTAL PRODUCE GATESHEAD,399244,Local Environmental Services,Adult Social Care,101,Supplies and Services,504,Equipment,5023,Revenue,CATERING.FOOD & BEVERAGES
29-JUN-2022,7013888,6.93,TOTAL PRODUCE GATESHEAD,399244,Local Environmental Services,Adult Social Care,101,Supplies and Services,504,Equipment,5023,Revenue,CATERING.FOOD & BEVERAGES
29-JUN-2022,7013888,6.93,TOTAL PRODUCE GATESHEAD,399244,Local Environmental Services,Adult Social Care,101,Supplies and Services,504,Equipment,5023,Revenue,CATERING.FOOD & BEVERAGES
29-JUN-2022,7013888,7.45,TOTAL PRODUCE GATESHEAD,399244,Local Environmental Services,Adult Social Care,101,Supplies and Services,504,Equipment,5023,Revenue,CATERING.FOOD & BEVERAGES
29-JUN-2022,7013888,7.7,TOTAL PRODUCE GATESHEAD,399244,Local Environmental Services,Adult Social Care,101,Supplies and Services,504,Equipment,5023,Revenue,CATERING.FOOD & BEVERAGES
29-JUN-2022,7013888,9,TOTAL PRODUCE GATESHEAD,399244,Local Environmental Services,Adult Social Care,101,Supplies and Services,504,Equipment,5023,Revenue,CATERING.FOOD & BEVERAGES
29-JUN-2022,7013888,9,TOTAL PRODUCE GATESHEAD,399244,Local Environmental Services,Adult Social Care,101,Supplies and Services,504,Equipment,5023,Revenue,CATERING.FOOD & BEVERAGES
29-JUN-2022,7013888,9,TOTAL PRODUCE GATESHEAD,399244,Local Environmental Services,Adult Social Care,101,Supplies and Services,504,Equipment,5023,Revenue,CATERING.FOOD & BEVERAGES
29-JUN-2022,7013888,9,TOTAL PRODUCE GATESHEAD,399244,Local Environmental Services,Adult Social Care,101,Supplies and Services,504,Equipment,5023,Revenue,CATERING.FOOD & BEVERAGES
29-JUN-2022,7013888,9.05,TOTAL PRODUCE GATESHEAD,399244,Local Environmental Services,Adult Social Care,101,Supplies and Services,504,Equipment,5023,Revenue,CATERING.FOOD & BEVERAGES
29-JUN-2022,7013888,9.05,TOTAL PRODUCE GATESHEAD,399244,Local Environmental Services,Adult Social Care,101,Supplies and Services,504,Equipment,5023,Revenue,CATERING.FOOD & BEVERAGES
29-JUN-2022,7013888,9.05,TOTAL PRODUCE GATESHEAD,399244,Local Environmental Services,Adult Social Care,101,Supplies and Services,504,Equipment,5023,Revenue,CATERING.FOOD & BEVERAGES
29-JUN-2022,7013888,9.42,TOTAL PRODUCE GATESHEAD,399244,Local Environmental Services,Adult Social Care,101,Supplies and Services,504,Equipment,5023,Revenue,CATERING.FOOD & BEVERAGES
29-JUN-2022,7013888,9.42,TOTAL PRODUCE GATESHEAD,399244,Local Environmental Services,Adult Social Care,101,Supplies and Services,504,Equipment,5023,Revenue,CATERING.FOOD & BEVERAGES
29-JUN-2022,7013888,9.42,TOTAL PRODUCE GATESHEAD,399244,Local Environmental Services,Adult Social Care,101,Supplies and Services,504,Equipment,5023,Revenue,CATERING.FOOD & BEVERAGES
29-JUN-2022,7013888,10.72,TOTAL PRODUCE GATESHEAD,399244,Local Environmental Services,Adult Social Care,101,Supplies and Services,504,Equipment,5023,Revenue,CATERING.FOOD & BEVERAGES
29-JUN-2022,7013888,10.99,TOTAL PRODUCE GATESHEAD,399244,Local Environmental Services,Adult Social Care,101,Supplies and Services,504,Equipment,5023,Revenue,CATERING.FOOD & BEVERAGES
29-JUN-2022,7013888,11.06,TOTAL PRODUCE GATESHEAD,399244,Local Environmental Services,Adult Social Care,101,Supplies and Services,504,Equipment,5023,Revenue,CATERING.FOOD & BEVERAGES
29-JUN-2022,7013888,11.34,TOTAL PRODUCE GATESHEAD,399244,Local Environmental Services,Adult Social Care,101,Supplies and Services,504,Equipment,5023,Revenue,CATERING.FOOD & BEVERAGES
29-JUN-2022,7013888,12.54,TOTAL PRODUCE GATESHEAD,399244,Local Environmental Services,Adult Social Care,101,Supplies and Services,504,Equipment,5023,Revenue,CATERING.FOOD & BEVERAGES
29-JUN-2022,7013888,12.54,TOTAL PRODUCE GATESHEAD,399244,Local Environmental Services,Adult Social Care,101,Supplies and Services,504,Equipment,5023,Revenue,CATERING.FOOD & BEVERAGES
29-JUN-2022,7013888,12.56,TOTAL PRODUCE GATESHEAD,399244,Local Environmental Services,Adult Social Care,101,Supplies and Services,504,Equipment,5023,Revenue,CATERING.FOOD & BEVERAGES
29-JUN-2022,7013888,13.67,TOTAL PRODUCE GATESHEAD,399244,Local Environmental Services,Adult Social Care,101,Supplies and Services,504,Equipment,5023,Revenue,CATERING.FOOD & BEVERAGES
29-JUN-2022,7013888,16.72,TOTAL PRODUCE GATESHEAD,399244,Local Environmental Services,Adult Social Care,101,Supplies and Services,504,Equipment,5023,Revenue,CATERING.FOOD & BEVERAGES
29-JUN-2022,7013888,18,TOTAL PRODUCE GATESHEAD,399244,Local Environmental Services,Adult Social Care,101,Supplies and Services,504,Equipment,5023,Revenue,CATERING.FOOD & BEVERAGES
29-JUN-2022,7013888,18.81,TOTAL PRODUCE GATESHEAD,399244,Local Environmental Services,Adult Social Care,101,Supplies and Services,504,Equipment,5023,Revenue,CATERING.FOOD & BEVERAGES
29-JUN-2022,7013888,18.81,TOTAL PRODUCE GATESHEAD,399244,Local Environmental Services,Adult Social Care,101,Supplies and Services,504,Equipment,5023,Revenue,CATERING.FOOD & BEVERAGES
29-JUN-2022,7013888,18.81,TOTAL PRODUCE GATESHEAD,399244,Local Environmental Services,Adult Social Care,101,Supplies and Services,504,Equipment,5023,Revenue,CATERING.FOOD & BEVERAGES
29-JUN-2022,7013888,18.81,TOTAL PRODUCE GATESHEAD,399244,Local Environmental Services,Adult Social Care,101,Supplies and Services,504,Equipment,5023,Revenue,CATERING.FOOD & BEVERAGES
29-JUN-2022,7013888,18.93,TOTAL PRODUCE GATESHEAD,399244,Local Environmental Services,Adult Social Care,101,Supplies and Services,504,Equipment,5023,Revenue,CATERING.FOOD & BEVERAGES
29-JUN-2022,7013888,20.52,TOTAL PRODUCE GATESHEAD,399244,Local Environmental Services,Adult Social Care,101,Supplies and Services,504,Equipment,5023,Revenue,CATERING.FOOD & BEVERAGES
29-JUN-2022,7013888,20.9,TOTAL PRODUCE GATESHEAD,399244,Local Environmental Services,Adult Social Care,101,Supplies and Services,504,Equipment,5023,Revenue,CATERING.FOOD & BEVERAGES
29-JUN-2022,7013888,21,TOTAL PRODUCE GATESHEAD,399244,Local Environmental Services,Adult Social Care,101,Supplies and Services,504,Equipment,5023,Revenue,CATERING.FOOD & BEVERAGES
29-JUN-2022,7013888,21,TOTAL PRODUCE GATESHEAD,399244,Local Environmental Services,Adult Social Care,101,Supplies and Services,504,Equipment,5023,Revenue,CATERING.FOOD & BEVERAGES
29-JUN-2022,7013888,22.12,TOTAL PRODUCE GATESHEAD,399244,Local Environmental Services,Adult Social Care,101,Supplies and Services,504,Equipment,5023,Revenue,CATERING.FOOD & BEVERAGES
29-JUN-2022,7013888,22.12,TOTAL PRODUCE GATESHEAD,399244,Local Environmental Services,Adult Social Care,101,Supplies and Services,504,Equipment,5023,Revenue,CATERING.FOOD & BEVERAGES
29-JUN-2022,7013888,49.46,TOTAL PRODUCE GATESHEAD,399244,Local Environmental Services,Adult Social Care,101,Supplies and Services,504,Equipment,5023,Revenue,CATERING.FOOD & BEVERAGES
29-JUN-2022,7013888,75.72,TOTAL PRODUCE GATESHEAD,399244,Local Environmental Services,Adult Social Care,101,Supplies and Services,504,Equipment,5023,Revenue,CATERING.FOOD & BEVERAGES
29-JUN-2022,7013736,132.5,TV LICENSING,014515,Housing Strategy & Support,Adult Social Care,101,Supplies and Services,504,Miscellaneous Expenses,5034,Revenue,SUBSCRIPTIONS & PUBLICATIONS.TV/RADIO LICENCES
29-JUN-2022,7013718,40.42,THE WINDSOR HOTEL,023681,General Fund Housing,Housing Services,108,Third Party Payments,505,Private Contractors,5042,Revenue,HUMAN RESOURCES.TRAINING & CONFERENCES
29-JUN-2022,7013718,40.42,THE WINDSOR HOTEL,023681,General Fund Housing,Housing Services,108,Third Party Payments,505,Private Contractors,5042,Revenue,HUMAN RESOURCES.TRAINING & CONFERENCES
29-JUN-2022,7013718,77.55,THE WINDSOR HOTEL,023681,General Fund Housing,Housing Services,108,Third Party Payments,505,Private Contractors,5042,Revenue,HUMAN RESOURCES.TRAINING & CONFERENCES
29-JUN-2022,7013718,80.83,THE WINDSOR HOTEL,023681,General Fund Housing,Housing Services,108,Third Party Payments,505,Private Contractors,5042,Revenue,HUMAN RESOURCES.TRAINING & CONFERENCES
29-JUN-2022,7013718,80.83,THE WINDSOR HOTEL,023681,General Fund Housing,Housing Services,108,Third Party Payments,505,Private Contractors,5042,Revenue,HUMAN RESOURCES.TRAINING & CONFERENCES
29-JUN-2022,7013718,80.83,THE WINDSOR HOTEL,023681,General Fund Housing,Housing Services,108,Third Party Payments,505,Private Contractors,5042,Revenue,HUMAN RESOURCES.TRAINING & CONFERENCES
29-JUN-2022,7013718,80.83,THE WINDSOR HOTEL,023681,General Fund Housing,Housing Services,108,Third Party Payments,505,Private Contractors,5042,Revenue,HUMAN RESOURCES.TRAINING & CONFERENCES
29-JUN-2022,7013718,80.83,THE WINDSOR HOTEL,023681,General Fund Housing,Housing Services,108,Third Party Payments,505,Private Contractors,5042,Revenue,HUMAN RESOURCES.TRAINING & CONFERENCES
29-JUN-2022,7013718,80.83,THE WINDSOR HOTEL,023681,General Fund Housing,Housing Services,108,Third Party Payments,505,Private Contractors,5042,Revenue,HUMAN RESOURCES.TRAINING & CONFERENCES
29-JUN-2022,7013718,80.83,THE WINDSOR HOTEL,023681,General Fund Housing,Housing Services,108,Third Party Payments,505,Private Contractors,5042,Revenue,HUMAN RESOURCES.TRAINING & CONFERENCES
29-JUN-2022,7013718,84.12,THE WINDSOR HOTEL,023681,General Fund Housing,Housing Services,108,Third Party Payments,505,Private Contractors,5042,Revenue,HUMAN RESOURCES.TRAINING & CONFERENCES
29-JUN-2022,7013718,120.83,THE WINDSOR HOTEL,023681,General Fund Housing,Housing Services,108,Third Party Payments,505,Private Contractors,5042,Revenue,HUMAN RESOURCES.TRAINING & CONFERENCES
29-JUN-2022,7013718,121.25,THE WINDSOR HOTEL,023681,General Fund Housing,Housing Services,108,Third Party Payments,505,Private Contractors,5042,Revenue,HUMAN RESOURCES.TRAINING & CONFERENCES
29-JUN-2022,7013718,121.25,THE WINDSOR HOTEL,023681,General Fund Housing,Housing Services,108,Third Party Payments,505,Private Contractors,5042,Revenue,HUMAN RESOURCES.TRAINING & CONFERENCES
29-JUN-2022,7013718,121.25,THE WINDSOR HOTEL,023681,General Fund Housing,Housing Services,108,Third Party Payments,505,Private Contractors,5042,Revenue,HUMAN RESOURCES.TRAINING & CONFERENCES
29-JUN-2022,7013718,121.25,THE WINDSOR HOTEL,023681,General Fund Housing,Housing Services,108,Third Party Payments,505,Private Contractors,5042,Revenue,HUMAN RESOURCES.TRAINING & CONFERENCES
29-JUN-2022,7013718,121.25,THE WINDSOR HOTEL,023681,General Fund Housing,Housing Services,108,Third Party Payments,505,Private Contractors,5042,Revenue,HUMAN RESOURCES.TRAINING & CONFERENCES
29-JUN-2022,7013718,121.25,THE WINDSOR HOTEL,023681,General Fund Housing,Housing Services,108,Third Party Payments,505,Private Contractors,5042,Revenue,HUMAN RESOURCES.TRAINING & CONFERENCES
29-JUN-2022,7013718,121.25,THE WINDSOR HOTEL,023681,General Fund Housing,Housing Services,108,Third Party Payments,505,Private Contractors,5042,Revenue,HUMAN RESOURCES.TRAINING & CONFERENCES
29-JUN-2022,7013718,121.25,THE WINDSOR HOTEL,023681,General Fund Housing,Housing Services,108,Third Party Payments,505,Private Contractors,5042,Revenue,HUMAN RESOURCES.TRAINING & CONFERENCES
29-JUN-2022,7013718,121.25,THE WINDSOR HOTEL,023681,General Fund Housing,Housing Services,108,Third Party Payments,505,Private Contractors,5042,Revenue,HUMAN RESOURCES.TRAINING & CONFERENCES
29-JUN-2022,7013718,121.25,THE WINDSOR HOTEL,023681,General Fund Housing,Housing Services,108,Third Party Payments,505,Private Contractors,5042,Revenue,HUMAN RESOURCES.TRAINING & CONFERENCES
29-JUN-2022,7013718,161.67,THE WINDSOR HOTEL,023681,General Fund Housing,Housing Services,108,Third Party Payments,505,Private Contractors,5042,Revenue,HUMAN RESOURCES.TRAINING & CONFERENCES
29-JUN-2022,7013718,161.67,THE WINDSOR HOTEL,023681,General Fund Housing,Housing Services,108,Third Party Payments,505,Private Contractors,5042,Revenue,HUMAN RESOURCES.TRAINING & CONFERENCES
29-JUN-2022,7013718,161.67,THE WINDSOR HOTEL,023681,General Fund Housing,Housing Services,108,Third Party Payments,505,Private Contractors,5042,Revenue,HUMAN RESOURCES.TRAINING & CONFERENCES
29-JUN-2022,7013718,161.67,THE WINDSOR HOTEL,023681,General Fund Housing,Housing Services,108,Third Party Payments,505,Private Contractors,5042,Revenue,HUMAN RESOURCES.TRAINING & CONFERENCES
29-JUN-2022,7013718,161.67,THE WINDSOR HOTEL,023681,General Fund Housing,Housing Services,108,Third Party Payments,505,Private Contractors,5042,Revenue,HUMAN RESOURCES.TRAINING & CONFERENCES
29-JUN-2022,7013718,161.67,THE WINDSOR HOTEL,023681,General Fund Housing,Housing Services,108,Third Party Payments,505,Private Contractors,5042,Revenue,HUMAN RESOURCES.TRAINING & CONFERENCES
29-JUN-2022,7013718,161.67,THE WINDSOR HOTEL,023681,General Fund Housing,Housing Services,108,Third Party Payments,505,Private Contractors,5042,Revenue,HUMAN RESOURCES.TRAINING & CONFERENCES
29-JUN-2022,7013718,161.67,THE WINDSOR HOTEL,023681,General Fund Housing,Housing Services,108,Third Party Payments,505,Private Contractors,5042,Revenue,HUMAN RESOURCES.TRAINING & CONFERENCES
29-JUN-2022,7013718,166.67,THE WINDSOR HOTEL,023681,General Fund Housing,Housing Services,108,Third Party Payments,505,Private Contractors,5042,Revenue,HUMAN RESOURCES.TRAINING & CONFERENCES
29-JUN-2022,7013718,202.08,THE WINDSOR HOTEL,023681,General Fund Housing,Housing Services,108,Third Party Payments,505,Private Contractors,5042,Revenue,HUMAN RESOURCES.TRAINING & CONFERENCES
29-JUN-2022,7013718,202.08,THE WINDSOR HOTEL,023681,General Fund Housing,Housing Services,108,Third Party Payments,505,Private Contractors,5042,Revenue,HUMAN RESOURCES.TRAINING & CONFERENCES
29-JUN-2022,7013718,202.08,THE WINDSOR HOTEL,023681,General Fund Housing,Housing Services,108,Third Party Payments,505,Private Contractors,5042,Revenue,HUMAN RESOURCES.TRAINING & CONFERENCES
29-JUN-2022,7013718,202.08,THE WINDSOR HOTEL,023681,General Fund Housing,Housing Services,108,Third Party Payments,505,Private Contractors,5042,Revenue,HUMAN RESOURCES.TRAINING & CONFERENCES
29-JUN-2022,7013718,202.08,THE WINDSOR HOTEL,023681,General Fund Housing,Housing Services,108,Third Party Payments,505,Private Contractors,5042,Revenue,HUMAN RESOURCES.TRAINING & CONFERENCES
29-JUN-2022,7013718,202.08,THE WINDSOR HOTEL,023681,General Fund Housing,Housing Services,108,Third Party Payments,505,Private Contractors,5042,Revenue,HUMAN RESOURCES.TRAINING & CONFERENCES
29-JUN-2022,7013718,242.5,THE WINDSOR HOTEL,023681,General Fund Housing,Housing Services,108,Third Party Payments,505,Private Contractors,5042,Revenue,HUMAN RESOURCES.TRAINING & CONFERENCES
29-JUN-2022,7013718,282.92,THE WINDSOR HOTEL,023681,General Fund Housing,Housing Services,108,Third Party Payments,505,Private Contractors,5042,Revenue,HUMAN RESOURCES.TRAINING & CONFERENCES
29-JUN-2022,7013718,282.92,THE WINDSOR HOTEL,023681,General Fund Housing,Housing Services,108,Third Party Payments,505,Private Contractors,5042,Revenue,HUMAN RESOURCES.TRAINING & CONFERENCES
29-JUN-2022,7013725,-0.01,TRAVELODGE,345558,General Fund Housing,Housing Services,108,Third Party Payments,505,Private Contractors,5042,Revenue,ADVERTISING & MARKETING.EVENTS & PROMOTIONS
29-JUN-2022,7013725,-0.01,TRAVELODGE,345558,General Fund Housing,Housing Services,108,Third Party Payments,505,Private Contractors,5042,Revenue,ADVERTISING & MARKETING.EVENTS & PROMOTIONS
29-JUN-2022,7013725,-0.01,TRAVELODGE,345558,General Fund Housing,Housing Services,108,Third Party Payments,505,Private Contractors,5042,Revenue,ADVERTISING & MARKETING.EVENTS & PROMOTIONS
29-JUN-2022,7013725,0.01,TRAVELODGE,345558,General Fund Housing,Housing Services,108,Third Party Payments,505,Private Contractors,5042,Revenue,ADVERTISING & MARKETING.EVENTS & PROMOTIONS
29-JUN-2022,7013725,0.01,TRAVELODGE,345558,General Fund Housing,Housing Services,108,Third Party Payments,505,Private Contractors,5042,Revenue,ADVERTISING & MARKETING.EVENTS & PROMOTIONS
29-JUN-2022,7013725,0.01,TRAVELODGE,345558,General Fund Housing,Housing Services,108,Third Party Payments,505,Private Contractors,5042,Revenue,ADVERTISING & MARKETING.EVENTS & PROMOTIONS
29-JUN-2022,7013725,0.01,TRAVELODGE,345558,General Fund Housing,Housing Services,108,Third Party Payments,505,Private Contractors,5042,Revenue,ADVERTISING & MARKETING.EVENTS & PROMOTIONS
29-JUN-2022,7013725,0.01,TRAVELODGE,345558,General Fund Housing,Housing Services,108,Third Party Payments,505,Private Contractors,5042,Revenue,ADVERTISING & MARKETING.EVENTS & PROMOTIONS
29-JUN-2022,7013725,0.01,TRAVELODGE,345558,General Fund Housing,Housing Services,108,Third Party Payments,505,Private Contractors,5042,Revenue,ADVERTISING & MARKETING.EVENTS & PROMOTIONS
29-JUN-2022,7013725,0.01,TRAVELODGE,345558,General Fund Housing,Housing Services,108,Third Party Payments,505,Private Contractors,5042,Revenue,ADVERTISING & MARKETING.EVENTS & PROMOTIONS
29-JUN-2022,7013725,0.01,TRAVELODGE,345558,General Fund Housing,Housing Services,108,Third Party Payments,505,Private Contractors,5042,Revenue,ADVERTISING & MARKETING.EVENTS & PROMOTIONS
29-JUN-2022,7013725,0.01,TRAVELODGE,345558,General Fund Housing,Housing Services,108,Third Party Payments,505,Private Contractors,5042,Revenue,ADVERTISING & MARKETING.EVENTS & PROMOTIONS
29-JUN-2022,7013725,0.01,TRAVELODGE,345558,General Fund Housing,Housing Services,108,Third Party Payments,505,Private Contractors,5042,Revenue,ADVERTISING & MARKETING.EVENTS & PROMOTIONS
29-JUN-2022,7013725,0.01,TRAVELODGE,345558,General Fund Housing,Housing Services,108,Third Party Payments,505,Private Contractors,5042,Revenue,ADVERTISING & MARKETING.EVENTS & PROMOTIONS
29-JUN-2022,7013725,0.01,TRAVELODGE,345558,General Fund Housing,Housing Services,108,Third Party Payments,505,Private Contractors,5042,Revenue,ADVERTISING & MARKETING.EVENTS & PROMOTIONS
29-JUN-2022,7013725,28.46,TRAVELODGE,345558,General Fund Housing,Housing Services,108,Third Party Payments,505,Private Contractors,5042,Revenue,ADVERTISING & MARKETING.EVENTS & PROMOTIONS
29-JUN-2022,7013725,41.62,TRAVELODGE,345558,General Fund Housing,Housing Services,108,Third Party Payments,505,Private Contractors,5042,Revenue,ADVERTISING & MARKETING.EVENTS & PROMOTIONS
29-JUN-2022,7013725,41.62,TRAVELODGE,345558,General Fund Housing,Housing Services,108,Third Party Payments,505,Private Contractors,5042,Revenue,ADVERTISING & MARKETING.EVENTS & PROMOTIONS
29-JUN-2022,7013725,41.62,TRAVELODGE,345558,General Fund Housing,Housing Services,108,Third Party Payments,505,Private Contractors,5042,Revenue,ADVERTISING & MARKETING.EVENTS & PROMOTIONS
29-JUN-2022,7013725,44.17,TRAVELODGE,345558,General Fund Housing,Housing Services,108,Third Party Payments,505,Private Contractors,5042,Revenue,ADVERTISING & MARKETING.EVENTS & PROMOTIONS
29-JUN-2022,7013725,44.17,TRAVELODGE,345558,General Fund Housing,Housing Services,108,Third Party Payments,505,Private Contractors,5042,Revenue,ADVERTISING & MARKETING.EVENTS & PROMOTIONS
29-JUN-2022,7013725,44.17,TRAVELODGE,345558,General Fund Housing,Housing Services,108,Third Party Payments,505,Private Contractors,5042,Revenue,ADVERTISING & MARKETING.EVENTS & PROMOTIONS
29-JUN-2022,7013725,67.96,TRAVELODGE,345558,General Fund Housing,Housing Services,108,Third Party Payments,505,Private Contractors,5042,Revenue,ADVERTISING & MARKETING.EVENTS & PROMOTIONS
29-JUN-2022,7013725,82.41,TRAVELODGE,345558,General Fund Housing,Housing Services,108,Third Party Payments,505,Private Contractors,5042,Revenue,ADVERTISING & MARKETING.EVENTS & PROMOTIONS
29-JUN-2022,7013725,83.26,TRAVELODGE,345558,General Fund Housing,Housing Services,108,Third Party Payments,505,Private Contractors,5042,Revenue,ADVERTISING & MARKETING.EVENTS & PROMOTIONS
29-JUN-2022,7013725,96.01,TRAVELODGE,345558,General Fund Housing,Housing Services,108,Third Party Payments,505,Private Contractors,5042,Revenue,ADVERTISING & MARKETING.EVENTS & PROMOTIONS
29-JUN-2022,7013725,96.01,TRAVELODGE,345558,General Fund Housing,Housing Services,108,Third Party Payments,505,Private Contractors,5042,Revenue,ADVERTISING & MARKETING.EVENTS & PROMOTIONS
29-JUN-2022,7013725,96.01,TRAVELODGE,345558,General Fund Housing,Housing Services,108,Third Party Payments,505,Private Contractors,5042,Revenue,ADVERTISING & MARKETING.EVENTS & PROMOTIONS
29-JUN-2022,7013725,96.01,TRAVELODGE,345558,General Fund Housing,Housing Services,108,Third Party Payments,505,Private Contractors,5042,Revenue,ADVERTISING & MARKETING.EVENTS & PROMOTIONS
29-JUN-2022,7013725,100.26,TRAVELODGE,345558,General Fund Housing,Housing Services,108,Third Party Payments,505,Private Contractors,5042,Revenue,ADVERTISING & MARKETING.EVENTS & PROMOTIONS
29-JUN-2022,7013725,106.21,TRAVELODGE,345558,General Fund Housing,Housing Services,108,Third Party Payments,505,Private Contractors,5042,Revenue,ADVERTISING & MARKETING.EVENTS & PROMOTIONS
29-JUN-2022,7013725,114.69,TRAVELODGE,345558,General Fund Housing,Housing Services,108,Third Party Payments,505,Private Contractors,5042,Revenue,ADVERTISING & MARKETING.EVENTS & PROMOTIONS
29-JUN-2022,7013725,114.69,TRAVELODGE,345558,General Fund Housing,Housing Services,108,Third Party Payments,505,Private Contractors,5042,Revenue,ADVERTISING & MARKETING.EVENTS & PROMOTIONS
29-JUN-2022,7013725,114.69,TRAVELODGE,345558,General Fund Housing,Housing Services,108,Third Party Payments,505,Private Contractors,5042,Revenue,ADVERTISING & MARKETING.EVENTS & PROMOTIONS
29-JUN-2022,7013725,114.69,TRAVELODGE,345558,General Fund Housing,Housing Services,108,Third Party Payments,505,Private Contractors,5042,Revenue,ADVERTISING & MARKETING.EVENTS & PROMOTIONS
29-JUN-2022,7013725,114.69,TRAVELODGE,345558,General Fund Housing,Housing Services,108,Third Party Payments,505,Private Contractors,5042,Revenue,ADVERTISING & MARKETING.EVENTS & PROMOTIONS
29-JUN-2022,7013725,124.89,TRAVELODGE,345558,General Fund Housing,Housing Services,108,Third Party Payments,505,Private Contractors,5042,Revenue,ADVERTISING & MARKETING.EVENTS & PROMOTIONS
29-JUN-2022,7013725,124.89,TRAVELODGE,345558,General Fund Housing,Housing Services,108,Third Party Payments,505,Private Contractors,5042,Revenue,ADVERTISING & MARKETING.EVENTS & PROMOTIONS
29-JUN-2022,7013725,209.87,TRAVELODGE,345558,General Fund Housing,Housing Services,108,Third Party Payments,505,Private Contractors,5042,Revenue,ADVERTISING & MARKETING.EVENTS & PROMOTIONS
29-JUN-2022,7013725,209.89,TRAVELODGE,345558,General Fund Housing,Housing Services,108,Third Party Payments,505,Private Contractors,5042,Revenue,ADVERTISING & MARKETING.EVENTS & PROMOTIONS
29-JUN-2022,7013725,239.64,TRAVELODGE,345558,General Fund Housing,Housing Services,108,Third Party Payments,505,Private Contractors,5042,Revenue,ADVERTISING & MARKETING.EVENTS & PROMOTIONS
29-JUN-2022,7013725,271.93,TRAVELODGE,345558,General Fund Housing,Housing Services,108,Third Party Payments,505,Private Contractors,5042,Revenue,ADVERTISING & MARKETING.EVENTS & PROMOTIONS
29-JUN-2022,7013725,272.78,TRAVELODGE,345558,General Fund Housing,Housing Services,108,Third Party Payments,505,Private Contractors,5042,Revenue,ADVERTISING & MARKETING.EVENTS & PROMOTIONS
29-JUN-2022,7013725,272.78,TRAVELODGE,345558,General Fund Housing,Housing Services,108,Third Party Payments,505,Private Contractors,5042,Revenue,ADVERTISING & MARKETING.EVENTS & PROMOTIONS
29-JUN-2022,7013725,273.62,TRAVELODGE,345558,General Fund Housing,Housing Services,108,Third Party Payments,505,Private Contractors,5042,Revenue,ADVERTISING & MARKETING.EVENTS & PROMOTIONS
29-JUN-2022,7013725,273.62,TRAVELODGE,345558,General Fund Housing,Housing Services,108,Third Party Payments,505,Private Contractors,5042,Revenue,ADVERTISING & MARKETING.EVENTS & PROMOTIONS
29-JUN-2022,7013725,288.89,TRAVELODGE,345558,General Fund Housing,Housing Services,108,Third Party Payments,505,Private Contractors,5042,Revenue,ADVERTISING & MARKETING.EVENTS & PROMOTIONS
29-JUN-2022,7013725,288.89,TRAVELODGE,345558,General Fund Housing,Housing Services,108,Third Party Payments,505,Private Contractors,5042,Revenue,ADVERTISING & MARKETING.EVENTS & PROMOTIONS
29-JUN-2022,7013725,288.89,TRAVELODGE,345558,General Fund Housing,Housing Services,108,Third Party Payments,505,Private Contractors,5042,Revenue,ADVERTISING & MARKETING.EVENTS & PROMOTIONS
29-JUN-2022,7013725,288.89,TRAVELODGE,345558,General Fund Housing,Housing Services,108,Third Party Payments,505,Private Contractors,5042,Revenue,ADVERTISING & MARKETING.EVENTS & PROMOTIONS
29-JUN-2022,7013725,309.31,TRAVELODGE,345558,General Fund Housing,Housing Services,108,Third Party Payments,505,Private Contractors,5042,Revenue,ADVERTISING & MARKETING.EVENTS & PROMOTIONS
29-JUN-2022,7013725,311.01,TRAVELODGE,345558,General Fund Housing,Housing Services,108,Third Party Payments,505,Private Contractors,5042,Revenue,ADVERTISING & MARKETING.EVENTS & PROMOTIONS
29-JUN-2022,7013725,335.66,TRAVELODGE,345558,General Fund Housing,Housing Services,108,Third Party Payments,505,Private Contractors,5042,Revenue,ADVERTISING & MARKETING.EVENTS & PROMOTIONS
29-JUN-2022,7013725,350.09,TRAVELODGE,345558,General Fund Housing,Housing Services,108,Third Party Payments,505,Private Contractors,5042,Revenue,ADVERTISING & MARKETING.EVENTS & PROMOTIONS
29-JUN-2022,7013725,350.09,TRAVELODGE,345558,General Fund Housing,Housing Services,108,Third Party Payments,505,Private Contractors,5042,Revenue,ADVERTISING & MARKETING.EVENTS & PROMOTIONS
29-JUN-2022,7013725,351.79,TRAVELODGE,345558,General Fund Housing,Housing Services,108,Third Party Payments,505,Private Contractors,5042,Revenue,ADVERTISING & MARKETING.EVENTS & PROMOTIONS
29-JUN-2022,7013725,367.94,TRAVELODGE,345558,General Fund Housing,Housing Services,108,Third Party Payments,505,Private Contractors,5042,Revenue,ADVERTISING & MARKETING.EVENTS & PROMOTIONS
29-JUN-2022,7013725,367.94,TRAVELODGE,345558,General Fund Housing,Housing Services,108,Third Party Payments,505,Private Contractors,5042,Revenue,ADVERTISING & MARKETING.EVENTS & PROMOTIONS
29-JUN-2022,7013725,376.47,TRAVELODGE,345558,General Fund Housing,Housing Services,108,Third Party Payments,505,Private Contractors,5042,Revenue,ADVERTISING & MARKETING.EVENTS & PROMOTIONS
29-JUN-2022,7013725,377.32,TRAVELODGE,345558,General Fund Housing,Housing Services,108,Third Party Payments,505,Private Contractors,5042,Revenue,ADVERTISING & MARKETING.EVENTS & PROMOTIONS
29-JUN-2022,7013725,377.32,TRAVELODGE,345558,General Fund Housing,Housing Services,108,Third Party Payments,505,Private Contractors,5042,Revenue,ADVERTISING & MARKETING.EVENTS & PROMOTIONS
29-JUN-2022,7013725,392.61,TRAVELODGE,345558,General Fund Housing,Housing Services,108,Third Party Payments,505,Private Contractors,5042,Revenue,ADVERTISING & MARKETING.EVENTS & PROMOTIONS
29-JUN-2022,7013725,415.56,TRAVELODGE,345558,General Fund Housing,Housing Services,108,Third Party Payments,505,Private Contractors,5042,Revenue,ADVERTISING & MARKETING.EVENTS & PROMOTIONS
29-JUN-2022,7013725,428.31,TRAVELODGE,345558,General Fund Housing,Housing Services,108,Third Party Payments,505,Private Contractors,5042,Revenue,ADVERTISING & MARKETING.EVENTS & PROMOTIONS
29-JUN-2022,7013727,53.75,JURYS INN,381017,General Fund Housing,Housing Services,108,Third Party Payments,505,Private Contractors,5042,Revenue,ADVERTISING & MARKETING.EVENTS & PROMOTIONS
29-JUN-2022,7013727,172.92,JURYS INN,381017,General Fund Housing,Housing Services,108,Third Party Payments,505,Private Contractors,5042,Revenue,ADVERTISING & MARKETING.EVENTS & PROMOTIONS
29-JUN-2022,7013727,356.67,JURYS INN,381017,General Fund Housing,Housing Services,108,Third Party Payments,505,Private Contractors,5042,Revenue,ADVERTISING & MARKETING.EVENTS & PROMOTIONS
29-JUN-2022,7013727,395,JURYS INN,381017,General Fund Housing,Housing Services,108,Third Party Payments,505,Private Contractors,5042,Revenue,ADVERTISING & MARKETING.EVENTS & PROMOTIONS
29-JUN-2022,7013727,521.25,JURYS INN,381017,General Fund Housing,Housing Services,108,Third Party Payments,505,Private Contractors,5042,Revenue,ADVERTISING & MARKETING.EVENTS & PROMOTIONS
29-JUN-2022,7013754,73.45,NORTH TYNESIDE COUNCIL,102767,General Fund Housing,Housing Services,108,Third Party Payments,505,Private Contractors,5042,Revenue,NON INFLUENCIBLE.PUBLIC SECTOR
29-JUN-2022,7013754,224.32,NORTH TYNESIDE COUNCIL,102767,General Fund Housing,Housing Services,108,Third Party Payments,505,Private Contractors,5042,Revenue,NON INFLUENCIBLE.PUBLIC SECTOR
29-JUN-2022,7013765,-244.17,PREMIER INN,381529,General Fund Housing,Housing Services,108,Third Party Payments,505,Private Contractors,5042,Revenue,HUMAN RESOURCES.ACCOMMODATION
29-JUN-2022,7013765,-68.33,PREMIER INN,381529,General Fund Housing,Housing Services,108,Third Party Payments,505,Private Contractors,5042,Revenue,HUMAN RESOURCES.ACCOMMODATION
29-JUN-2022,7013765,-66.67,PREMIER INN,381529,General Fund Housing,Housing Services,108,Third Party Payments,505,Private Contractors,5042,Revenue,HUMAN RESOURCES.ACCOMMODATION
29-JUN-2022,7013765,-31.25,PREMIER INN,381529,General Fund Housing,Housing Services,108,Third Party Payments,505,Private Contractors,5042,Revenue,HUMAN RESOURCES.ACCOMMODATION
29-JUN-2022,7013765,50.83,PREMIER INN,381529,General Fund Housing,Housing Services,108,Third Party Payments,505,Private Contractors,5042,Revenue,HUMAN RESOURCES.ACCOMMODATION
29-JUN-2022,7013765,67.92,PREMIER INN,381529,General Fund Housing,Housing Services,108,Third Party Payments,505,Private Contractors,5042,Revenue,HUMAN RESOURCES.ACCOMMODATION
29-JUN-2022,7013765,80.83,PREMIER INN,381529,General Fund Housing,Housing Services,108,Third Party Payments,505,Private Contractors,5042,Revenue,HUMAN RESOURCES.ACCOMMODATION
29-JUN-2022,7013765,121.67,PREMIER INN,381529,General Fund Housing,Housing Services,108,Third Party Payments,505,Private Contractors,5042,Revenue,HUMAN RESOURCES.ACCOMMODATION
29-JUN-2022,7013765,122.5,PREMIER INN,381529,General Fund Housing,Housing Services,108,Third Party Payments,505,Private Contractors,5042,Revenue,HUMAN RESOURCES.ACCOMMODATION
29-JUN-2022,7013765,123.33,PREMIER INN,381529,General Fund Housing,Housing Services,108,Third Party Payments,505,Private Contractors,5042,Revenue,HUMAN RESOURCES.ACCOMMODATION
29-JUN-2022,7013765,128.33,PREMIER INN,381529,General Fund Housing,Housing Services,108,Third Party Payments,505,Private Contractors,5042,Revenue,HUMAN RESOURCES.ACCOMMODATION
29-JUN-2022,7013765,128.33,PREMIER INN,381529,General Fund Housing,Housing Services,108,Third Party Payments,505,Private Contractors,5042,Revenue,HUMAN RESOURCES.ACCOMMODATION
29-JUN-2022,7013765,128.33,PREMIER INN,381529,General Fund Housing,Housing Services,108,Third Party Payments,505,Private Contractors,5042,Revenue,HUMAN RESOURCES.ACCOMMODATION
29-JUN-2022,7013765,132.08,PREMIER INN,381529,General Fund Housing,Housing Services,108,Third Party Payments,505,Private Contractors,5042,Revenue,HUMAN RESOURCES.ACCOMMODATION
29-JUN-2022,7013765,132.08,PREMIER INN,381529,General Fund Housing,Housing Services,108,Third Party Payments,505,Private Contractors,5042,Revenue,HUMAN RESOURCES.ACCOMMODATION
29-JUN-2022,7013765,137.5,PREMIER INN,381529,General Fund Housing,Housing Services,108,Third Party Payments,505,Private Contractors,5042,Revenue,HUMAN RESOURCES.ACCOMMODATION
29-JUN-2022,7013765,141.67,PREMIER INN,381529,General Fund Housing,Housing Services,108,Third Party Payments,505,Private Contractors,5042,Revenue,HUMAN RESOURCES.ACCOMMODATION
29-JUN-2022,7013765,142.08,PREMIER INN,381529,General Fund Housing,Housing Services,108,Third Party Payments,505,Private Contractors,5042,Revenue,HUMAN RESOURCES.ACCOMMODATION
29-JUN-2022,7013765,142.08,PREMIER INN,381529,General Fund Housing,Housing Services,108,Third Party Payments,505,Private Contractors,5042,Revenue,HUMAN RESOURCES.ACCOMMODATION
29-JUN-2022,7013765,154.58,PREMIER INN,381529,General Fund Housing,Housing Services,108,Third Party Payments,505,Private Contractors,5042,Revenue,HUMAN RESOURCES.ACCOMMODATION
29-JUN-2022,7013765,159.17,PREMIER INN,381529,General Fund Housing,Housing Services,108,Third Party Payments,505,Private Contractors,5042,Revenue,HUMAN RESOURCES.ACCOMMODATION
29-JUN-2022,7013765,166.25,PREMIER INN,381529,General Fund Housing,Housing Services,108,Third Party Payments,505,Private Contractors,5042,Revenue,HUMAN RESOURCES.ACCOMMODATION
29-JUN-2022,7013765,179.17,PREMIER INN,381529,General Fund Housing,Housing Services,108,Third Party Payments,505,Private Contractors,5042,Revenue,HUMAN RESOURCES.ACCOMMODATION
29-JUN-2022,7013765,179.17,PREMIER INN,381529,General Fund Housing,Housing Services,108,Third Party Payments,505,Private Contractors,5042,Revenue,HUMAN RESOURCES.ACCOMMODATION
29-JUN-2022,7013765,179.17,PREMIER INN,381529,General Fund Housing,Housing Services,108,Third Party Payments,505,Private Contractors,5042,Revenue,HUMAN RESOURCES.ACCOMMODATION
29-JUN-2022,7013765,180.83,PREMIER INN,381529,General Fund Housing,Housing Services,108,Third Party Payments,505,Private Contractors,5042,Revenue,HUMAN RESOURCES.ACCOMMODATION
29-JUN-2022,7013765,183.75,PREMIER INN,381529,General Fund Housing,Housing Services,108,Third Party Payments,505,Private Contractors,5042,Revenue,HUMAN RESOURCES.ACCOMMODATION
29-JUN-2022,7013765,185.42,PREMIER INN,381529,General Fund Housing,Housing Services,108,Third Party Payments,505,Private Contractors,5042,Revenue,HUMAN RESOURCES.ACCOMMODATION
29-JUN-2022,7013765,185.42,PREMIER INN,381529,General Fund Housing,Housing Services,108,Third Party Payments,505,Private Contractors,5042,Revenue,HUMAN RESOURCES.ACCOMMODATION
29-JUN-2022,7013765,195,PREMIER INN,381529,General Fund Housing,Housing Services,108,Third Party Payments,505,Private Contractors,5042,Revenue,HUMAN RESOURCES.ACCOMMODATION
29-JUN-2022,7013765,236.25,PREMIER INN,381529,General Fund Housing,Housing Services,108,Third Party Payments,505,Private Contractors,5042,Revenue,HUMAN RESOURCES.ACCOMMODATION
29-JUN-2022,7013765,236.25,PREMIER INN,381529,General Fund Housing,Housing Services,108,Third Party Payments,505,Private Contractors,5042,Revenue,HUMAN RESOURCES.ACCOMMODATION
29-JUN-2022,7013765,238.33,PREMIER INN,381529,General Fund Housing,Housing Services,108,Third Party Payments,505,Private Contractors,5042,Revenue,HUMAN RESOURCES.ACCOMMODATION
29-JUN-2022,7013765,239.17,PREMIER INN,381529,General Fund Housing,Housing Services,108,Third Party Payments,505,Private Contractors,5042,Revenue,HUMAN RESOURCES.ACCOMMODATION
29-JUN-2022,7013765,289.17,PREMIER INN,381529,General Fund Housing,Housing Services,108,Third Party Payments,505,Private Contractors,5042,Revenue,HUMAN RESOURCES.ACCOMMODATION
29-JUN-2022,7013765,311.67,PREMIER INN,381529,General Fund Housing,Housing Services,108,Third Party Payments,505,Private Contractors,5042,Revenue,HUMAN RESOURCES.ACCOMMODATION
29-JUN-2022,7013765,316.67,PREMIER INN,381529,General Fund Housing,Housing Services,108,Third Party Payments,505,Private Contractors,5042,Revenue,HUMAN RESOURCES.ACCOMMODATION
29-JUN-2022,7013765,318.33,PREMIER INN,381529,General Fund Housing,Housing Services,108,Third Party Payments,505,Private Contractors,5042,Revenue,HUMAN RESOURCES.ACCOMMODATION
29-JUN-2022,7013765,340.83,PREMIER INN,381529,General Fund Housing,Housing Services,108,Third Party Payments,505,Private Contractors,5042,Revenue,HUMAN RESOURCES.ACCOMMODATION
29-JUN-2022,7013765,340.83,PREMIER INN,381529,General Fund Housing,Housing Services,108,Third Party Payments,505,Private Contractors,5042,Revenue,HUMAN RESOURCES.ACCOMMODATION
29-JUN-2022,7013765,342.08,PREMIER INN,381529,General Fund Housing,Housing Services,108,Third Party Payments,505,Private Contractors,5042,Revenue,HUMAN RESOURCES.ACCOMMODATION
29-JUN-2022,7013765,343.33,PREMIER INN,381529,General Fund Housing,Housing Services,108,Third Party Payments,505,Private Contractors,5042,Revenue,HUMAN RESOURCES.ACCOMMODATION
29-JUN-2022,7013765,351.67,PREMIER INN,381529,General Fund Housing,Housing Services,108,Third Party Payments,505,Private Contractors,5042,Revenue,HUMAN RESOURCES.ACCOMMODATION
29-JUN-2022,7013765,351.67,PREMIER INN,381529,General Fund Housing,Housing Services,108,Third Party Payments,505,Private Contractors,5042,Revenue,HUMAN RESOURCES.ACCOMMODATION
29-JUN-2022,7013765,351.67,PREMIER INN,381529,General Fund Housing,Housing Services,108,Third Party Payments,505,Private Contractors,5042,Revenue,HUMAN RESOURCES.ACCOMMODATION
29-JUN-2022,7013765,487.92,PREMIER INN,381529,General Fund Housing,Housing Services,108,Third Party Payments,505,Private Contractors,5042,Revenue,HUMAN RESOURCES.ACCOMMODATION
29-JUN-2022,7013765,590.83,PREMIER INN,381529,General Fund Housing,Housing Services,108,Third Party Payments,505,Private Contractors,5042,Revenue,HUMAN RESOURCES.ACCOMMODATION
29-JUN-2022,7013791,50,THE DORSET ARMS,340956,General Fund Housing,Housing Services,108,Third Party Payments,505,Private Contractors,5042,Revenue,HUMAN RESOURCES.ACCOMMODATION
29-JUN-2022,7013791,150,THE DORSET ARMS,340956,General Fund Housing,Housing Services,108,Third Party Payments,505,Private Contractors,5042,Revenue,HUMAN RESOURCES.ACCOMMODATION
29-JUN-2022,7013791,200,THE DORSET ARMS,340956,General Fund Housing,Housing Services,108,Third Party Payments,505,Private Contractors,5042,Revenue,HUMAN RESOURCES.ACCOMMODATION
29-JUN-2022,7013791,200,THE DORSET ARMS,340956,General Fund Housing,Housing Services,108,Third Party Payments,505,Private Contractors,5042,Revenue,HUMAN RESOURCES.ACCOMMODATION
29-JUN-2022,7013791,300,THE DORSET ARMS,340956,General Fund Housing,Housing Services,108,Third Party Payments,505,Private Contractors,5042,Revenue,HUMAN RESOURCES.ACCOMMODATION
29-JUN-2022,7013791,300,THE DORSET ARMS,340956,General Fund Housing,Housing Services,108,Third Party Payments,505,Private Contractors,5042,Revenue,HUMAN RESOURCES.ACCOMMODATION
29-JUN-2022,7013791,350,THE DORSET ARMS,340956,General Fund Housing,Housing Services,108,Third Party Payments,505,Private Contractors,5042,Revenue,HUMAN RESOURCES.ACCOMMODATION
29-JUN-2022,7013791,350,THE DORSET ARMS,340956,General Fund Housing,Housing Services,108,Third Party Payments,505,Private Contractors,5042,Revenue,HUMAN RESOURCES.ACCOMMODATION
29-JUN-2022,7013791,350,THE DORSET ARMS,340956,General Fund Housing,Housing Services,108,Third Party Payments,505,Private Contractors,5042,Revenue,HUMAN RESOURCES.ACCOMMODATION
29-JUN-2022,7013791,400,THE DORSET ARMS,340956,General Fund Housing,Housing Services,108,Third Party Payments,505,Private Contractors,5042,Revenue,HUMAN RESOURCES.ACCOMMODATION
29-JUN-2022,7013791,400,THE DORSET ARMS,340956,General Fund Housing,Housing Services,108,Third Party Payments,505,Private Contractors,5042,Revenue,HUMAN RESOURCES.ACCOMMODATION
29-JUN-2022,7013791,500,THE DORSET ARMS,340956,General Fund Housing,Housing Services,108,Third Party Payments,505,Private Contractors,5042,Revenue,HUMAN RESOURCES.ACCOMMODATION
29-JUN-2022,7013791,500,THE DORSET ARMS,340956,General Fund Housing,Housing Services,108,Third Party Payments,505,Private Contractors,5042,Revenue,HUMAN RESOURCES.ACCOMMODATION
29-JUN-2022,7013791,600,THE DORSET ARMS,340956,General Fund Housing,Housing Services,108,Third Party Payments,505,Private Contractors,5042,Revenue,HUMAN RESOURCES.ACCOMMODATION
29-JUN-2022,7013791,600,THE DORSET ARMS,340956,General Fund Housing,Housing Services,108,Third Party Payments,505,Private Contractors,5042,Revenue,HUMAN RESOURCES.ACCOMMODATION
29-JUN-2022,7013874,70.83,MALDRON HOTEL,401360,General Fund Housing,Housing Services,108,Third Party Payments,505,Private Contractors,5042,Revenue,HUMAN RESOURCES.ACCOMMODATION
29-JUN-2022,7013874,230,MALDRON HOTEL,401360,General Fund Housing,Housing Services,108,Third Party Payments,505,Private Contractors,5042,Revenue,HUMAN RESOURCES.ACCOMMODATION
29-JUN-2022,7013874,257.5,MALDRON HOTEL,401360,General Fund Housing,Housing Services,108,Third Party Payments,505,Private Contractors,5042,Revenue,HUMAN RESOURCES.ACCOMMODATION
29-JUN-2022,7013879,58.33,THEMEL ROSEGUES,400318,General Fund Housing,Housing Services,108,Third Party Payments,505,Private Contractors,5042,Revenue,HUMAN RESOURCES.ACCOMMODATION
29-JUN-2022,7013879,175,THEMEL ROSEGUES,400318,General Fund Housing,Housing Services,108,Third Party Payments,505,Private Contractors,5042,Revenue,HUMAN RESOURCES.ACCOMMODATION
29-JUN-2022,7013879,204.17,THEMEL ROSEGUES,400318,General Fund Housing,Housing Services,108,Third Party Payments,505,Private Contractors,5042,Revenue,HUMAN RESOURCES.ACCOMMODATION
29-JUN-2022,7013879,204.17,THEMEL ROSEGUES,400318,General Fund Housing,Housing Services,108,Third Party Payments,505,Private Contractors,5042,Revenue,HUMAN RESOURCES.ACCOMMODATION
29-JUN-2022,7013879,204.17,THEMEL ROSEGUES,400318,General Fund Housing,Housing Services,108,Third Party Payments,505,Private Contractors,5042,Revenue,HUMAN RESOURCES.ACCOMMODATION
29-JUN-2022,7013879,204.17,THEMEL ROSEGUES,400318,General Fund Housing,Housing Services,108,Third Party Payments,505,Private Contractors,5042,Revenue,HUMAN RESOURCES.ACCOMMODATION
29-JUN-2022,7013879,204.17,THEMEL ROSEGUES,400318,General Fund Housing,Housing Services,108,Third Party Payments,505,Private Contractors,5042,Revenue,HUMAN RESOURCES.ACCOMMODATION
29-JUN-2022,7013879,204.17,THEMEL ROSEGUES,400318,General Fund Housing,Housing Services,108,Third Party Payments,505,Private Contractors,5042,Revenue,HUMAN RESOURCES.ACCOMMODATION
29-JUN-2022,7013879,204.17,THEMEL ROSEGUES,400318,General Fund Housing,Housing Services,108,Third Party Payments,505,Private Contractors,5042,Revenue,HUMAN RESOURCES.ACCOMMODATION
29-JUN-2022,7013879,204.17,THEMEL ROSEGUES,400318,General Fund Housing,Housing Services,108,Third Party Payments,505,Private Contractors,5042,Revenue,HUMAN RESOURCES.ACCOMMODATION
29-JUN-2022,7013879,408.33,THEMEL ROSEGUES,400318,General Fund Housing,Housing Services,108,Third Party Payments,505,Private Contractors,5042,Revenue,HUMAN RESOURCES.ACCOMMODATION
29-JUN-2022,7013879,408.33,THEMEL ROSEGUES,400318,General Fund Housing,Housing Services,108,Third Party Payments,505,Private Contractors,5042,Revenue,HUMAN RESOURCES.ACCOMMODATION
29-JUN-2022,7013879,408.33,THEMEL ROSEGUES,400318,General Fund Housing,Housing Services,108,Third Party Payments,505,Private Contractors,5042,Revenue,HUMAN RESOURCES.ACCOMMODATION
29-JUN-2022,7013879,525,THEMEL ROSEGUES,400318,General Fund Housing,Housing Services,108,Third Party Payments,505,Private Contractors,5042,Revenue,HUMAN RESOURCES.ACCOMMODATION
29-JUN-2022,7013883,381.4,RAMANDA ENCORE,399987,General Fund Housing,Housing Services,108,Third Party Payments,505,Private Contractors,5042,Revenue,HUMAN RESOURCES.ACCOMMODATION
29-JUN-2022,7013929,145.83,KENILWORTH HOTEL,396858,General Fund Housing,Housing Services,108,Third Party Payments,505,Private Contractors,5042,Revenue,HUMAN RESOURCES.ACCOMMODATION
29-JUN-2022,7013929,150,KENILWORTH HOTEL,396858,General Fund Housing,Housing Services,108,Third Party Payments,505,Private Contractors,5042,Revenue,HUMAN RESOURCES.ACCOMMODATION
29-JUN-2022,7013929,150,KENILWORTH HOTEL,396858,General Fund Housing,Housing Services,108,Third Party Payments,505,Private Contractors,5042,Revenue,HUMAN RESOURCES.ACCOMMODATION
29-JUN-2022,7013929,270.83,KENILWORTH HOTEL,396858,General Fund Housing,Housing Services,108,Third Party Payments,505,Private Contractors,5042,Revenue,HUMAN RESOURCES.ACCOMMODATION
29-JUN-2022,7013929,270.83,KENILWORTH HOTEL,396858,General Fund Housing,Housing Services,108,Third Party Payments,505,Private Contractors,5042,Revenue,HUMAN RESOURCES.ACCOMMODATION
29-JUN-2022,7013929,270.83,KENILWORTH HOTEL,396858,General Fund Housing,Housing Services,108,Third Party Payments,505,Private Contractors,5042,Revenue,HUMAN RESOURCES.ACCOMMODATION
29-JUN-2022,7013929,308.33,KENILWORTH HOTEL,396858,General Fund Housing,Housing Services,108,Third Party Payments,505,Private Contractors,5042,Revenue,HUMAN RESOURCES.ACCOMMODATION
29-JUN-2022,7013929,308.33,KENILWORTH HOTEL,396858,General Fund Housing,Housing Services,108,Third Party Payments,505,Private Contractors,5042,Revenue,HUMAN RESOURCES.ACCOMMODATION
29-JUN-2022,7013929,308.33,KENILWORTH HOTEL,396858,General Fund Housing,Housing Services,108,Third Party Payments,505,Private Contractors,5042,Revenue,HUMAN RESOURCES.ACCOMMODATION
29-JUN-2022,7013929,308.33,KENILWORTH HOTEL,396858,General Fund Housing,Housing Services,108,Third Party Payments,505,Private Contractors,5042,Revenue,HUMAN RESOURCES.ACCOMMODATION
29-JUN-2022,7013929,345.83,KENILWORTH HOTEL,396858,General Fund Housing,Housing Services,108,Third Party Payments,505,Private Contractors,5042,Revenue,HUMAN RESOURCES.ACCOMMODATION
29-JUN-2022,7013929,345.83,KENILWORTH HOTEL,396858,General Fund Housing,Housing Services,108,Third Party Payments,505,Private Contractors,5042,Revenue,HUMAN RESOURCES.ACCOMMODATION
29-JUN-2022,7013931,0.01,ALCATRAZ GUEST HOUSE,387483,General Fund Housing,Housing Services,108,Third Party Payments,505,Private Contractors,5042,Revenue,SOCIAL CARE.CARE SERVICES
29-JUN-2022,7013931,0.01,ALCATRAZ GUEST HOUSE,387483,General Fund Housing,Housing Services,108,Third Party Payments,505,Private Contractors,5042,Revenue,SOCIAL CARE.CARE SERVICES
29-JUN-2022,7013931,0.01,ALCATRAZ GUEST HOUSE,387483,General Fund Housing,Housing Services,108,Third Party Payments,505,Private Contractors,5042,Revenue,SOCIAL CARE.CARE SERVICES
29-JUN-2022,7013931,0.01,ALCATRAZ GUEST HOUSE,387483,General Fund Housing,Housing Services,108,Third Party Payments,505,Private Contractors,5042,Revenue,SOCIAL CARE.CARE SERVICES
29-JUN-2022,7013931,0.01,ALCATRAZ GUEST HOUSE,387483,General Fund Housing,Housing Services,108,Third Party Payments,505,Private Contractors,5042,Revenue,SOCIAL CARE.CARE SERVICES
29-JUN-2022,7013931,0.01,ALCATRAZ GUEST HOUSE,387483,General Fund Housing,Housing Services,108,Third Party Payments,505,Private Contractors,5042,Revenue,SOCIAL CARE.CARE SERVICES
29-JUN-2022,7013931,0.01,ALCATRAZ GUEST HOUSE,387483,General Fund Housing,Housing Services,108,Third Party Payments,505,Private Contractors,5042,Revenue,SOCIAL CARE.CARE SERVICES
29-JUN-2022,7013931,33.33,ALCATRAZ GUEST HOUSE,387483,General Fund Housing,Housing Services,108,Third Party Payments,505,Private Contractors,5042,Revenue,SOCIAL CARE.CARE SERVICES
29-JUN-2022,7013931,66.67,ALCATRAZ GUEST HOUSE,387483,General Fund Housing,Housing Services,108,Third Party Payments,505,Private Contractors,5042,Revenue,SOCIAL CARE.CARE SERVICES
29-JUN-2022,7013931,66.67,ALCATRAZ GUEST HOUSE,387483,General Fund Housing,Housing Services,108,Third Party Payments,505,Private Contractors,5042,Revenue,SOCIAL CARE.CARE SERVICES
29-JUN-2022,7013931,66.67,ALCATRAZ GUEST HOUSE,387483,General Fund Housing,Housing Services,108,Third Party Payments,505,Private Contractors,5042,Revenue,SOCIAL CARE.CARE SERVICES
29-JUN-2022,7013931,66.67,ALCATRAZ GUEST HOUSE,387483,General Fund Housing,Housing Services,108,Third Party Payments,505,Private Contractors,5042,Revenue,SOCIAL CARE.CARE SERVICES
29-JUN-2022,7013931,83.33,ALCATRAZ GUEST HOUSE,387483,General Fund Housing,Housing Services,108,Third Party Payments,505,Private Contractors,5042,Revenue,SOCIAL CARE.CARE SERVICES
29-JUN-2022,7013931,100,ALCATRAZ GUEST HOUSE,387483,General Fund Housing,Housing Services,108,Third Party Payments,505,Private Contractors,5042,Revenue,SOCIAL CARE.CARE SERVICES
29-JUN-2022,7013931,133.33,ALCATRAZ GUEST HOUSE,387483,General Fund Housing,Housing Services,108,Third Party Payments,505,Private Contractors,5042,Revenue,SOCIAL CARE.CARE SERVICES
29-JUN-2022,7013931,133.33,ALCATRAZ GUEST HOUSE,387483,General Fund Housing,Housing Services,108,Third Party Payments,505,Private Contractors,5042,Revenue,SOCIAL CARE.CARE SERVICES
29-JUN-2022,7013931,133.33,ALCATRAZ GUEST HOUSE,387483,General Fund Housing,Housing Services,108,Third Party Payments,505,Private Contractors,5042,Revenue,SOCIAL CARE.CARE SERVICES
29-JUN-2022,7013931,133.33,ALCATRAZ GUEST HOUSE,387483,General Fund Housing,Housing Services,108,Third Party Payments,505,Private Contractors,5042,Revenue,SOCIAL CARE.CARE SERVICES
29-JUN-2022,7013931,166.67,ALCATRAZ GUEST HOUSE,387483,General Fund Housing,Housing Services,108,Third Party Payments,505,Private Contractors,5042,Revenue,SOCIAL CARE.CARE SERVICES
29-JUN-2022,7013931,166.67,ALCATRAZ GUEST HOUSE,387483,General Fund Housing,Housing Services,108,Third Party Payments,505,Private Contractors,5042,Revenue,SOCIAL CARE.CARE SERVICES
29-JUN-2022,7013931,166.67,ALCATRAZ GUEST HOUSE,387483,General Fund Housing,Housing Services,108,Third Party Payments,505,Private Contractors,5042,Revenue,SOCIAL CARE.CARE SERVICES
29-JUN-2022,7013931,200,ALCATRAZ GUEST HOUSE,387483,General Fund Housing,Housing Services,108,Third Party Payments,505,Private Contractors,5042,Revenue,SOCIAL CARE.CARE SERVICES
29-JUN-2022,7013931,266.67,ALCATRAZ GUEST HOUSE,387483,General Fund Housing,Housing Services,108,Third Party Payments,505,Private Contractors,5042,Revenue,SOCIAL CARE.CARE SERVICES
29-JUN-2022,7013931,333.33,ALCATRAZ GUEST HOUSE,387483,General Fund Housing,Housing Services,108,Third Party Payments,505,Private Contractors,5042,Revenue,SOCIAL CARE.CARE SERVICES
29-JUN-2022,7013825,0.09,AMAZON GENERAL PAYMENTS,375398,"Health, Education, Care and Safeguarding",Adult Social Care,101,Supplies and Services,504,Miscellaneous Expenses,5034,Revenue,EDUCATIONAL SUPPLIES.SUPPLIES
29-JUN-2022,7013825,409.59,AMAZON GENERAL PAYMENTS,375398,"Health, Education, Care and Safeguarding",Adult Social Care,101,Supplies and Services,504,Miscellaneous Expenses,5034,Revenue,EDUCATIONAL SUPPLIES.SUPPLIES
29-JUN-2022,7013900,67.5,HMCTS,360503,"Health, Education, Care and Safeguarding",Adult Social Care,101,Supplies and Services,504,Miscellaneous Expenses,5034,Revenue,NON INFLUENCIBLE.PUBLIC SECTOR
29-JUN-2022,7013901,67.5,HMCTS,360503,"Health, Education, Care and Safeguarding",Adult Social Care,101,Supplies and Services,504,Miscellaneous Expenses,5034,Revenue,NON INFLUENCIBLE.PUBLIC SECTOR
29-JUN-2022,7013825,41.66,AMAZON GENERAL PAYMENTS,375398,"Health, Education, Care and Safeguarding",Adult Social Care,101,Supplies and Services,504,Miscellaneous Expenses,5034,Revenue,EDUCATIONAL SUPPLIES.SUPPLIES
29-JUN-2022,7013899,67.5,HMCTS,360503,"Health, Education, Care and Safeguarding",Adult Social Care,101,Supplies and Services,504,Miscellaneous Expenses,5034,Revenue,NON INFLUENCIBLE.PUBLIC SECTOR
29-JUN-2022,7013751,13.16,RENTOKIL INITIAL UK LIMITED - PEST CONTROL,321392,"Health, Education, Care and Safeguarding",Adult Social Care,101,Supplies and Services,504,Equipment,5023,Revenue,ENVIRONMENTAL SERVICES.ANIMAL SERVICES
29-JUN-2022,7013825,17.5,AMAZON GENERAL PAYMENTS,375398,"Health, Education, Care and Safeguarding",Adult Social Care,101,Supplies and Services,504,Equipment,5023,Revenue,EDUCATIONAL SUPPLIES.SUPPLIES
29-JUN-2022,7013825,9.79,AMAZON GENERAL PAYMENTS,375398,"Health, Education, Care and Safeguarding",Children's & Education Services,103,Supplies and Services,504,Catering,5024,Revenue,EDUCATIONAL SUPPLIES.SUPPLIES
29-JUN-2022,7013825,25.6,AMAZON GENERAL PAYMENTS,375398,"Health, Education, Care and Safeguarding",Children's & Education Services,103,Supplies and Services,504,Catering,5024,Revenue,EDUCATIONAL SUPPLIES.SUPPLIES
29-JUN-2022,7013825,46.46,AMAZON GENERAL PAYMENTS,375398,"Health, Education, Care and Safeguarding",Children's & Education Services,103,Supplies and Services,504,Catering,5024,Revenue,EDUCATIONAL SUPPLIES.SUPPLIES
29-JUN-2022,7013825,0.01,AMAZON GENERAL PAYMENTS,375398,"Health, Education, Care and Safeguarding",Children's & Education Services,103,Supplies and Services,504,"Printing, Stationery and General Office Expenses",5026,Revenue,EDUCATIONAL SUPPLIES.SUPPLIES
29-JUN-2022,7013825,0.01,AMAZON GENERAL PAYMENTS,375398,"Health, Education, Care and Safeguarding",Children's & Education Services,103,Supplies and Services,504,"Printing, Stationery and General Office Expenses",5026,Revenue,EDUCATIONAL SUPPLIES.SUPPLIES
29-JUN-2022,7013825,14.98,AMAZON GENERAL PAYMENTS,375398,"Health, Education, Care and Safeguarding",Children's & Education Services,103,Supplies and Services,504,"Printing, Stationery and General Office Expenses",5026,Revenue,EDUCATIONAL SUPPLIES.SUPPLIES
29-JUN-2022,7013825,19.79,AMAZON GENERAL PAYMENTS,375398,"Health, Education, Care and Safeguarding",Children's & Education Services,103,Supplies and Services,504,"Printing, Stationery and General Office Expenses",5026,Revenue,EDUCATIONAL SUPPLIES.SUPPLIES
29-JUN-2022,7013850,43.8,GREY STREET HOTEL LTD,385862,"Health, Education, Care and Safeguarding",Children's & Education Services,103,Third Party Payments,505,Private Contractors,5042,Revenue,ADVERTISING & MARKETING.EVENTS & PROMOTIONS
29-JUN-2022,7013850,358.75,GREY STREET HOTEL LTD,385862,"Health, Education, Care and Safeguarding",Children's & Education Services,103,Third Party Payments,505,Private Contractors,5042,Revenue,ADVERTISING & MARKETING.EVENTS & PROMOTIONS
29-JUN-2022,7013882,481.41,RIDING FARM COTTAGES,399991,"Health, Education, Care and Safeguarding",Children's & Education Services,103,Third Party Payments,505,Private Contractors,5042,Revenue,HUMAN RESOURCES.ACCOMMODATION
29-JUN-2022,7013882,481.41,RIDING FARM COTTAGES,399991,"Health, Education, Care and Safeguarding",Children's & Education Services,103,Third Party Payments,505,Private Contractors,5042,Revenue,HUMAN RESOURCES.ACCOMMODATION
29-JUN-2022,7013740,18.9,IRONMONGERY DIRECT LTD,385120,"Health, Education, Care and Safeguarding",Children's & Education Services,103,Premises-Related Expenditure,502,"Repairs, alterations and maintenance of buildings",5005,Revenue,FURNITURE.DOMESTIC
29-JUN-2022,7013776,6,CITY ELECTRICAL FACTORS LTD,003739,"Health, Education, Care and Safeguarding",Children's & Education Services,103,Premises-Related Expenditure,502,"Repairs, alterations and maintenance of buildings",5005,Revenue,BUILDING MATERIALS.ELECTRICAL
29-JUN-2022,7013776,26.5,CITY ELECTRICAL FACTORS LTD,003739,"Health, Education, Care and Safeguarding",Children's & Education Services,103,Premises-Related Expenditure,502,"Repairs, alterations and maintenance of buildings",5005,Revenue,BUILDING MATERIALS.ELECTRICAL
29-JUN-2022,7013776,30,CITY ELECTRICAL FACTORS LTD,003739,"Health, Education, Care and Safeguarding",Children's & Education Services,103,Premises-Related Expenditure,502,"Repairs, alterations and maintenance of buildings",5005,Revenue,BUILDING MATERIALS.ELECTRICAL
29-JUN-2022,7013910,122.72,JUNO MEDIA,403201,"Health, Education, Care and Safeguarding",Children's & Education Services,103,Supplies and Services,504,Miscellaneous Expenses,5034,Revenue,NON INFLUENCIBLE.NON INFLUENCIBLE
29-JUN-2022,7013825,14.16,AMAZON GENERAL PAYMENTS,375398,"Health, Education, Care and Safeguarding",Children's & Education Services,103,Supplies and Services,504,Equipment,5023,Revenue,EDUCATIONAL SUPPLIES.SUPPLIES
29-JUN-2022,7013859,1458.33,LUKE STAYS,402835,"Health, Education, Care and Safeguarding",Children's & Education Services,103,Third Party Payments,505,Private Contractors,5042,Revenue,NON INFLUENCIBLE.NON INFLUENCIBLE
29-JUN-2022,7013859,1458.33,LUKE STAYS,402835,"Health, Education, Care and Safeguarding",Children's & Education Services,103,Transfer Payments,506,School Children and Students,5046,Revenue,NON INFLUENCIBLE.NON INFLUENCIBLE
29-JUN-2022,7013795,45.25,GENERAL REGISTER OFFICE,388286,"Health, Education, Care and Safeguarding",Children's & Education Services,103,Supplies and Services,504,Miscellaneous Expenses,5034,Revenue,NON INFLUENCIBLE.NON INFLUENCIBLE
29-JUN-2022,7013825,0.01,AMAZON GENERAL PAYMENTS,375398,"Health, Education, Care and Safeguarding",Children's & Education Services,103,Supplies and Services,504,Miscellaneous Expenses,5034,Revenue,EDUCATIONAL SUPPLIES.SUPPLIES
29-JUN-2022,7013825,24.99,AMAZON GENERAL PAYMENTS,375398,"Health, Education, Care and Safeguarding",Children's & Education Services,103,Supplies and Services,504,Miscellaneous Expenses,5034,Revenue,EDUCATIONAL SUPPLIES.SUPPLIES
29-JUN-2022,7013835,-183.86,HOTEL ONBOOKING.COM,395243,"Health, Education, Care and Safeguarding",Children's & Education Services,103,Supplies and Services,504,Expenses,5030,Revenue,HUMAN RESOURCES.ACCOMMODATION
29-JUN-2022,7013835,110.75,HOTEL ONBOOKING.COM,395243,"Health, Education, Care and Safeguarding",Children's & Education Services,103,Supplies and Services,504,Expenses,5030,Revenue,HUMAN RESOURCES.ACCOMMODATION
29-JUN-2022,7013835,183.86,HOTEL ONBOOKING.COM,395243,"Health, Education, Care and Safeguarding",Children's & Education Services,103,Supplies and Services,504,Expenses,5030,Revenue,HUMAN RESOURCES.ACCOMMODATION
29-JUN-2022,7013733,120.4,B & Q (205037),205037,"Health, Education, Care and Safeguarding",Children's & Education Services,103,Supplies and Services,504,Equipment,5023,Revenue,BUILDING MATERIALS.GENERAL MATERIALS
29-JUN-2022,7013745,37.58,SPORTS DIRECT,373833,"Health, Education, Care and Safeguarding",Children's & Education Services,103,Supplies and Services,504,"Clothing, Uniforms and Laundry",5025,Revenue,CLOTHING.CHILDRENS & ADULTS
29-JUN-2022,7013745,40.83,SPORTS DIRECT,373833,"Health, Education, Care and Safeguarding",Children's & Education Services,103,Supplies and Services,504,"Clothing, Uniforms and Laundry",5025,Revenue,CLOTHING.CHILDRENS & ADULTS
29-JUN-2022,7013745,44.16,SPORTS DIRECT,373833,"Health, Education, Care and Safeguarding",Children's & Education Services,103,Supplies and Services,504,"Clothing, Uniforms and Laundry",5025,Revenue,CLOTHING.CHILDRENS & ADULTS
29-JUN-2022,7013745,51.66,SPORTS DIRECT,373833,"Health, Education, Care and Safeguarding",Children's & Education Services,103,Supplies and Services,504,"Clothing, Uniforms and Laundry",5025,Revenue,CLOTHING.CHILDRENS & ADULTS
29-JUN-2022,7013745,95.82,SPORTS DIRECT,373833,"Health, Education, Care and Safeguarding",Children's & Education Services,103,Supplies and Services,504,"Clothing, Uniforms and Laundry",5025,Revenue,CLOTHING.CHILDRENS & ADULTS
29-JUN-2022,7013749,68,WILKO RETAIL LIMITED,280813,"Health, Education, Care and Safeguarding",Children's & Education Services,103,Supplies and Services,504,Equipment,5023,Revenue,NON INFLUENCIBLE.REDECORATION GRANTS
29-JUN-2022,7013752,0.01,ODEON CINEMAS LIMITED,349238,"Health, Education, Care and Safeguarding",Children's & Education Services,103,Supplies and Services,504,Miscellaneous Expenses,5034,Revenue,ADVERTISING & MARKETING.EVENTS & PROMOTIONS
29-JUN-2022,7013752,29.57,ODEON CINEMAS LIMITED,349238,"Health, Education, Care and Safeguarding",Children's & Education Services,103,Supplies and Services,504,Miscellaneous Expenses,5034,Revenue,ADVERTISING & MARKETING.EVENTS & PROMOTIONS
29-JUN-2022,7013752,32.5,ODEON CINEMAS LIMITED,349238,"Health, Education, Care and Safeguarding",Children's & Education Services,103,Supplies and Services,504,Miscellaneous Expenses,5034,Revenue,ADVERTISING & MARKETING.EVENTS & PROMOTIONS
29-JUN-2022,7013756,53.17,YORK DUNGEONS,382629,"Health, Education, Care and Safeguarding",Children's & Education Services,103,Supplies and Services,504,Miscellaneous Expenses,5034,Revenue,ADVERTISING & MARKETING.EVENTS & PROMOTIONS
29-JUN-2022,7013761,0.01,WM MORRISON SUPERMARKETS PLC,013562,"Health, Education, Care and Safeguarding",Children's & Education Services,103,Supplies and Services,504,Equipment,5023,Revenue,CATERING.FOOD & BEVERAGES
29-JUN-2022,7013761,71.13,WM MORRISON SUPERMARKETS PLC,013562,"Health, Education, Care and Safeguarding",Children's & Education Services,103,Supplies and Services,504,Equipment,5023,Revenue,CATERING.FOOD & BEVERAGES
29-JUN-2022,7013761,79.2,WM MORRISON SUPERMARKETS PLC,013562,"Health, Education, Care and Safeguarding",Children's & Education Services,103,Supplies and Services,504,Equipment,5023,Revenue,CATERING.FOOD & BEVERAGES
29-JUN-2022,7013761,93.27,WM MORRISON SUPERMARKETS PLC,013562,"Health, Education, Care and Safeguarding",Children's & Education Services,103,Supplies and Services,504,Equipment,5023,Revenue,CATERING.FOOD & BEVERAGES
29-JUN-2022,7013761,100.75,WM MORRISON SUPERMARKETS PLC,013562,"Health, Education, Care and Safeguarding",Children's & Education Services,103,Supplies and Services,504,Equipment,5023,Revenue,CATERING.FOOD & BEVERAGES
29-JUN-2022,7013761,104.37,WM MORRISON SUPERMARKETS PLC,013562,"Health, Education, Care and Safeguarding",Children's & Education Services,103,Supplies and Services,504,Equipment,5023,Revenue,CATERING.FOOD & BEVERAGES
29-JUN-2022,7013762,9.17,TESCO STORES LTD,336585,"Health, Education, Care and Safeguarding",Children's & Education Services,103,Supplies and Services,504,Equipment,5023,Revenue,CATERING.FOOD & BEVERAGES
29-JUN-2022,7013766,-0.01,ASDA DIRECT WEB 4387,381378,"Health, Education, Care and Safeguarding",Children's & Education Services,103,Supplies and Services,504,Equipment,5023,Revenue,CATERING.FOOD & BEVERAGES
29-JUN-2022,7013766,3.46,ASDA DIRECT WEB 4387,381378,"Health, Education, Care and Safeguarding",Children's & Education Services,103,Supplies and Services,504,Equipment,5023,Revenue,CATERING.FOOD & BEVERAGES
29-JUN-2022,7013768,50.83,JD SPORTS,382976,"Health, Education, Care and Safeguarding",Children's & Education Services,103,Supplies and Services,504,"Clothing, Uniforms and Laundry",5025,Revenue,CLOTHING.CHILDRENS & ADULTS
29-JUN-2022,7013772,0.01,THE GUNNER,384197,"Health, Education, Care and Safeguarding",Children's & Education Services,103,Supplies and Services,504,Equipment,5023,Revenue,CATERING.FOOD & BEVERAGES
29-JUN-2022,7013772,3.42,THE GUNNER,384197,"Health, Education, Care and Safeguarding",Children's & Education Services,103,Supplies and Services,504,Equipment,5023,Revenue,CATERING.FOOD & BEVERAGES
29-JUN-2022,7013772,4.04,THE GUNNER,384197,"Health, Education, Care and Safeguarding",Children's & Education Services,103,Supplies and Services,504,Equipment,5023,Revenue,CATERING.FOOD & BEVERAGES
29-JUN-2022,7013796,32.5,B&M RETAIL LTD,388117,"Health, Education, Care and Safeguarding",Children's & Education Services,103,Supplies and Services,504,Equipment,5023,Revenue,FURNITURE.DOMESTIC
29-JUN-2022,7013797,39.67,SKY BUSINESS LTD,320823,"Health, Education, Care and Safeguarding",Children's & Education Services,103,Supplies and Services,504,Miscellaneous Expenses,5034,Revenue,SUBSCRIPTIONS & PUBLICATIONS.TV/RADIO LICENCES
29-JUN-2022,7013809,-0.01,ALDI STORES LTD,391717,"Health, Education, Care and Safeguarding",Children's & Education Services,103,Supplies and Services,504,Equipment,5023,Revenue,CATERING.FOOD & BEVERAGES
29-JUN-2022,7013809,0.01,ALDI STORES LTD,391717,"Health, Education, Care and Safeguarding",Children's & Education Services,103,Supplies and Services,504,Equipment,5023,Revenue,CATERING.FOOD & BEVERAGES
29-JUN-2022,7013809,0.01,ALDI STORES LTD,391717,"Health, Education, Care and Safeguarding",Children's & Education Services,103,Supplies and Services,504,Equipment,5023,Revenue,CATERING.FOOD & BEVERAGES
29-JUN-2022,7013809,59.87,ALDI STORES LTD,391717,"Health, Education, Care and Safeguarding",Children's & Education Services,103,Supplies and Services,504,Equipment,5023,Revenue,CATERING.FOOD & BEVERAGES
29-JUN-2022,7013809,65.52,ALDI STORES LTD,391717,"Health, Education, Care and Safeguarding",Children's & Education Services,103,Supplies and Services,504,Equipment,5023,Revenue,CATERING.FOOD & BEVERAGES
29-JUN-2022,7013809,85.77,ALDI STORES LTD,391717,"Health, Education, Care and Safeguarding",Children's & Education Services,103,Supplies and Services,504,Equipment,5023,Revenue,CATERING.FOOD & BEVERAGES
29-JUN-2022,7013809,92.33,ALDI STORES LTD,391717,"Health, Education, Care and Safeguarding",Children's & Education Services,103,Supplies and Services,504,Equipment,5023,Revenue,CATERING.FOOD & BEVERAGES
29-JUN-2022,7013815,21.67,NANDOS,386419,"Health, Education, Care and Safeguarding",Children's & Education Services,103,Supplies and Services,504,Miscellaneous Expenses,5034,Revenue,ADVERTISING & MARKETING.EVENTS & PROMOTIONS
29-JUN-2022,7013855,0.01,NAISBITTS NEWS,342022,"Health, Education, Care and Safeguarding",Children's & Education Services,103,Supplies and Services,504,Equipment,5023,Revenue,
29-JUN-2022,7013855,7.12,NAISBITTS NEWS,342022,"Health, Education, Care and Safeguarding",Children's & Education Services,103,Supplies and Services,504,Equipment,5023,Revenue,
29-JUN-2022,7013873,4.29,SIR JOHN FITZGERALD LTD,100212,"Health, Education, Care and Safeguarding",Children's & Education Services,103,Supplies and Services,504,"Clothing, Uniforms and Laundry",5025,Revenue,CATERING.FOOD & BEVERAGES
29-JUN-2022,7013726,-2.05,ASDA STORES LIMITED,306530,"Health, Education, Care and Safeguarding",Children's & Education Services,103,Supplies and Services,504,Equipment,5023,Revenue,CATERING.FOOD & BEVERAGES
29-JUN-2022,7013726,-1.32,ASDA STORES LIMITED,306530,"Health, Education, Care and Safeguarding",Children's & Education Services,103,Supplies and Services,504,Equipment,5023,Revenue,CATERING.FOOD & BEVERAGES
29-JUN-2022,7013726,-0.97,ASDA STORES LIMITED,306530,"Health, Education, Care and Safeguarding",Children's & Education Services,103,Supplies and Services,504,Equipment,5023,Revenue,CATERING.FOOD & BEVERAGES
29-JUN-2022,7013726,-0.73,ASDA STORES LIMITED,306530,"Health, Education, Care and Safeguarding",Children's & Education Services,103,Supplies and Services,504,Equipment,5023,Revenue,CATERING.FOOD & BEVERAGES
29-JUN-2022,7013726,-0.01,ASDA STORES LIMITED,306530,"Health, Education, Care and Safeguarding",Children's & Education Services,103,Supplies and Services,504,Equipment,5023,Revenue,CATERING.FOOD & BEVERAGES
29-JUN-2022,7013726,97,ASDA STORES LIMITED,306530,"Health, Education, Care and Safeguarding",Children's & Education Services,103,Supplies and Services,504,Equipment,5023,Revenue,CATERING.FOOD & BEVERAGES
29-JUN-2022,7013726,106.31,ASDA STORES LIMITED,306530,"Health, Education, Care and Safeguarding",Children's & Education Services,103,Supplies and Services,504,Equipment,5023,Revenue,CATERING.FOOD & BEVERAGES
29-JUN-2022,7013726,108.02,ASDA STORES LIMITED,306530,"Health, Education, Care and Safeguarding",Children's & Education Services,103,Supplies and Services,504,Equipment,5023,Revenue,CATERING.FOOD & BEVERAGES
29-JUN-2022,7013726,112.16,ASDA STORES LIMITED,306530,"Health, Education, Care and Safeguarding",Children's & Education Services,103,Supplies and Services,504,Equipment,5023,Revenue,CATERING.FOOD & BEVERAGES
29-JUN-2022,7013726,152.49,ASDA STORES LIMITED,306530,"Health, Education, Care and Safeguarding",Children's & Education Services,103,Supplies and Services,504,Equipment,5023,Revenue,CATERING.FOOD & BEVERAGES
29-JUN-2022,7013726,225.1,ASDA STORES LIMITED,306530,"Health, Education, Care and Safeguarding",Children's & Education Services,103,Supplies and Services,504,Equipment,5023,Revenue,CATERING.FOOD & BEVERAGES
29-JUN-2022,7013825,141.66,AMAZON GENERAL PAYMENTS,375398,"Health, Education, Care and Safeguarding",Children's & Education Services,103,Supplies and Services,504,Equipment,5023,Revenue,EDUCATIONAL SUPPLIES.SUPPLIES
29-JUN-2022,7013827,115.79,ARGOS LTD,253446,"Health, Education, Care and Safeguarding",Children's & Education Services,103,Supplies and Services,504,Equipment,5023,Revenue,FURNITURE.DOMESTIC
29-JUN-2022,7013876,0.01,MOOANGEL,401142,"Health, Education, Care and Safeguarding",Children's & Education Services,103,Supplies and Services,504,Equipment,5023,Revenue,SPORTS & PLAYGROUND EQUIPMENT.PLAYGROUND EQUIPMENT
29-JUN-2022,7013876,559.97,MOOANGEL,401142,"Health, Education, Care and Safeguarding",Children's & Education Services,103,Supplies and Services,504,Equipment,5023,Revenue,SPORTS & PLAYGROUND EQUIPMENT.PLAYGROUND EQUIPMENT
29-JUN-2022,7013751,35.1,RENTOKIL INITIAL UK LIMITED - PEST CONTROL,321392,"Health, Education, Care and Safeguarding",Children's & Education Services,103,Supplies and Services,504,Equipment,5023,Revenue,ENVIRONMENTAL SERVICES.ANIMAL SERVICES
29-JUN-2022,7013797,22.5,SKY BUSINESS LTD,320823,"Health, Education, Care and Safeguarding",Children's & Education Services,103,Supplies and Services,504,Miscellaneous Expenses,5034,Revenue,SUBSCRIPTIONS & PUBLICATIONS.TV/RADIO LICENCES
29-JUN-2022,7013797,22.5,SKY BUSINESS LTD,320823,"Health, Education, Care and Safeguarding",Children's & Education Services,103,Supplies and Services,504,Miscellaneous Expenses,5034,Revenue,SUBSCRIPTIONS & PUBLICATIONS.TV/RADIO LICENCES
29-JUN-2022,7013811,-35.75,CEX,391467,"Health, Education, Care and Safeguarding",Children's & Education Services,103,Supplies and Services,504,Miscellaneous Expenses,5034,Revenue,BUILDING MATERIALS.ELECTRICAL
29-JUN-2022,7013811,21.58,CEX,391467,"Health, Education, Care and Safeguarding",Children's & Education Services,103,Supplies and Services,504,Miscellaneous Expenses,5034,Revenue,BUILDING MATERIALS.ELECTRICAL
29-JUN-2022,7013811,53.25,CEX,391467,"Health, Education, Care and Safeguarding",Children's & Education Services,103,Supplies and Services,504,Miscellaneous Expenses,5034,Revenue,BUILDING MATERIALS.ELECTRICAL
29-JUN-2022,7013825,0.01,AMAZON GENERAL PAYMENTS,375398,"Health, Education, Care and Safeguarding",Children's & Education Services,103,Supplies and Services,504,Equipment,5023,Revenue,EDUCATIONAL SUPPLIES.SUPPLIES
29-JUN-2022,7013825,0.01,AMAZON GENERAL PAYMENTS,375398,"Health, Education, Care and Safeguarding",Children's & Education Services,103,Supplies and Services,504,Equipment,5023,Revenue,EDUCATIONAL SUPPLIES.SUPPLIES
29-JUN-2022,7013825,13.33,AMAZON GENERAL PAYMENTS,375398,"Health, Education, Care and Safeguarding",Children's & Education Services,103,Supplies and Services,504,Equipment,5023,Revenue,EDUCATIONAL SUPPLIES.SUPPLIES
29-JUN-2022,7013825,33.32,AMAZON GENERAL PAYMENTS,375398,"Health, Education, Care and Safeguarding",Children's & Education Services,103,Supplies and Services,504,Equipment,5023,Revenue,EDUCATIONAL SUPPLIES.SUPPLIES
29-JUN-2022,7013825,0.01,AMAZON GENERAL PAYMENTS,375398,"Health, Education, Care and Safeguarding",Children's & Education Services,103,Supplies and Services,504,Miscellaneous Expenses,5034,Revenue,EDUCATIONAL SUPPLIES.SUPPLIES
29-JUN-2022,7013825,4.99,AMAZON GENERAL PAYMENTS,375398,"Health, Education, Care and Safeguarding",Children's & Education Services,103,Supplies and Services,504,Miscellaneous Expenses,5034,Revenue,EDUCATIONAL SUPPLIES.SUPPLIES
29-JUN-2022,7013825,7.16,AMAZON GENERAL PAYMENTS,375398,"Health, Education, Care and Safeguarding",Children's & Education Services,103,Supplies and Services,504,Miscellaneous Expenses,5034,Revenue,EDUCATIONAL SUPPLIES.SUPPLIES
29-JUN-2022,7013825,9.07,AMAZON GENERAL PAYMENTS,375398,"Health, Education, Care and Safeguarding",Children's & Education Services,103,Supplies and Services,504,Miscellaneous Expenses,5034,Revenue,EDUCATIONAL SUPPLIES.SUPPLIES
29-JUN-2022,7013825,17.17,AMAZON GENERAL PAYMENTS,375398,"Health, Education, Care and Safeguarding",Children's & Education Services,103,Supplies and Services,504,Miscellaneous Expenses,5034,Revenue,EDUCATIONAL SUPPLIES.SUPPLIES
29-JUN-2022,7013825,19.97,AMAZON GENERAL PAYMENTS,375398,"Health, Education, Care and Safeguarding",Children's & Education Services,103,Supplies and Services,504,Miscellaneous Expenses,5034,Revenue,EDUCATIONAL SUPPLIES.SUPPLIES
29-JUN-2022,7013825,20.47,AMAZON GENERAL PAYMENTS,375398,"Health, Education, Care and Safeguarding",Children's & Education Services,103,Supplies and Services,504,Miscellaneous Expenses,5034,Revenue,EDUCATIONAL SUPPLIES.SUPPLIES
29-JUN-2022,7013825,23.27,AMAZON GENERAL PAYMENTS,375398,"Health, Education, Care and Safeguarding",Children's & Education Services,103,Supplies and Services,504,Miscellaneous Expenses,5034,Revenue,EDUCATIONAL SUPPLIES.SUPPLIES
29-JUN-2022,7013768,110.83,JD SPORTS,382976,"Health, Education, Care and Safeguarding",Children's & Education Services,103,Supplies and Services,504,"Clothing, Uniforms and Laundry",5025,Revenue,CLOTHING.CHILDRENS & ADULTS
29-JUN-2022,7013797,70,SKY BUSINESS LTD,320823,"Health, Education, Care and Safeguarding",Children's & Education Services,103,Supplies and Services,504,Miscellaneous Expenses,5034,Revenue,SUBSCRIPTIONS & PUBLICATIONS.TV/RADIO LICENCES
29-JUN-2022,7013800,90,MYSHANGHAI,387779,"Health, Education, Care and Safeguarding",Children's & Education Services,103,Supplies and Services,504,Miscellaneous Expenses,5034,Revenue,CATERING.FOOD & BEVERAGES
29-JUN-2022,7013809,64.93,ALDI STORES LTD,391717,"Health, Education, Care and Safeguarding",Children's & Education Services,103,Supplies and Services,504,Equipment,5023,Revenue,CATERING.FOOD & BEVERAGES
29-JUN-2022,7013825,27.13,AMAZON GENERAL PAYMENTS,375398,"Health, Education, Care and Safeguarding",Children's & Education Services,103,Supplies and Services,504,Equipment,5023,Revenue,EDUCATIONAL SUPPLIES.SUPPLIES
29-JUN-2022,7013825,6.16,AMAZON GENERAL PAYMENTS,375398,"Health, Education, Care and Safeguarding",Children's & Education Services,103,Supplies and Services,504,Equipment,5023,Revenue,EDUCATIONAL SUPPLIES.SUPPLIES
29-JUN-2022,7013825,0.01,AMAZON GENERAL PAYMENTS,375398,"Health, Education, Care and Safeguarding",Children's & Education Services,103,Supplies and Services,504,Miscellaneous Expenses,5034,Revenue,EDUCATIONAL SUPPLIES.SUPPLIES
29-JUN-2022,7013825,0.01,AMAZON GENERAL PAYMENTS,375398,"Health, Education, Care and Safeguarding",Children's & Education Services,103,Supplies and Services,504,Miscellaneous Expenses,5034,Revenue,EDUCATIONAL SUPPLIES.SUPPLIES
29-JUN-2022,7013825,5.99,AMAZON GENERAL PAYMENTS,375398,"Health, Education, Care and Safeguarding",Children's & Education Services,103,Supplies and Services,504,Miscellaneous Expenses,5034,Revenue,EDUCATIONAL SUPPLIES.SUPPLIES
29-JUN-2022,7013825,6.66,AMAZON GENERAL PAYMENTS,375398,"Health, Education, Care and Safeguarding",Children's & Education Services,103,Supplies and Services,504,Miscellaneous Expenses,5034,Revenue,EDUCATIONAL SUPPLIES.SUPPLIES
29-JUN-2022,7013825,10.66,AMAZON GENERAL PAYMENTS,375398,"Health, Education, Care and Safeguarding",Children's & Education Services,103,Supplies and Services,504,Miscellaneous Expenses,5034,Revenue,EDUCATIONAL SUPPLIES.SUPPLIES
29-JUN-2022,7013825,14.83,AMAZON GENERAL PAYMENTS,375398,"Health, Education, Care and Safeguarding",Children's & Education Services,103,Supplies and Services,504,Miscellaneous Expenses,5034,Revenue,EDUCATIONAL SUPPLIES.SUPPLIES
29-JUN-2022,7013825,36.64,AMAZON GENERAL PAYMENTS,375398,"Health, Education, Care and Safeguarding",Children's & Education Services,103,Supplies and Services,504,Miscellaneous Expenses,5034,Revenue,EDUCATIONAL SUPPLIES.SUPPLIES
29-JUN-2022,7013848,5.42,PRODUCT SUPPORT AG,391921,"Health, Education, Care and Safeguarding",Children's & Education Services,103,Supplies and Services,504,Equipment,5023,Revenue,ICT.MAINTENANCE & SUPPORT
29-JUN-2022,7013733,36.5,B & Q (205037),205037,"Health, Education, Care and Safeguarding",Children's & Education Services,103,Premises-Related Expenditure,502,Cleaning and Domestic Supplies,5012,Revenue,BUILDING MATERIALS.GENERAL MATERIALS
29-JUN-2022,7013733,8.33,B & Q (205037),205037,"Health, Education, Care and Safeguarding",Children's & Education Services,103,Supplies and Services,504,Equipment,5023,Revenue,BUILDING MATERIALS.GENERAL MATERIALS
29-JUN-2022,7013749,24.5,WILKO RETAIL LIMITED,280813,"Health, Education, Care and Safeguarding",Children's & Education Services,103,Supplies and Services,504,Equipment,5023,Revenue,NON INFLUENCIBLE.REDECORATION GRANTS
29-JUN-2022,7013749,53.08,WILKO RETAIL LIMITED,280813,"Health, Education, Care and Safeguarding",Children's & Education Services,103,Supplies and Services,504,Equipment,5023,Revenue,NON INFLUENCIBLE.REDECORATION GRANTS
29-JUN-2022,7013767,298,DREAMING BEDS,383452,"Health, Education, Care and Safeguarding",Children's & Education Services,103,Supplies and Services,504,Equipment,5023,Revenue,FURNITURE.DOMESTIC
29-JUN-2022,7013796,14.5,B&M RETAIL LTD,388117,"Health, Education, Care and Safeguarding",Children's & Education Services,103,Supplies and Services,504,Equipment,5023,Revenue,FURNITURE.DOMESTIC
29-JUN-2022,7013813,113,CRADLEWELL CURTAIN COM,391251,"Health, Education, Care and Safeguarding",Children's & Education Services,103,Supplies and Services,504,Equipment,5023,Revenue,FURNITURE.SOFT FURNISHINGS
29-JUN-2022,7013813,55,CRADLEWELL CURTAIN COM,391251,"Health, Education, Care and Safeguarding",Children's & Education Services,103,Supplies and Services,504,Equipment,5023,Revenue,FURNITURE.SOFT FURNISHINGS
29-JUN-2022,7013825,0.01,AMAZON GENERAL PAYMENTS,375398,"Health, Education, Care and Safeguarding",Children's & Education Services,103,Supplies and Services,504,Equipment,5023,Revenue,EDUCATIONAL SUPPLIES.SUPPLIES
29-JUN-2022,7013825,0.01,AMAZON GENERAL PAYMENTS,375398,"Health, Education, Care and Safeguarding",Children's & Education Services,103,Supplies and Services,504,Equipment,5023,Revenue,EDUCATIONAL SUPPLIES.SUPPLIES
29-JUN-2022,7013825,4.06,AMAZON GENERAL PAYMENTS,375398,"Health, Education, Care and Safeguarding",Children's & Education Services,103,Supplies and Services,504,Equipment,5023,Revenue,EDUCATIONAL SUPPLIES.SUPPLIES
29-JUN-2022,7013825,4.98,AMAZON GENERAL PAYMENTS,375398,"Health, Education, Care and Safeguarding",Children's & Education Services,103,Supplies and Services,504,Equipment,5023,Revenue,EDUCATIONAL SUPPLIES.SUPPLIES
29-JUN-2022,7013825,7.49,AMAZON GENERAL PAYMENTS,375398,"Health, Education, Care and Safeguarding",Children's & Education Services,103,Supplies and Services,504,Equipment,5023,Revenue,EDUCATIONAL SUPPLIES.SUPPLIES
29-JUN-2022,7013825,11.66,AMAZON GENERAL PAYMENTS,375398,"Health, Education, Care and Safeguarding",Children's & Education Services,103,Supplies and Services,504,Equipment,5023,Revenue,EDUCATIONAL SUPPLIES.SUPPLIES
29-JUN-2022,7013825,19.16,AMAZON GENERAL PAYMENTS,375398,"Health, Education, Care and Safeguarding",Children's & Education Services,103,Supplies and Services,504,Equipment,5023,Revenue,EDUCATIONAL SUPPLIES.SUPPLIES
29-JUN-2022,7013825,33.32,AMAZON GENERAL PAYMENTS,375398,"Health, Education, Care and Safeguarding",Children's & Education Services,103,Supplies and Services,504,Equipment,5023,Revenue,EDUCATIONAL SUPPLIES.SUPPLIES
29-JUN-2022,7013825,133.32,AMAZON GENERAL PAYMENTS,375398,"Health, Education, Care and Safeguarding",Children's & Education Services,103,Supplies and Services,504,Equipment,5023,Revenue,EDUCATIONAL SUPPLIES.SUPPLIES
29-JUN-2022,7013825,0.01,AMAZON GENERAL PAYMENTS,375398,"Health, Education, Care and Safeguarding",Children's & Education Services,103,Supplies and Services,504,Miscellaneous Expenses,5034,Revenue,EDUCATIONAL SUPPLIES.SUPPLIES
29-JUN-2022,7013825,12.48,AMAZON GENERAL PAYMENTS,375398,"Health, Education, Care and Safeguarding",Children's & Education Services,103,Supplies and Services,504,Miscellaneous Expenses,5034,Revenue,EDUCATIONAL SUPPLIES.SUPPLIES
29-JUN-2022,7013827,-0.01,ARGOS LTD,253446,"Health, Education, Care and Safeguarding",Children's & Education Services,103,Supplies and Services,504,Equipment,5023,Revenue,FURNITURE.DOMESTIC
29-JUN-2022,7013827,104.17,ARGOS LTD,253446,"Health, Education, Care and Safeguarding",Children's & Education Services,103,Supplies and Services,504,Equipment,5023,Revenue,FURNITURE.DOMESTIC
29-JUN-2022,7013928,-0.01,NWL,396863,"Health, Education, Care and Safeguarding",Children's & Education Services,103,Premises-Related Expenditure,502,Rates,5008,Revenue,WATER.WATER
29-JUN-2022,7013928,46.88,NWL,396863,"Health, Education, Care and Safeguarding",Children's & Education Services,103,Premises-Related Expenditure,502,Rates,5008,Revenue,WATER.WATER
29-JUN-2022,7013928,46.88,NWL,396863,"Health, Education, Care and Safeguarding",Children's & Education Services,103,Premises-Related Expenditure,502,Rates,5008,Revenue,WATER.WATER
29-JUN-2022,7013928,66.13,NWL,396863,"Health, Education, Care and Safeguarding",Children's & Education Services,103,Premises-Related Expenditure,502,Rates,5008,Revenue,WATER.WATER
29-JUN-2022,7013928,82.26,NWL,396863,"Health, Education, Care and Safeguarding",Children's & Education Services,103,Premises-Related Expenditure,502,Rates,5008,Revenue,WATER.WATER
29-JUN-2022,7013928,88.67,NWL,396863,"Health, Education, Care and Safeguarding",Children's & Education Services,103,Premises-Related Expenditure,502,Rates,5008,Revenue,WATER.WATER
29-JUN-2022,7013928,88.67,NWL,396863,"Health, Education, Care and Safeguarding",Children's & Education Services,103,Premises-Related Expenditure,502,Rates,5008,Revenue,WATER.WATER
29-JUN-2022,7013928,119.2,NWL,396863,"Health, Education, Care and Safeguarding",Children's & Education Services,103,Premises-Related Expenditure,502,Rates,5008,Revenue,WATER.WATER
29-JUN-2022,7013928,124.04,NWL,396863,"Health, Education, Care and Safeguarding",Children's & Education Services,103,Premises-Related Expenditure,502,Rates,5008,Revenue,WATER.WATER
29-JUN-2022,7013928,143.3,NWL,396863,"Health, Education, Care and Safeguarding",Children's & Education Services,103,Premises-Related Expenditure,502,Rates,5008,Revenue,WATER.WATER
29-JUN-2022,7013827,137.5,ARGOS LTD,253446,"Health, Education, Care and Safeguarding",Children's & Education Services,103,Transfer Payments,506,School Children and Students,5046,Revenue,FURNITURE.DOMESTIC
29-JUN-2022,7013755,278.33,IKEA LTD,231453,"Health, Education, Care and Safeguarding",Children's & Education Services,103,Transfer Payments,506,School Children and Students,5046,Revenue,FURNITURE.DOMESTIC
29-JUN-2022,7013859,144.17,LUKE STAYS,402835,"Health, Education, Care and Safeguarding",Children's & Education Services,103,Transfer Payments,506,School Children and Students,5046,Revenue,NON INFLUENCIBLE.NON INFLUENCIBLE
29-JUN-2022,7013795,35,GENERAL REGISTER OFFICE,388286,"Health, Education, Care and Safeguarding",Children's & Education Services,103,Supplies and Services,504,Expenses,5030,Revenue,NON INFLUENCIBLE.NON INFLUENCIBLE
29-JUN-2022,7013795,38,GENERAL REGISTER OFFICE,388286,"Health, Education, Care and Safeguarding",Children's & Education Services,103,Supplies and Services,504,Expenses,5030,Revenue,NON INFLUENCIBLE.NON INFLUENCIBLE
29-JUN-2022,7013795,-38.75,GENERAL REGISTER OFFICE,388286,"Health, Education, Care and Safeguarding",Children's & Education Services,103,Supplies and Services,504,Miscellaneous Expenses,5034,Revenue,NON INFLUENCIBLE.NON INFLUENCIBLE
29-JUN-2022,7013795,-38,GENERAL REGISTER OFFICE,388286,"Health, Education, Care and Safeguarding",Children's & Education Services,103,Supplies and Services,504,Miscellaneous Expenses,5034,Revenue,NON INFLUENCIBLE.NON INFLUENCIBLE
29-JUN-2022,7013795,45.25,GENERAL REGISTER OFFICE,388286,"Health, Education, Care and Safeguarding",Children's & Education Services,103,Supplies and Services,504,Miscellaneous Expenses,5034,Revenue,NON INFLUENCIBLE.NON INFLUENCIBLE
29-JUN-2022,7013795,76,GENERAL REGISTER OFFICE,388286,"Health, Education, Care and Safeguarding",Children's & Education Services,103,Supplies and Services,504,Miscellaneous Expenses,5034,Revenue,NON INFLUENCIBLE.NON INFLUENCIBLE
29-JUN-2022,7013795,118.25,GENERAL REGISTER OFFICE,388286,"Health, Education, Care and Safeguarding",Children's & Education Services,103,Supplies and Services,504,Miscellaneous Expenses,5034,Revenue,NON INFLUENCIBLE.NON INFLUENCIBLE
29-JUN-2022,7013859,196.67,LUKE STAYS,402835,"Health, Education, Care and Safeguarding",Children's & Education Services,103,Supplies and Services,504,Miscellaneous Expenses,5034,Revenue,NON INFLUENCIBLE.NON INFLUENCIBLE
29-JUN-2022,7013859,250,LUKE STAYS,402835,"Health, Education, Care and Safeguarding",Children's & Education Services,103,Supplies and Services,504,Miscellaneous Expenses,5034,Revenue,NON INFLUENCIBLE.NON INFLUENCIBLE
29-JUN-2022,7013741,127,HER MAJESTY'S PASSPORT OFFICE,342302,"Health, Education, Care and Safeguarding",Children's & Education Services,103,Supplies and Services,504,Expenses,5030,Revenue,NON INFLUENCIBLE.NON INFLUENCIBLE
29-JUN-2022,7013795,-31.5,GENERAL REGISTER OFFICE,388286,"Health, Education, Care and Safeguarding",Children's & Education Services,103,Supplies and Services,504,Expenses,5030,Revenue,NON INFLUENCIBLE.NON INFLUENCIBLE
29-JUN-2022,7013795,35,GENERAL REGISTER OFFICE,388286,"Health, Education, Care and Safeguarding",Children's & Education Services,103,Supplies and Services,504,Expenses,5030,Revenue,NON INFLUENCIBLE.NON INFLUENCIBLE
29-JUN-2022,7013795,38,GENERAL REGISTER OFFICE,388286,"Health, Education, Care and Safeguarding",Children's & Education Services,103,Supplies and Services,504,Expenses,5030,Revenue,NON INFLUENCIBLE.NON INFLUENCIBLE
29-JUN-2022,7013795,70,GENERAL REGISTER OFFICE,388286,"Health, Education, Care and Safeguarding",Children's & Education Services,103,Supplies and Services,504,Expenses,5030,Revenue,NON INFLUENCIBLE.NON INFLUENCIBLE
29-JUN-2022,7013795,76,GENERAL REGISTER OFFICE,388286,"Health, Education, Care and Safeguarding",Children's & Education Services,103,Supplies and Services,504,Expenses,5030,Revenue,NON INFLUENCIBLE.NON INFLUENCIBLE
29-JUN-2022,7013801,-70,NEWCASTLE CITY COUNCIL,014331,"Health, Education, Care and Safeguarding",Children's & Education Services,103,Supplies and Services,504,Expenses,5030,Revenue,NON INFLUENCIBLE.PUBLIC SECTOR
29-JUN-2022,7013801,105,NEWCASTLE CITY COUNCIL,014331,"Health, Education, Care and Safeguarding",Children's & Education Services,103,Supplies and Services,504,Expenses,5030,Revenue,NON INFLUENCIBLE.PUBLIC SECTOR
29-JUN-2022,7013859,1666.67,LUKE STAYS,402835,"Health, Education, Care and Safeguarding",Children's & Education Services,103,Third Party Payments,505,Other Establishments,5041,Revenue,NON INFLUENCIBLE.NON INFLUENCIBLE
29-JUN-2022,7013741,85,HER MAJESTY'S PASSPORT OFFICE,342302,"Health, Education, Care and Safeguarding",Children's & Education Services,103,Supplies and Services,504,Expenses,5030,Revenue,NON INFLUENCIBLE.NON INFLUENCIBLE
29-JUN-2022,7013762,16.67,TESCO STORES LTD,336585,"Health, Education, Care and Safeguarding",Children's & Education Services,103,Supplies and Services,504,Miscellaneous Expenses,5034,Revenue,CATERING.FOOD & BEVERAGES
29-JUN-2022,7013762,20.83,TESCO STORES LTD,336585,"Health, Education, Care and Safeguarding",Children's & Education Services,103,Supplies and Services,504,Miscellaneous Expenses,5034,Revenue,CATERING.FOOD & BEVERAGES
29-JUN-2022,7013762,20.83,TESCO STORES LTD,336585,"Health, Education, Care and Safeguarding",Children's & Education Services,103,Supplies and Services,504,Miscellaneous Expenses,5034,Revenue,CATERING.FOOD & BEVERAGES
29-JUN-2022,7013795,73,GENERAL REGISTER OFFICE,388286,"Health, Education, Care and Safeguarding",Children's & Education Services,103,Supplies and Services,504,Expenses,5030,Revenue,NON INFLUENCIBLE.NON INFLUENCIBLE
29-JUN-2022,7013864,319.17,ALEXANDER APARTMENTS,402061,"Health, Education, Care and Safeguarding",Children's & Education Services,103,Supplies and Services,504,Expenses,5030,Revenue,HUMAN RESOURCES.ACCOMMODATION
29-JUN-2022,7013719,6.42,STARBUCKS COFFEE CO.,375187,"Health, Education, Care and Safeguarding",Children's & Education Services,103,Third Party Payments,505,Other Establishments,5041,Revenue,CATERING.FOOD & BEVERAGES
29-JUN-2022,7013723,44.03,TRAINLINE.COM LTD,378856,"Health, Education, Care and Safeguarding",Children's & Education Services,103,Third Party Payments,505,Other Establishments,5041,Revenue,HUMAN RESOURCES.TRAVEL & SUBSISTENCE
29-JUN-2022,7013726,22.5,ASDA STORES LIMITED,306530,"Health, Education, Care and Safeguarding",Children's & Education Services,103,Third Party Payments,505,Other Establishments,5041,Revenue,CATERING.FOOD & BEVERAGES
29-JUN-2022,7013726,15,ASDA STORES LIMITED,306530,"Health, Education, Care and Safeguarding",Children's & Education Services,103,Third Party Payments,505,Other Establishments,5041,Revenue,CATERING.FOOD & BEVERAGES
29-JUN-2022,7013728,16.67,MORRISONS PETROL,382103,"Health, Education, Care and Safeguarding",Children's & Education Services,103,Supplies and Services,504,Catering,5024,Revenue,VEHICLE MANAGEMENT.FUEL
29-JUN-2022,7013729,50,VOUCHER EXPRESS,380042,"Health, Education, Care and Safeguarding",Children's & Education Services,103,Third Party Payments,505,Other Establishments,5041,Revenue,FURNITURE.DOMESTIC
29-JUN-2022,7013729,130,VOUCHER EXPRESS,380042,"Health, Education, Care and Safeguarding",Children's & Education Services,103,Third Party Payments,505,Other Establishments,5041,Revenue,FURNITURE.DOMESTIC
29-JUN-2022,7013730,20,HIGHSTREET VOUCHERS,380041,"Health, Education, Care and Safeguarding",Children's & Education Services,103,Third Party Payments,505,Other Establishments,5041,Revenue,ADVERTISING & MARKETING.EVENTS & PROMOTIONS
29-JUN-2022,7013733,77.5,B & Q (205037),205037,"Health, Education, Care and Safeguarding",Children's & Education Services,103,Supplies and Services,504,Equipment,5023,Revenue,BUILDING MATERIALS.GENERAL MATERIALS
29-JUN-2022,7013736,159,TV LICENSING,014515,"Health, Education, Care and Safeguarding",Children's & Education Services,103,Third Party Payments,505,Other Establishments,5041,Revenue,SUBSCRIPTIONS & PUBLICATIONS.TV/RADIO LICENCES
29-JUN-2022,7013736,159,TV LICENSING,014515,"Health, Education, Care and Safeguarding",Children's & Education Services,103,Third Party Payments,505,Other Establishments,5041,Revenue,SUBSCRIPTIONS & PUBLICATIONS.TV/RADIO LICENCES
29-JUN-2022,7013741,62.92,HER MAJESTY'S PASSPORT OFFICE,342302,"Health, Education, Care and Safeguarding",Children's & Education Services,103,Third Party Payments,505,Other Establishments,5041,Revenue,NON INFLUENCIBLE.NON INFLUENCIBLE
29-JUN-2022,7013744,28.33,DVLA,322925,"Health, Education, Care and Safeguarding",Children's & Education Services,103,Third Party Payments,505,Other Establishments,5041,Revenue,NON INFLUENCIBLE.NON INFLUENCIBLE
29-JUN-2022,7013746,805.83,DALLAS CARPETS LTD,307445,"Health, Education, Care and Safeguarding",Children's & Education Services,103,Third Party Payments,505,Other Establishments,5041,Revenue,FURNITURE.SOFT FURNISHINGS
29-JUN-2022,7013749,6.25,WILKO RETAIL LIMITED,280813,"Health, Education, Care and Safeguarding",Children's & Education Services,103,Supplies and Services,504,Equipment,5023,Revenue,NON INFLUENCIBLE.REDECORATION GRANTS
29-JUN-2022,7013749,13.21,WILKO RETAIL LIMITED,280813,"Health, Education, Care and Safeguarding",Children's & Education Services,103,Supplies and Services,504,Equipment,5023,Revenue,NON INFLUENCIBLE.REDECORATION GRANTS
29-JUN-2022,7013749,5,WILKO RETAIL LIMITED,280813,"Health, Education, Care and Safeguarding",Children's & Education Services,103,Third Party Payments,505,Other Establishments,5041,Revenue,NON INFLUENCIBLE.REDECORATION GRANTS
29-JUN-2022,7013754,17,NORTH TYNESIDE COUNCIL,102767,"Health, Education, Care and Safeguarding",Children's & Education Services,103,Third Party Payments,505,Other Establishments,5041,Revenue,NON INFLUENCIBLE.PUBLIC SECTOR
29-JUN-2022,7013754,31.67,NORTH TYNESIDE COUNCIL,102767,"Health, Education, Care and Safeguarding",Children's & Education Services,103,Third Party Payments,505,Other Establishments,5041,Revenue,NON INFLUENCIBLE.PUBLIC SECTOR
29-JUN-2022,7013754,34,NORTH TYNESIDE COUNCIL,102767,"Health, Education, Care and Safeguarding",Children's & Education Services,103,Third Party Payments,505,Other Establishments,5041,Revenue,NON INFLUENCIBLE.PUBLIC SECTOR
29-JUN-2022,7013754,70.93,NORTH TYNESIDE COUNCIL,102767,"Health, Education, Care and Safeguarding",Children's & Education Services,103,Third Party Payments,505,Other Establishments,5041,Revenue,NON INFLUENCIBLE.PUBLIC SECTOR
29-JUN-2022,7013754,20,NORTH TYNESIDE COUNCIL,102767,"Health, Education, Care and Safeguarding",Children's & Education Services,103,Third Party Payments,505,Other Establishments,5041,Revenue,NON INFLUENCIBLE.PUBLIC SECTOR
29-JUN-2022,7013754,100,NORTH TYNESIDE COUNCIL,102767,"Health, Education, Care and Safeguarding",Children's & Education Services,103,Third Party Payments,505,Other Establishments,5041,Revenue,NON INFLUENCIBLE.PUBLIC SECTOR
29-JUN-2022,7013754,100,NORTH TYNESIDE COUNCIL,102767,"Health, Education, Care and Safeguarding",Children's & Education Services,103,Third Party Payments,505,Other Establishments,5041,Revenue,NON INFLUENCIBLE.PUBLIC SECTOR
29-JUN-2022,7013755,182.5,IKEA LTD,231453,"Health, Education, Care and Safeguarding",Children's & Education Services,103,Third Party Payments,505,Other Establishments,5041,Revenue,FURNITURE.DOMESTIC
29-JUN-2022,7013755,199.17,IKEA LTD,231453,"Health, Education, Care and Safeguarding",Children's & Education Services,103,Third Party Payments,505,Other Establishments,5041,Revenue,FURNITURE.DOMESTIC
29-JUN-2022,7013761,2.5,WM MORRISON SUPERMARKETS PLC,013562,"Health, Education, Care and Safeguarding",Children's & Education Services,103,Supplies and Services,504,Catering,5024,Revenue,CATERING.FOOD & BEVERAGES
29-JUN-2022,7013761,8.33,WM MORRISON SUPERMARKETS PLC,013562,"Health, Education, Care and Safeguarding",Children's & Education Services,103,Supplies and Services,504,Communications & Computing,5028,Revenue,CATERING.FOOD & BEVERAGES
29-JUN-2022,7013761,-0.01,WM MORRISON SUPERMARKETS PLC,013562,"Health, Education, Care and Safeguarding",Children's & Education Services,103,Third Party Payments,505,Other Establishments,5041,Revenue,CATERING.FOOD & BEVERAGES
29-JUN-2022,7013761,8.33,WM MORRISON SUPERMARKETS PLC,013562,"Health, Education, Care and Safeguarding",Children's & Education Services,103,Third Party Payments,505,Other Establishments,5041,Revenue,CATERING.FOOD & BEVERAGES
29-JUN-2022,7013761,11.67,WM MORRISON SUPERMARKETS PLC,013562,"Health, Education, Care and Safeguarding",Children's & Education Services,103,Third Party Payments,505,Other Establishments,5041,Revenue,CATERING.FOOD & BEVERAGES
29-JUN-2022,7013761,28.43,WM MORRISON SUPERMARKETS PLC,013562,"Health, Education, Care and Safeguarding",Children's & Education Services,103,Third Party Payments,505,Other Establishments,5041,Revenue,CATERING.FOOD & BEVERAGES
29-JUN-2022,7013762,10,TESCO STORES LTD,336585,"Health, Education, Care and Safeguarding",Children's & Education Services,103,Supplies and Services,504,Communications & Computing,5028,Revenue,CATERING.FOOD & BEVERAGES
29-JUN-2022,7013762,0.01,TESCO STORES LTD,336585,"Health, Education, Care and Safeguarding",Children's & Education Services,103,Third Party Payments,505,Other Establishments,5041,Revenue,CATERING.FOOD & BEVERAGES
29-JUN-2022,7013762,1.67,TESCO STORES LTD,336585,"Health, Education, Care and Safeguarding",Children's & Education Services,103,Third Party Payments,505,Other Establishments,5041,Revenue,CATERING.FOOD & BEVERAGES
29-JUN-2022,7013762,10,TESCO STORES LTD,336585,"Health, Education, Care and Safeguarding",Children's & Education Services,103,Third Party Payments,505,Other Establishments,5041,Revenue,CATERING.FOOD & BEVERAGES
29-JUN-2022,7013762,10,TESCO STORES LTD,336585,"Health, Education, Care and Safeguarding",Children's & Education Services,103,Third Party Payments,505,Other Establishments,5041,Revenue,CATERING.FOOD & BEVERAGES
29-JUN-2022,7013762,17.07,TESCO STORES LTD,336585,"Health, Education, Care and Safeguarding",Children's & Education Services,103,Third Party Payments,505,Other Establishments,5041,Revenue,CATERING.FOOD & BEVERAGES
29-JUN-2022,7013762,25,TESCO STORES LTD,336585,"Health, Education, Care and Safeguarding",Children's & Education Services,103,Third Party Payments,505,Other Establishments,5041,Revenue,CATERING.FOOD & BEVERAGES
29-JUN-2022,7013762,57.5,TESCO STORES LTD,336585,"Health, Education, Care and Safeguarding",Children's & Education Services,103,Third Party Payments,505,Other Establishments,5041,Revenue,CATERING.FOOD & BEVERAGES
29-JUN-2022,7013762,0.01,TESCO STORES LTD,336585,"Health, Education, Care and Safeguarding",Children's & Education Services,103,Third Party Payments,505,Other Establishments,5041,Revenue,CATERING.FOOD & BEVERAGES
29-JUN-2022,7013762,18.32,TESCO STORES LTD,336585,"Health, Education, Care and Safeguarding",Children's & Education Services,103,Third Party Payments,505,Other Establishments,5041,Revenue,CATERING.FOOD & BEVERAGES
29-JUN-2022,7013766,3.33,ASDA DIRECT WEB 4387,381378,"Health, Education, Care and Safeguarding",Children's & Education Services,103,Third Party Payments,505,Other Establishments,5041,Revenue,CATERING.FOOD & BEVERAGES
29-JUN-2022,7013767,225,DREAMING BEDS,383452,"Health, Education, Care and Safeguarding",Children's & Education Services,103,Third Party Payments,505,Other Establishments,5041,Revenue,FURNITURE.DOMESTIC
29-JUN-2022,7013773,2,FIRE STATION,384196,"Health, Education, Care and Safeguarding",Children's & Education Services,103,Third Party Payments,505,Other Establishments,5041,Revenue,CATERING.FOOD & BEVERAGES
29-JUN-2022,7013774,3.92,NEXUS,305246,"Health, Education, Care and Safeguarding",Children's & Education Services,103,Supplies and Services,504,Expenses,5030,Revenue,NON INFLUENCIBLE.NON INFLUENCIBLE
29-JUN-2022,7013774,3.92,NEXUS,305246,"Health, Education, Care and Safeguarding",Children's & Education Services,103,Third Party Payments,505,Other Establishments,5041,Revenue,NON INFLUENCIBLE.NON INFLUENCIBLE
29-JUN-2022,7013775,95.82,CURRYS,310317,"Health, Education, Care and Safeguarding",Children's & Education Services,103,Third Party Payments,505,Other Establishments,5041,Revenue,FURNITURE.DOMESTIC
29-JUN-2022,7013779,0.01,MCDONALDS RESTAURANTS LTD,304796,"Health, Education, Care and Safeguarding",Children's & Education Services,103,Third Party Payments,505,Other Establishments,5041,Revenue,ADVERTISING & MARKETING.EVENTS & PROMOTIONS
29-JUN-2022,7013779,5.54,MCDONALDS RESTAURANTS LTD,304796,"Health, Education, Care and Safeguarding",Children's & Education Services,103,Third Party Payments,505,Other Establishments,5041,Revenue,ADVERTISING & MARKETING.EVENTS & PROMOTIONS
29-JUN-2022,7013779,7.32,MCDONALDS RESTAURANTS LTD,304796,"Health, Education, Care and Safeguarding",Children's & Education Services,103,Third Party Payments,505,Other Establishments,5041,Revenue,ADVERTISING & MARKETING.EVENTS & PROMOTIONS
29-JUN-2022,7013779,10.87,MCDONALDS RESTAURANTS LTD,304796,"Health, Education, Care and Safeguarding",Children's & Education Services,103,Third Party Payments,505,Other Establishments,5041,Revenue,ADVERTISING & MARKETING.EVENTS & PROMOTIONS
29-JUN-2022,7013782,0.01,HOME BARGAINS,381011,"Health, Education, Care and Safeguarding",Children's & Education Services,103,Supplies and Services,504,Miscellaneous Expenses,5034,Revenue,FURNITURE.SOFT FURNISHINGS
29-JUN-2022,7013782,5.82,HOME BARGAINS,381011,"Health, Education, Care and Safeguarding",Children's & Education Services,103,Supplies and Services,504,Miscellaneous Expenses,5034,Revenue,FURNITURE.SOFT FURNISHINGS
29-JUN-2022,7013782,8.71,HOME BARGAINS,381011,"Health, Education, Care and Safeguarding",Children's & Education Services,103,Third Party Payments,505,Other Establishments,5041,Revenue,FURNITURE.SOFT FURNISHINGS
29-JUN-2022,7013784,2.74,CARD FACTORY,380991,"Health, Education, Care and Safeguarding",Children's & Education Services,103,Third Party Payments,505,Other Establishments,5041,Revenue,SUBSCRIPTIONS & PUBLICATIONS.BOOKS & PUBLICATIONS
29-JUN-2022,7013786,7.5,MAX SPIELMANN LTD,383117,"Health, Education, Care and Safeguarding",Children's & Education Services,103,Third Party Payments,505,Other Establishments,5041,Revenue,NON INFLUENCIBLE.NON INFLUENCIBLE
29-JUN-2022,7013794,0.01,LIDL UK GMBH,383629,"Health, Education, Care and Safeguarding",Children's & Education Services,103,Third Party Payments,505,Other Establishments,5041,Revenue,NON INFLUENCIBLE.GRANTS
29-JUN-2022,7013794,0.82,LIDL UK GMBH,383629,"Health, Education, Care and Safeguarding",Children's & Education Services,103,Third Party Payments,505,Other Establishments,5041,Revenue,NON INFLUENCIBLE.GRANTS
29-JUN-2022,7013796,100,B&M RETAIL LTD,388117,"Health, Education, Care and Safeguarding",Children's & Education Services,103,Third Party Payments,505,Other Establishments,5041,Revenue,FURNITURE.DOMESTIC
29-JUN-2022,7013798,249.17,HESLOP APPLIANCES,387960,"Health, Education, Care and Safeguarding",Children's & Education Services,103,Third Party Payments,505,Other Establishments,5041,Revenue,CATERING.EQUIPMENT & UTENSILS
29-JUN-2022,7013802,0.01,YMCA NORTH TYNESIDE,356069,"Health, Education, Care and Safeguarding",Children's & Education Services,103,Third Party Payments,505,Other Establishments,5041,Revenue,SOCIAL CARE.CARE SERVICES
29-JUN-2022,7013802,8.62,YMCA NORTH TYNESIDE,356069,"Health, Education, Care and Safeguarding",Children's & Education Services,103,Third Party Payments,505,Other Establishments,5041,Revenue,SOCIAL CARE.CARE SERVICES
29-JUN-2022,7013803,-0.01,GREGGS PLC,340206,"Health, Education, Care and Safeguarding",Children's & Education Services,103,Third Party Payments,505,Other Establishments,5041,Revenue,CATERING.FOOD & BEVERAGES
29-JUN-2022,7013803,3,GREGGS PLC,340206,"Health, Education, Care and Safeguarding",Children's & Education Services,103,Third Party Payments,505,Other Establishments,5041,Revenue,CATERING.FOOD & BEVERAGES
29-JUN-2022,7013803,4.13,GREGGS PLC,340206,"Health, Education, Care and Safeguarding",Children's & Education Services,103,Third Party Payments,505,Other Establishments,5041,Revenue,CATERING.FOOD & BEVERAGES
29-JUN-2022,7013803,6.66,GREGGS PLC,340206,"Health, Education, Care and Safeguarding",Children's & Education Services,103,Third Party Payments,505,Other Establishments,5041,Revenue,CATERING.FOOD & BEVERAGES
29-JUN-2022,7013809,0.58,ALDI STORES LTD,391717,"Health, Education, Care and Safeguarding",Children's & Education Services,103,Supplies and Services,504,Catering,5024,Revenue,CATERING.FOOD & BEVERAGES
29-JUN-2022,7013809,3.59,ALDI STORES LTD,391717,"Health, Education, Care and Safeguarding",Children's & Education Services,103,Third Party Payments,505,Other Establishments,5041,Revenue,CATERING.FOOD & BEVERAGES
29-JUN-2022,7013816,20,EDF ENERGY,367754,"Health, Education, Care and Safeguarding",Children's & Education Services,103,Third Party Payments,505,Other Establishments,5041,Revenue,ELECTRICITY.ELECTRICITY
29-JUN-2022,7013816,20,EDF ENERGY,367754,"Health, Education, Care and Safeguarding",Children's & Education Services,103,Third Party Payments,505,Other Establishments,5041,Revenue,ELECTRICITY.ELECTRICITY
29-JUN-2022,7013822,0.01,COSTA COFFEE,375193,"Health, Education, Care and Safeguarding",Children's & Education Services,103,Third Party Payments,505,Other Establishments,5041,Revenue,CATERING.FOOD & BEVERAGES
29-JUN-2022,7013822,5.29,COSTA COFFEE,375193,"Health, Education, Care and Safeguarding",Children's & Education Services,103,Third Party Payments,505,Other Establishments,5041,Revenue,CATERING.FOOD & BEVERAGES
29-JUN-2022,7013822,6.21,COSTA COFFEE,375193,"Health, Education, Care and Safeguarding",Children's & Education Services,103,Third Party Payments,505,Other Establishments,5041,Revenue,CATERING.FOOD & BEVERAGES
29-JUN-2022,7013822,11.12,COSTA COFFEE,375193,"Health, Education, Care and Safeguarding",Children's & Education Services,103,Third Party Payments,505,Other Establishments,5041,Revenue,CATERING.FOOD & BEVERAGES
29-JUN-2022,7013825,41.66,AMAZON GENERAL PAYMENTS,375398,"Health, Education, Care and Safeguarding",Children's & Education Services,103,Third Party Payments,505,Other Establishments,5041,Revenue,EDUCATIONAL SUPPLIES.SUPPLIES
29-JUN-2022,7013825,0.01,AMAZON GENERAL PAYMENTS,375398,"Health, Education, Care and Safeguarding",Children's & Education Services,103,Third Party Payments,505,Other Establishments,5041,Revenue,EDUCATIONAL SUPPLIES.SUPPLIES
29-JUN-2022,7013825,27.48,AMAZON GENERAL PAYMENTS,375398,"Health, Education, Care and Safeguarding",Children's & Education Services,103,Third Party Payments,505,Other Establishments,5041,Revenue,EDUCATIONAL SUPPLIES.SUPPLIES
29-JUN-2022,7013827,-0.01,ARGOS LTD,253446,"Health, Education, Care and Safeguarding",Children's & Education Services,103,Third Party Payments,505,Other Establishments,5041,Revenue,FURNITURE.DOMESTIC
29-JUN-2022,7013827,-0.01,ARGOS LTD,253446,"Health, Education, Care and Safeguarding",Children's & Education Services,103,Third Party Payments,505,Other Establishments,5041,Revenue,FURNITURE.DOMESTIC
29-JUN-2022,7013827,25,ARGOS LTD,253446,"Health, Education, Care and Safeguarding",Children's & Education Services,103,Third Party Payments,505,Other Establishments,5041,Revenue,FURNITURE.DOMESTIC
29-JUN-2022,7013827,150,ARGOS LTD,253446,"Health, Education, Care and Safeguarding",Children's & Education Services,103,Third Party Payments,505,Other Establishments,5041,Revenue,FURNITURE.DOMESTIC
29-JUN-2022,7013827,166.67,ARGOS LTD,253446,"Health, Education, Care and Safeguarding",Children's & Education Services,103,Third Party Payments,505,Other Establishments,5041,Revenue,FURNITURE.DOMESTIC
29-JUN-2022,7013827,209.96,ARGOS LTD,253446,"Health, Education, Care and Safeguarding",Children's & Education Services,103,Third Party Payments,505,Other Establishments,5041,Revenue,FURNITURE.DOMESTIC
29-JUN-2022,7013830,50,GENTOO GROUP LIMITED,380575,"Health, Education, Care and Safeguarding",Children's & Education Services,103,Third Party Payments,505,Other Establishments,5041,Revenue,ICT.SOFTWARE
29-JUN-2022,7013833,37.5,ORANGE BOX FURNITURE,283058,"Health, Education, Care and Safeguarding",Children's & Education Services,103,Third Party Payments,505,Other Establishments,5041,Revenue,FURNITURE.COMMERCIAL
29-JUN-2022,7013838,35.83,CITB-CONSTRUCTION SKILLS,363260,"Health, Education, Care and Safeguarding",Children's & Education Services,103,Third Party Payments,505,Other Establishments,5041,Revenue,HUMAN RESOURCES.TRAINING & CONFERENCES
29-JUN-2022,7013878,2.2,NORTH TYNESIDE GENERAL HOSPITAL,274589,"Health, Education, Care and Safeguarding",Children's & Education Services,103,Third Party Payments,505,Other Establishments,5041,Revenue,NON INFLUENCIBLE.DOCTORS/MEDICAL FEES
29-JUN-2022,7013881,0.01,SUM UP,400305,"Health, Education, Care and Safeguarding",Children's & Education Services,103,Third Party Payments,505,Other Establishments,5041,Revenue,ICT.HARDWARE
29-JUN-2022,7013881,6.37,SUM UP,400305,"Health, Education, Care and Safeguarding",Children's & Education Services,103,Third Party Payments,505,Other Establishments,5041,Revenue,ICT.HARDWARE
29-JUN-2022,7013913,21.25,HOTEL MICHEL ANGELO,403198,"Health, Education, Care and Safeguarding",Children's & Education Services,103,Third Party Payments,505,Other Establishments,5041,Revenue,HUMAN RESOURCES.ACCOMMODATION
29-JUN-2022,7013914,0.01,HOME DONE LIMITED,403197,"Health, Education, Care and Safeguarding",Children's & Education Services,103,Third Party Payments,505,Other Establishments,5041,Revenue,NON INFLUENCIBLE.NON INFLUENCIBLE
29-JUN-2022,7013914,515.82,HOME DONE LIMITED,403197,"Health, Education, Care and Safeguarding",Children's & Education Services,103,Third Party Payments,505,Other Establishments,5041,Revenue,NON INFLUENCIBLE.NON INFLUENCIBLE
29-JUN-2022,7013915,8.21,GRAYS CAFE,403196,"Health, Education, Care and Safeguarding",Children's & Education Services,103,Third Party Payments,505,Other Establishments,5041,Revenue,NON INFLUENCIBLE.NON INFLUENCIBLE
29-JUN-2022,7013923,10.42,CAFE 19,403170,"Health, Education, Care and Safeguarding",Children's & Education Services,103,Third Party Payments,505,Other Establishments,5041,Revenue,CATERING.BANQUET & CATERING
29-JUN-2022,7013924,14.74,BLACK BULL,403169,"Health, Education, Care and Safeguarding",Children's & Education Services,103,Third Party Payments,505,Other Establishments,5041,Revenue,CATERING.BANQUET & CATERING
29-JUN-2022,7013928,31.07,NWL,396863,"Health, Education, Care and Safeguarding",Children's & Education Services,103,Supplies and Services,504,"Printing, Stationery and General Office Expenses",5026,Revenue,WATER.WATER
29-JUN-2022,7013928,213.63,NWL,396863,"Health, Education, Care and Safeguarding",Children's & Education Services,103,Third Party Payments,505,Other Establishments,5041,Revenue,WATER.WATER
29-JUN-2022,7013932,10,COMMUNITY TRANSPORT,003017,"Health, Education, Care and Safeguarding",Children's & Education Services,103,Supplies and Services,504,Equipment,5023,Revenue,SOCIAL CARE.CONSUMABLES
29-JUN-2022,7013932,15,COMMUNITY TRANSPORT,003017,"Health, Education, Care and Safeguarding",Children's & Education Services,103,Supplies and Services,504,Equipment,5023,Revenue,SOCIAL CARE.CONSUMABLES
29-JUN-2022,7013741,49,HER MAJESTY'S PASSPORT OFFICE,342302,"Health, Education, Care and Safeguarding",Children's & Education Services,103,Supplies and Services,504,Miscellaneous Expenses,5034,Revenue,NON INFLUENCIBLE.NON INFLUENCIBLE
29-JUN-2022,7013741,49,HER MAJESTY'S PASSPORT OFFICE,342302,"Health, Education, Care and Safeguarding",Children's & Education Services,103,Supplies and Services,504,Miscellaneous Expenses,5034,Revenue,NON INFLUENCIBLE.NON INFLUENCIBLE
29-JUN-2022,7013795,-31.5,GENERAL REGISTER OFFICE,388286,"Health, Education, Care and Safeguarding",Children's & Education Services,103,Supplies and Services,504,Expenses,5030,Revenue,NON INFLUENCIBLE.NON INFLUENCIBLE
29-JUN-2022,7013795,-31.5,GENERAL REGISTER OFFICE,388286,"Health, Education, Care and Safeguarding",Children's & Education Services,103,Supplies and Services,504,Expenses,5030,Revenue,NON INFLUENCIBLE.NON INFLUENCIBLE
29-JUN-2022,7013795,-31.5,GENERAL REGISTER OFFICE,388286,"Health, Education, Care and Safeguarding",Children's & Education Services,103,Supplies and Services,504,Miscellaneous Expenses,5034,Revenue,NON INFLUENCIBLE.NON INFLUENCIBLE
29-JUN-2022,7013795,83.25,GENERAL REGISTER OFFICE,388286,"Health, Education, Care and Safeguarding",Children's & Education Services,103,Supplies and Services,504,Miscellaneous Expenses,5034,Revenue,NON INFLUENCIBLE.NON INFLUENCIBLE
29-JUN-2022,7013827,-0.01,ARGOS LTD,253446,"Health, Education, Care and Safeguarding",Children's & Education Services,103,Supplies and Services,504,Equipment,5023,Revenue,FURNITURE.DOMESTIC
29-JUN-2022,7013827,25.83,ARGOS LTD,253446,"Health, Education, Care and Safeguarding",Children's & Education Services,103,Supplies and Services,504,Equipment,5023,Revenue,FURNITURE.DOMESTIC
29-JUN-2022,7013827,292.46,ARGOS LTD,253446,"Health, Education, Care and Safeguarding",Children's & Education Services,103,Supplies and Services,504,Equipment,5023,Revenue,FURNITURE.DOMESTIC
29-JUN-2022,7013762,7.08,TESCO STORES LTD,336585,Corporate Strategy,Children's & Education Services,103,Supplies and Services,504,Expenses,5030,Revenue,CATERING.FOOD & BEVERAGES
29-JUN-2022,7013762,10.1,TESCO STORES LTD,336585,Corporate Strategy,Children's & Education Services,103,Supplies and Services,504,Expenses,5030,Revenue,CATERING.FOOD & BEVERAGES
29-JUN-2022,7013796,8.67,B&M RETAIL LTD,388117,Corporate Strategy,Children's & Education Services,103,Supplies and Services,504,Expenses,5030,Revenue,FURNITURE.DOMESTIC
29-JUN-2022,7013809,4.38,ALDI STORES LTD,391717,Corporate Strategy,Children's & Education Services,103,Employees,501,Direct Employee Expenses,5001,Revenue,CATERING.FOOD & BEVERAGES
29-JUN-2022,7013809,1.23,ALDI STORES LTD,391717,Corporate Strategy,Children's & Education Services,103,Supplies and Services,504,Catering,5024,Revenue,CATERING.FOOD & BEVERAGES
29-JUN-2022,7013809,22.93,ALDI STORES LTD,391717,Corporate Strategy,Children's & Education Services,103,Supplies and Services,504,Catering,5024,Revenue,CATERING.FOOD & BEVERAGES
29-JUN-2022,7013825,14.16,AMAZON GENERAL PAYMENTS,375398,Corporate Strategy,Children's & Education Services,103,Supplies and Services,504,Expenses,5030,Revenue,EDUCATIONAL SUPPLIES.SUPPLIES
29-JUN-2022,7013825,18.32,AMAZON GENERAL PAYMENTS,375398,Corporate Strategy,Children's & Education Services,103,Supplies and Services,504,Expenses,5030,Revenue,EDUCATIONAL SUPPLIES.SUPPLIES
29-JUN-2022,7013881,7.75,SUM UP,400305,Corporate Strategy,Children's & Education Services,103,Supplies and Services,504,Expenses,5030,Revenue,ICT.HARDWARE
29-JUN-2022,7013902,1.67,CAFE MY PLACE,403209,Corporate Strategy,Children's & Education Services,103,Supplies and Services,504,Catering,5024,Revenue,NON INFLUENCIBLE.NON INFLUENCIBLE
29-JUN-2022,7013902,6,CAFE MY PLACE,403209,Corporate Strategy,Children's & Education Services,103,Supplies and Services,504,Catering,5024,Revenue,NON INFLUENCIBLE.NON INFLUENCIBLE
29-JUN-2022,7013733,18.33,B & Q (205037),205037,"Health, Education, Care and Safeguarding",Children's & Education Services,103,Premises-Related Expenditure,502,"Repairs, alterations and maintenance of buildings",5005,Revenue,BUILDING MATERIALS.GENERAL MATERIALS
29-JUN-2022,7013792,25,WALKERGATE & PARKSIDE,346590,"Health, Education, Care and Safeguarding",Children's & Education Services,103,Premises-Related Expenditure,502,"Repairs, alterations and maintenance of buildings",5005,Revenue,HORTICULTURAL.TOOLS & EQUIPMENT
29-JUN-2022,7013740,18.9,IRONMONGERY DIRECT LTD,385120,"Health, Education, Care and Safeguarding",Children's & Education Services,103,Premises-Related Expenditure,502,"Repairs, alterations and maintenance of buildings",5005,Revenue,FURNITURE.DOMESTIC
29-JUN-2022,7013891,59.15,AGRI-GEM.CO.UK,398859,"Health, Education, Care and Safeguarding",Children's & Education Services,103,Premises-Related Expenditure,502,"Repairs, alterations and maintenance of buildings",5005,Revenue,HORTICULTURAL.TOOLS & EQUIPMENT
29-JUN-2022,7013740,4.73,IRONMONGERY DIRECT LTD,385120,"Health, Education, Care and Safeguarding",Children's & Education Services,103,Premises-Related Expenditure,502,"Repairs, alterations and maintenance of buildings",5005,Revenue,FURNITURE.DOMESTIC
29-JUN-2022,7013796,7.98,B&M RETAIL LTD,388117,"Health, Education, Care and Safeguarding",Children's & Education Services,103,Supplies and Services,504,Miscellaneous Expenses,5034,Revenue,FURNITURE.DOMESTIC
29-JUN-2022,7013809,43.01,ALDI STORES LTD,391717,"Health, Education, Care and Safeguarding",Children's & Education Services,103,Supplies and Services,504,Equipment,5023,Revenue,CATERING.FOOD & BEVERAGES
29-JUN-2022,7013721,70,WICKES LTD,366831,"Sport, Leisure & Community",Cultural & Related Services,104,Supplies and Services,504,Equipment,5023,Revenue,FURNITURE.DOMESTIC
29-JUN-2022,7013721,50.75,WICKES LTD,366831,"Sport, Leisure & Community",Cultural & Related Services,104,Supplies and Services,504,Equipment,5023,Revenue,FURNITURE.DOMESTIC
29-JUN-2022,7013732,21.67,SAINSBURY'S SUPERMARKET LIMITED,334326,"Sport, Leisure & Community",Cultural & Related Services,104,Supplies and Services,504,"Printing, Stationery and General Office Expenses",5026,Revenue,CATERING.FOOD & BEVERAGES
29-JUN-2022,7013733,83.33,B & Q (205037),205037,"Sport, Leisure & Community",Cultural & Related Services,104,Supplies and Services,504,Equipment,5023,Revenue,BUILDING MATERIALS.GENERAL MATERIALS
29-JUN-2022,7013781,-0.01,SPAR,381141,"Sport, Leisure & Community",Cultural & Related Services,104,Supplies and Services,504,Equipment,5023,Revenue,CATERING.FOOD & BEVERAGES
29-JUN-2022,7013781,4.13,SPAR,381141,"Sport, Leisure & Community",Cultural & Related Services,104,Supplies and Services,504,Equipment,5023,Revenue,CATERING.FOOD & BEVERAGES
29-JUN-2022,7013796,-0.01,B&M RETAIL LTD,388117,"Sport, Leisure & Community",Cultural & Related Services,104,Supplies and Services,504,Equipment,5023,Revenue,FURNITURE.DOMESTIC
29-JUN-2022,7013796,18.98,B&M RETAIL LTD,388117,"Sport, Leisure & Community",Cultural & Related Services,104,Supplies and Services,504,Equipment,5023,Revenue,FURNITURE.DOMESTIC
29-JUN-2022,7013825,21.57,AMAZON GENERAL PAYMENTS,375398,"Sport, Leisure & Community",Cultural & Related Services,104,Supplies and Services,504,Equipment,5023,Revenue,EDUCATIONAL SUPPLIES.SUPPLIES
29-JUN-2022,7013825,0.01,AMAZON GENERAL PAYMENTS,375398,"Sport, Leisure & Community",Cultural & Related Services,104,Supplies and Services,504,"Printing, Stationery and General Office Expenses",5026,Revenue,EDUCATIONAL SUPPLIES.SUPPLIES
29-JUN-2022,7013825,17.42,AMAZON GENERAL PAYMENTS,375398,"Sport, Leisure & Community",Cultural & Related Services,104,Supplies and Services,504,"Printing, Stationery and General Office Expenses",5026,Revenue,EDUCATIONAL SUPPLIES.SUPPLIES
29-JUN-2022,7013825,81.32,AMAZON GENERAL PAYMENTS,375398,"Sport, Leisure & Community",Cultural & Related Services,104,Supplies and Services,504,"Printing, Stationery and General Office Expenses",5026,Revenue,EDUCATIONAL SUPPLIES.SUPPLIES
29-JUN-2022,7013825,111.33,AMAZON GENERAL PAYMENTS,375398,"Sport, Leisure & Community",Cultural & Related Services,104,Supplies and Services,504,"Printing, Stationery and General Office Expenses",5026,Revenue,EDUCATIONAL SUPPLIES.SUPPLIES
29-JUN-2022,7013740,4.72,IRONMONGERY DIRECT LTD,385120,"Health, Education, Care and Safeguarding",Children's & Education Services,103,Premises-Related Expenditure,502,"Repairs, alterations and maintenance of buildings",5005,Revenue,FURNITURE.DOMESTIC
29-JUN-2022,7013738,500,QUADIENT,274468,"Health, Education, Care and Safeguarding",Children's & Education Services,103,Supplies and Services,504,Communications & Computing,5028,Revenue,MAIL SERVICES.POSTAGE
29-JUN-2022,7013738,500,QUADIENT,274468,"Health, Education, Care and Safeguarding",Children's & Education Services,103,Supplies and Services,504,Communications & Computing,5028,Revenue,MAIL SERVICES.POSTAGE
29-JUN-2022,7013825,-0.04,AMAZON GENERAL PAYMENTS,375398,"Health, Education, Care and Safeguarding",Children's & Education Services,103,Supplies and Services,504,Miscellaneous Expenses,5034,Revenue,EDUCATIONAL SUPPLIES.SUPPLIES
29-JUN-2022,7013825,87.43,AMAZON GENERAL PAYMENTS,375398,"Health, Education, Care and Safeguarding",Children's & Education Services,103,Supplies and Services,504,Miscellaneous Expenses,5034,Revenue,EDUCATIONAL SUPPLIES.SUPPLIES
29-JUN-2022,7013825,14.57,AMAZON GENERAL PAYMENTS,375398,"Health, Education, Care and Safeguarding",Children's & Education Services,103,Supplies and Services,504,Miscellaneous Expenses,5034,Revenue,EDUCATIONAL SUPPLIES.SUPPLIES
29-JUN-2022,7013738,200,QUADIENT,274468,"Health, Education, Care and Safeguarding",Children's & Education Services,103,Supplies and Services,504,Communications & Computing,5028,Revenue,MAIL SERVICES.POSTAGE
29-JUN-2022,7013825,43.7,AMAZON GENERAL PAYMENTS,375398,"Health, Education, Care and Safeguarding",Children's & Education Services,103,Supplies and Services,504,Miscellaneous Expenses,5034,Revenue,EDUCATIONAL SUPPLIES.SUPPLIES
29-JUN-2022,7013726,109.62,ASDA STORES LIMITED,306530,"Health, Education, Care and Safeguarding",Children's & Education Services,103,Supplies and Services,504,Equipment,5023,Revenue,CATERING.FOOD & BEVERAGES
29-JUN-2022,7013739,78.27,NIKE FACTORY STORE,385357,"Health, Education, Care and Safeguarding",Children's & Education Services,103,Supplies and Services,504,"Clothing, Uniforms and Laundry",5025,Revenue,CLOTHING.CHILDRENS & ADULTS
